Workbook

Sheet Traffic Generation Input Tab-1
A1: 2023-04-28
U2: No | V2: AM / Sat | W2: =D22 -> 0
H3: [PM Peak] | U3: Yes | V3: PM | W3: =C22 -> 0
R4: =IF(L5="No","Macro 4","Macro 5") -> Macro 4
K5: RTL Channelized | L5: No | M5: % Reduction if Channalized | N5: 1
H7: (AM / Sat Peak) | K7: Opposing Traffic Volumes Provided | L7: No | M7: Opposing based on [AM / Sat] / (PM)
H9: ADT
J12: `
Q17: Site Right Approach ADT | U17: Calculated values
Q18: Site Left Approach ADT | R18: RT In + LT Out | U18: =I22+G9 -> 0
R19: LT In + RT Out | U19: =E22+F9 -> 0
Q20: Left Approach Channelized Opossing
C21: [PM Peak] | D21: (AM / Sat Peak) | E21: ADT | I21: ADT | J21: (AM / Sat Peak) | K21: [PM Peak] | Q21: Left Approach Unchannelized Opossing | R21: Road Peak Opposing | U21: =ROUNDUP(U25+U26-(U26*N5),0) -> 0
R22: Road Peak Opossing + RT in Peak | U22: =U25+U26 -> 0
R23: Opposing Based on Option | U23: =IF(L5="Yes",U21,U22) -> 0
Q24: Opp Road Peak
G25: (10 yr) Road Peak Opp Volume | H25: (AM / Sat Peak) | I25: [PM Peak] | Q25: RT Opp Peak | U25: =IF(N7="AM / Sat",J26,K26) -> 0
H26: 5 | I26: 5 | J26: =IF(L7="No",0,H26) -> 0 | K26: =IF(L7="No",0,I26) -> 0 | U26: =IF(N7="AM / Sat",J22,K22) -> 0 | V26: Base this on selected AM / PM Opposing
U29: =IF(AND(I22>=0,I22<=50),"0-50",IF(AND(I22>50,I22<=100),"51 - 100",IF(AND(I22>100,I22<=200),"101 - 200",IF(AND(I22>200,I22<=300),"201 - 300",IF(AND(I22>300,I22<=400),"301 - 400","Over 400"))))) -> 0-50
E31: Roadway AADT From DelDOT Traffic Summary:
E33: Committed Development AADT:
B37: Notes: 1. Fill in the volumes on the Traffic Generation Diagram tab consistent with the Traffic Generation Diagram created for the Entrance Plan. i. If the proposed entrance will create the fourth leg to an existing entrance, separate Auxiliary Lane Worksheets shall be completed and submitted for review of both the proposed entrance and the existing entrance. ii. If the proposed entrance will create the fourth leg to an existing T intersection (2 roads), an Auxiliary Lane Worksheet shall be completed for the proposed entrance and all other approaches will need further evaluation per the Development Coordination Manual and associated state and federal manuals (i.e. AASHTO Green Book). 2. If the entrance is an existing access point, left turn and right turn ADT and peak hour volumes shall include site traffic and existing roadway traffic. 3. If opposing roadway traffic volumes were collected, include in the worksheet. 4. If the opposing right-turn movement is channelized, a reduction may be included in the worksheet. Justification for reduction shall be submitted to DelDOT Development Coordination Section for review. 5. If Committed Development traffic information is known, include in the worksheet. This information is commonly included in a Final TIS. 6. In the Aux Lane Inputs - Tab 2, fill in the cells with GREEN text. i. If opposing roadway traffic volumes were collected and/or the opposing right- turn movement is channelized, the Left Turn VPH should be the same peak hour as the peak hour chosen for the opposing through and right turn volumes within the Traffic Generation Diagram tab. 7. To obtain further clarification on how ADT is determined per approach, see Left-Right Approach Example tab within the DelDOT Auxiliary Lane Worksheet.

Sheet Aux Lane Inputs-Tab 2
A1: 2023-04-28 | R1: V2020.3 | AD1: NO. | AE1: Special Conditions | AP1: Active/Not Active
A2: DelDOT Auxiliary Lane Worksheet | AE2: Case | AJ2: Action | AM2: Control Cell | AN2: Notes | AO2: Disable
A3: Roadway Information and Entrance | AD3: 1 | AE3: Number of Lanes is >4 | AJ3: No calculations & display additional analysis required | AM3: =IF(E9="> 4 Lanes","Additional Analysis Required","") ->  | AN3: B21 | AP3: working from other cells
A4: Name of Project | G4: Date of Submittal | AD4: 2 | AE4: Number of Lanes is =4 | AJ4: LTL required on Bypass cell and block ADT | AM4: =IF(E9="4 lanes",1,0) -> 0 | AN4: B22 | AP4: Working from other cells
A5: Maintenance Road No. (i.e. K234A) | G5: Road Name | AD5: 3 | AE5: Number of legs in 4 | AJ5: LTL required and block ADT | AM5: =IF(K9>3,"Bypass Not Allowed",0) -> 0 | AP5: Working from bypass tab
A6: Signalized / Unsignalized | G6: Posted Speed Limit | AD6: 4 | AE6: ADT > 8000 … no bypass | AJ6: LTL required and block ADT | AM6: =IF(E11>8000,"Bypass Lane not allowed","") ->  | AP6: Working from bypass tab
A7: Roadway ADT (From DelDOT Traffic Manual) | E7: ='Traffic Generation Input Tab-1'!H31 -> 0 | G7: Traffic Pattern Group | AD7: 5 | AE7: looks if LTL is required or if bypass not allowed | AJ7: LTL Required | AM7: =IF(OR('By Pass Lane'!B6="Bypass not Allowed", 'By Pass Lane'!B6="LTL Required"),1,0) -> 0 | AN7: IF(AND(B14>20,AND(B11>2000,B11<=4000),B20>400),1,0) | AP7: Looks to see if LTL required or Bypass not allowed from Bypass sheet | AS7: =IF(OR(E10="Local",E10="Minor Collector"),0,1) -> 1 | AU7: MINOR OR COLLECTOR
A8: Left Approach Site ADT | B8: ='Traffic Generation Input Tab-1'!U19 -> 0 | C8: Committed Development ADT | D8: ='Traffic Generation Input Tab-1'!H33 -> 0 | E8: Total Left Approach ADT | F8: =D8+B8 -> 0 | G8: Right Approach Site ADT | H8: ='Traffic Generation Input Tab-1'!U18 -> 0 | I8: Committed Development ADT | J8: =D8 -> 0 | K8: Total Right Approach ADT | L8: =J8+H8 -> 0 | AD8: 6 | AE8: LTL: vph > 30 prjvted >200 - ≤ 400 , >2000 - ≤4000 | AJ8: LTL required | AN8: IF(AND(B14>30,AND(B11>2000,B11<=4000),AND(B20>200,B20<=400)),1,0) | AP8: Not Active | AS8: =IF(AND($AS$7=1,$E$20<2000,$F$15>=20,F15<=50),"LTL Required",0) -> 0 | AU8: check it, it says display LTL if MINOR OR LOCAL and 2000 (check what is the 2000 is it ops vol or ADT or projected ADT ) and 20 to 50 vph … see what is the new range
A9: Total Number of Through Lanes (Does Not Include Turn Lanes) | G9: Number of intersection legs | AD9: 7 | AE9: LTL : vph >40 - ADT ≥ 1500 and ≤ 2000 | AJ9: LTL required | AN9: IF(AND(B14>40,AND(B11>=1500,B11<=2000)),1,0) | AP9: Not Active
A10: Roadway Functional Classification | G10: Calculation for (specify leg) | AD10: 8 | AE10: LTL : vph > 40 AADT >2000 - ≤4000 - 10 yrs opposing ≤200 | AJ10: LTL required | AN10: IF(AND(B14>40,AND(B11>2000,B11<=4000),B20<=200),1,0) | AP10: Not Active
A11: Left-Approach Projected 10 yr Roadway ADT + Total Site + Committed Development ADT | E11: =ROUNDDOWN(F8+(E7*1.16),0) -> 0 | G11: Right-Approach Projected 10 yr Roadway ADT + Total Site + Committed Development ADT | K11: =ROUNDDOWN(L8+(E7*1.16),0) -> 0 | AD11: 9 | AE11: LTL : vph 15-50 AADT >4000 <=8000 | AJ11: LTL required | AN11: IF(AND(B14>=15,B14<=50,AND(B11>4000,B11<=8000)),1,0) | AP11: Not Active
A12: K Factor | E12: =VLOOKUP(K7,'Drop Lists - K&D factors - Msgs'!C21:D26,2) ->  | G12: D Factor | K12: =VLOOKUP(K7,'Drop Lists - K&D factors - Msgs'!C21:E26,3) ->  | AD12: 10 | AE12: LTL <= 1200 | AJ12: LTL required | AM12: =IF(E14<=1200,1,0) -> 1 | AO12: =IF(AND(E16>=5,E16<=50,E11>=6000),"LTL Required",0) -> 0 | AP12: Active
A13: Left Turn Information | G13: Right Turn Information | AM13: =IF(AND(AM12=1,OR(AM11=1,AM10=1,AM9=1,AM8=1,AM7=1)),1,0) -> 0 | AN13: =IF(AND(OR(AO9="LTL Required",AO10="LTL Required",AO11="LTL Required"),E22="Bypass not Required"),1,0) -> 0
A14: Left Turn VPH | G14: Right Turn ADT | K14: ='Traffic Generation Input Tab-1'!U29 -> 0-50 | AQ14: Sketch
AD15: Messages | AP15: =IF(K$19="RTL Not Required","RTL Not Required",AP17+50) ->  | AQ15: =IFERROR(AP15,"X") -> X | AR15: RTL
A16: Left Turn Approach Grade | G16: Right Turn Approach Grade | AD16: RTL MSG | AE16: =IF(K14="","Select Right Turn ADT",IF(K16="","Select Right Turn Approach grade",IF(ABS(K16*100)>9,"Right Turn Approach Grade Excessive",IF(K17="","Select Right Turn Effective Radius","")))) -> Select Right Turn Approach grade | AH16: RTL Total | AJ16: LTL Total | AP16: =IF(G20<>"","X",IF(E21="Low Volume LTL Not Required","X",IF(E21="Additional Analysis Required","X",IF(E21="Signal Required","X",IF(E21="LTL Not Required","X",(E21-100)/2))))) -> X | AQ16: =IFERROR(AP16,"X") -> X | AR16: LTL
A17: Heavy Vehicle % | G17: Effective Radius of Entrance | AD17: LTL MSG | AE17: =IF(OR('Aux Lane Inputs-Tab 2'!E6="-",E6=""),"Select if Signalized / Unsignalized",IF('Aux Lane Inputs-Tab 2'!K6="","Select the posted speed limit",IF('Aux Lane Inputs-Tab 2'!E7="","Input Roadway ADT",IF('Aux Lane Inputs-Tab 2'!K7="","Select Traffic Pattern Group",IF('Aux Lane Inputs-Tab 2'!E9="","Select the total number of through Lanes",IF('Aux Lane Inputs-Tab 2'!K9="","Select the number of intersection legs",IF('Aux Lane Inputs-Tab 2'!E10="","Select the Roadway Functional Classification",IF(E14="","Input Left Turn Lane VPH",IF('Aux Lane Inputs-Tab 2'!E16="","Select Approach grade",IF(ABS('Aux Lane Inputs-Tab 2'!E16*100)>9,"Approach Grade Excessive",IF('Aux Lane Inputs-Tab 2'!E17="","Select Heavy Vehicle %",""))))))))))) -> Select if Signalized / Unsignalized | AH17: =IF('Aux Lane Inputs-Tab 2'!$K$17="R>50'",'R>50+Calcs'!H2,'R ≤ 50+Calcs'!$H$2) ->  | AJ17: =IF(AND(E11<1500,E20<100),"LTL Not Required",CEILING('L+Calcs'!C10,5)) -> 0 | AO17: =IF(K19="RTL Not Required","X",IF(K17="R>50'",'R>50+Calcs'!$H$2-50,'R ≤ 50+Calcs'!$H$2-50)) ->  | AP17: =IF(AO17>0,AO17,"X") ->  | AQ17: X | AR17: RTL
A18: 10 Yr Opposing Vol. (Manual Input - Veh/hr) | E18: =IF('Traffic Generation Input Tab-1'!L7="Yes",'Traffic Generation Input Tab-1'!U23,) -> 0 | AD18: Comb MSG | AE18: =IFERROR(AF18,IF(AE16<>"",AE17&" "&"&"&" "&AE16,AE17)) -> X | AF18: =IF(AE19<>"","X",IF(AND(AE16<>"",AE17=""),AE16,IF(AND(AE17<>"",AE16=""),AE17,IF(AND(AE17<>"",AE16<>""),AE17&" "&"&"&" "&AE16,IF(OR(E22="Bypass not Required",AND(E22="LTL Required",AJ17="LTL Not Required"),AND(E22="Bypass not Allowed",E21="")),"Bypass and Left Turn Lanes are not required",IF(AND(E22="Bypass not allowed",AJ17=0),"Bypass and Left turn lane are not required",IF(AND(E20>=1200,OR(E22="Bypass not Allowed",E22="LTL Required")),"The Engineer Shall submit an intersection and traffic signal analysis to DelDOT",IF(AND(E9<>"2 Lanes",AJ17=0),"Contact DelDOT, Refer to 5.2.9.2.A.5",IF(E6="Signalized","Refer to Tab-6 for Signalized intersection",""))))))))) -> X | AO18: =IF(K19="RTL Not Required","X",AP17/2) ->  | AP18: =MROUND(AO18,5) ->  | AQ18: =IFERROR(AP18,"X") -> X | AR18: RTL without taper
A19: 10 Yr Opposing Volume (Calculated) | E19: =IF(E14="","",(E7*1.16)*(E12/100)*(K12/100)) ->  | G19: Right Turn Length | K19: =IF(AH17>0,AH17,"RTL Not Required") ->  | AD19: AD MSG | AE19: =IF(E6="Signalized","Signalized intersection: Refer to Tab-6",IF(E20>=1200,"The Engineer shall contact DelDOT Development Coordination section.",IF(E14>400,"The Engineer shall contact DelDOT Development Coordination section.",IF(E9="> 4 Lanes","The Engineer shall contact DelDOT Development Coordination section.","")))) -> The Engineer shall contact DelDOT Development Coordination section. | AP19: =IF(OR(E22="Additional Analysis Required",E22="Bypass Not Allowed",E22="LTL Required",E22="Bypass Not Required"),"X",E22) -> X | AQ19: X | AR19: Bypass approach Taper
A20: =IF(E20=E19,"10 Yr Opposing Volume (Calculated Vol.)","10 Yr Opposing Volume (Manual Input)") -> 10 Yr Opposing Volume (Calculated Vol.) | E20: =IF((E18>0),E18,E19) ->  | G20: =AE18 -> X | AP20: =IF(OR(E22="Additional Analysis Required",E22="Bypass Not Allowed",E22="LTL Required",E22="Bypass Not Required"),"X",E23) -> X | AQ20: X | AR20: Bypass departure taper
A21: Left Turn Length | E21: =IF((AM13=1),AJ17,IF(OR(AND(AM13=1,OR(E22="LTL Required",E22="Bypass not Allowed"),K9=4)),AJ17,"")) ->  | AP21: =IF(OR(E22="Additional Analysis Required",E22="Bypass Not Allowed",E22="LTL Required",E22="Bypass Not Required"),"X",E24-25) -> X | AQ21: X | AR21: Bypass Storage - 25
A22: Bypass Lane Approach Taper | E22: =IF(E24="Bypass not Required","Bypass not Required",IF(E24="Bypass not Allowed","Bypass not Allowed",IF(E24="LTL Required","LTL Required",'By Pass Lane'!B7))) -> Bypass not Required | AP22: =IF(OR(E22="Additional Analysis Required",E22="Bypass Not Allowed",E22="LTL Required",E22="Bypass Not Required"),"X",E24+E22+E23) -> X | AQ22: X | AR22: Bypass
A23: Bypass Lane Departure Taper | E23: =IF(E24="Bypass not Required","Bypass not Required",IF(E24="Bypass not Allowed","Bypass not Allowed",IF(E24="LTL Required","LTL Required",'By Pass Lane'!B8))) -> Bypass not Required | AP23: =E21 ->  | AQ23: =IFERROR(AP23,"X") ->  | AR23: LTL
A24: Bypass Lane Storage | E24: ='By Pass Lane'!B6 -> Bypass not required | AP24: =IF(AND(K9=4,AE18="",OR(K10="Proposed Entrance 1",K10="Proposed Entrance 2")),"The Engineer shall submit a separate spreadsheet for the existing entrance.","") ->  | AQ24: =IFERROR(AP24," ") ->  | AR24: 4th leg warning
A25: =AE19 -> The Engineer shall contact DelDOT Development Coordination section.
A26: NOTE: This worksheet is for Right Turn Auxiliary Lanes, and Unsignalized Left Turn Auxiliary Lanes. If a signal analysis is required, please refer to signalized intersection analysis spreadsheet (Tab 6). *L1 - See Typical Entrance Diagram located at: http://www.deldot.gov/information/business/subdivisions/Typical_Entrance_Diagrams.pdf

Sheet Left - Right Approach Example

Sheet By Pass Lane (hidden)
A2: Projected 10-Year Opposing Volume (vph) | B2: ='Aux Lane Inputs-Tab 2'!E20 ->  | E2: Roadway ADT | F2: ='Aux Lane Inputs-Tab 2'!E11 -> 0 | H2: Roadway ADT | I2: =IF(F2<1500,"<1500",IF(AND(F2>=1500,F2<=2000),"1500-2000",IF(AND(F2>2000,F2<=4000),"2000-4000",IF(AND(F2>4000,F2<=8000),"4000-8000",IF(F2>8000,">8000","ERROR"))))) -> <1500 | Q2: 0-100
A3: LTL VPH | B3: ='Aux Lane Inputs-Tab 2'!E14 -> 0 | E3: Number of legs | F3: ='Aux Lane Inputs-Tab 2'!K9 -> 0 | H3: LTL VPH | I3: =IF(B3<5,"Less than 5",IF(AND(B3>=5,B3<=9),"5 to 9",IF(AND(B3>=10,B3<=14),"10 to 14",IF(AND(B3>14,B3<=20),"15-20",IF(AND(B3>20,B3<=30),"21-30",IF(AND(B3>30,B3<=40),"31-40",IF(B3>40,"Over 40","ERROR"))))))) -> Less than 5 | Q3: 101-200
A4: Speed Limit | B4: ='Aux Lane Inputs-Tab 2'!K6 -> 0 | E4: Road Class | F4: ='Aux Lane Inputs-Tab 2'!E10 -> 0 | H4: Projected 10-Year Opposing Volume (vph) | I4: =IF(AND(B2>=0,B2<=100),"0-100",IF(AND(B2>100,B2<=200),"101-200",IF(AND(B2>200,B2<=300),"201-300",IF(AND(B2>300,B2<=400),"301-400",">400")))) -> >400 | Q4: 201-300
E5: No. of Lanes | F5: ='Aux Lane Inputs-Tab 2'!E9 -> 0 | Q5: 301-400
A6: Storage Length | B6: =IF(AND(B4=25,(K6="LTL")),"LTL Required",IF(B4=25,"Bypass not Required",IF(B7="LTL Required","LTL Required",IF(K6="LTL","LTL Required",IF(AND(K6<>"Bypass not required",OR(F3=4,F5<>"2 Lanes")),"Bypass not Allowed",IF(U14="LTL","LTL Required",IF(B7="Bypass not Required","Bypass not Required",K6))))))) -> Bypass not required | C6: IF(B4=25,"Bypass not Required",IF(B7="LTL Required","LTL Required",IF(K6="LTL","LTL Required",IF(OR(AND(F2>=4000,B3>=15),F3=4,F4="Other Freeway / Expressway",F5<>"2 Lanes"),"Bypass not Allowed",IF(U14="LTL","LTL Required",IF(B7="Bypass not Required","Bypass not Required",IF(B3>=50,"LTL Required",K6))))))) | J6: Storage Length | K6: =IF(I2="<1500",K14,IF(I2="1500-2000",K31,IF(I2="2000-4000",K52,IF(I2="4000-8000",K70,IF(I2=">8000",K90))))) -> Bypass not required | Q6: >400
A7: App.Taper Length | B7: =IFERROR(IF(T14="-","Bypass not Required",IF(T14="LTL","LTL Required",T14)),0) -> 0
A8: Departure Taper | B8: =IFERROR(IF(T31="-","Bypass not Required",IF(T31="LTL","LTL Required",T31)),0) -> 0
A14: Projected 10-year Roadway ADT | C14: Storage Length (feet) | K14: =IF(I2="<1500",INDEX(C23:I27,MATCH(I$4,B23:B27,),MATCH(I$3,C22:I22,)),0) -> Bypass not required | P14: Posted Speed (mph) | Q14: Approach Taper Length (feet) | T14: =VLOOKUP(B4,P17:Q23,2) ->  | U14: =IFERROR(INDEX(Q17:R23,MATCH(B4,P17:P23,),MATCH(K6,Q16:R16,)),0) -> 0
C15: Left-Turning Vehicles (vph) | Q15: Storage Length (feet)
B16: Projected 10-Year Opposing Volume (vph) | C16: <1500
P17: 25 | Q17: -
P18: 30 | Q18: 125
P19: 35 | Q19: 155
P20: 40 | Q20: 155
P21: 45 | Q21: 180
C22: Less than 5 | D22: 5 to 9 | E22: 10 to 14 | F22: 15-20 | G22: 21-30 | H22: 31-40 | I22: Over 40 | P22: 50 | Q22: 215
A23: <1500 | B23: 0-100 | C23: Bypass not required | D23: Bypass not required | E23: Bypass not required | F23: Bypass not required | G23: Bypass not required | H23: Bypass not required | I23: Bypass not required | P23: 55 | Q23: 250
B24: 101-200 | C24: Bypass not required | D24: Bypass not required | E24: Bypass not required | F24: Bypass not required | G24: 50 | H24: 50 | I24: 50
B25: 201-300 | C25: Bypass not required | D25: Bypass not required | E25: Bypass not required | F25: Bypass not required | G25: 50 | H25: 50 | I25: 50
B26: 301-400 | C26: Bypass not required | D26: Bypass not required | E26: Bypass not required | F26: Bypass not required | G26: 50 | H26: 50 | I26: 50
B27: >400 | C27: Bypass not required | D27: Bypass not required | E27: Bypass not required | F27: Bypass not required | G27: 50 | H27: 50 | I27: 50
A31: Projected 10-year Roadway ADT | C31: Storage Length (feet) | K31: =IF(I2="1500-2000",INDEX(C40:I44,MATCH(I$4,B40:B44,),MATCH(I$3,C39:I39,)),0) -> 0 | P31: Posted Speed (mph) | Q31: Departure Taper Length (feet) | T31: =VLOOKUP(B4,P34:Q40,2) ->  | U31: =IFERROR(INDEX(Q35:S41,MATCH(B4,P34:P40,),MATCH(K6,Q34:S34,)),0) -> 0
C32: Left-Turning Vehicles (vph) | Q32: Storage Length (feet)
B33: Projected 10-Year Opposing Volume (vph)
C34: 1500 - 2000 | P34: 25 | Q34: -
P35: 30 | Q35: 65
P36: 35 | Q36: 80
P37: 40 | Q37: 80
P38: 45 | Q38: 90
C39: Less than 5 | D39: 5 to 9 | E39: 10 to 14 | F39: 15-20 | G39: 21-30 | H39: 31-40 | I39: Over 40 | P39: 50 | Q39: 110
B40: 0-100 | C40: Bypass not required | D40: Bypass not required | E40: Bypass not required | F40: 50 | G40: 50 | H40: 50 | I40: LTL | P40: 55 | Q40: 125
B41: 101-200 | C41: Bypass not required | D41: Bypass not required | E41: Bypass not required | F41: 50 | G41: 50 | H41: 50 | I41: LTL
B42: 201-300 | C42: Bypass not required | D42: Bypass not required | E42: Bypass not required | F42: 50 | G42: 50 | H42: 50 | I42: LTL
B43: 301-400 | C43: Bypass not required | D43: Bypass not required | E43: Bypass not required | F43: 50 | G43: 50 | H43: 50 | I43: LTL
B44: >400 | C44: Bypass not required | D44: Bypass not required | E44: LTL | F44: LTL | G44: LTL | H44: LTL | I44: LTL
A52: Projected 10-year Roadway ADT | C52: Storage Length (feet) | K52: =IF(I2="2000-4000",INDEX(C61:I65,MATCH(I4,B61:B65,),MATCH(I3,C60:I60,)),0) -> 0
C53: Left-Turning Vehicles (vph)
B54: Projected 10-Year Opposing Volume (vph)
C55: 2000-4000
C60: Less than 5 | D60: 5 to 9 | E60: 10 to 14 | F60: 15-20 | G60: 21-30 | H60: 31-40 | I60: Over 40
B61: 0-100 | C61: Bypass not required | D61: Bypass not required | E61: 50 | F61: 50 | G61: 50 | H61: 50 | I61: LTL
B62: 101-200 | C62: Bypass not required | D62: Bypass not required | E62: 50 | F62: 50 | G62: 50 | H62: 50 | I62: LTL
B63: 201-300 | C63: Bypass not required | D63: Bypass not required | E63: 50 | F63: 50 | G63: 50 | H63: LTL | I63: LTL
B64: 301-400 | C64: Bypass not required | D64: Bypass not required | E64: 50 | F64: 50 | G64: 50 | H64: LTL | I64: LTL
B65: >400 | C65: Bypass not required | D65: Bypass not required | E65: 75 | F65: 75 | G65: LTL | H65: LTL | I65: LTL
A70: Projected 10-year Roadway ADT | C70: Storage Length (feet) | K70: =IF(I2="4000-8000",INDEX(C79:I83,MATCH(I4,B79:B83,),MATCH(I3,C78:I78,)),0) -> 0
C71: Left-Turning Vehicles (vph)
B72: Projected 10-Year Opposing Volume (vph) | C72: 4000-8000
C78: Less than 5 | D78: 5 to 9 | E78: 10 to 14 | F78: 15-20 | G78: 21-30 | H78: 31-40 | I78: Over 40
B79: 0-100 | C79: Bypass not required | D79: Bypass not required | E79: 75 | F79: LTL | G79: LTL | H79: LTL | I79: LTL
B80: 101-200 | C80: Bypass not required | D80: Bypass not required | E80: 75 | F80: LTL | G80: LTL | H80: LTL | I80: LTL
B81: 201-300 | C81: Bypass not required | D81: Bypass not required | E81: 75 | F81: LTL | G81: LTL | H81: LTL | I81: LTL
B82: 301-400 | C82: Bypass not required | D82: Bypass not required | E82: 75 | F82: LTL | G82: LTL | H82: LTL | I82: LTL
B83: >400 | C83: Bypass not required | D83: Bypass not required | E83: 75 | F83: LTL | G83: LTL | H83: LTL | I83: LTL
A90: Projected 10-year Roadway ADT | C90: Storage Length (feet) | K90: =IF(I2=">8000",INDEX(C99:I103,MATCH(I4,B99:B103,),MATCH(I3,C98:I98,)),0) -> 0
C91: Left-Turning Vehicles (vph)
B92: Projected 10-Year Opposing Volume (vph) | C92: >8000
C98: Less than 5 | D98: 5 to 9 | E98: 10 to 14 | F98: 15-20 | G98: 21-30 | H98: 31-40 | I98: Over 40
B99: 0-100 | C99: Bypass not required | D99: Bypass not required | E99: LTL | F99: LTL | G99: LTL | H99: LTL | I99: LTL
B100: 101-200 | C100: Bypass not required | D100: Bypass not required | E100: LTL | F100: LTL | G100: LTL | H100: LTL | I100: LTL
B101: 201-300 | C101: Bypass not required | D101: Bypass not required | E101: LTL | F101: LTL | G101: LTL | H101: LTL | I101: LTL
B102: 301-400 | C102: Bypass not required | D102: Bypass not required | E102: LTL | F102: LTL | G102: LTL | H102: LTL | I102: LTL
B103: >400 | C103: Bypass not required | D103: Bypass not required | E103: LTL | F103: LTL | G103: LTL | H103: LTL | I103: LTL

Sheet L+Calcs (hidden)
A1: 2000-4000 | B1: Roadway ADT | C1: 4000 | D1: =C1*('Aux Lane Inputs-Tab 2'!$E12/100)*('Aux Lane Inputs-Tab 2'!$K12/100) ->  | E1: 2000 | F1: =E1*('Aux Lane Inputs-Tab 2'!$E12/100)*('Aux Lane Inputs-Tab 2'!$K12/100) ->  | Z1: Critical Headway (sec) = 4.2 | AU1: Deceleration Length (feet) = Brake Reaction + Braking Distance
B2: Critical Headway | C2: =IF('Aux Lane Inputs-Tab 2'!E9="2 lanes",VLOOKUP('Aux Lane Inputs-Tab 2'!E17,AN5:AO11,2),IF('Aux Lane Inputs-Tab 2'!E9="4 lanes",VLOOKUP('Aux Lane Inputs-Tab 2'!E17,'L+Calcs'!AN5:AP11,3))) -> FALSE | Z2: Left-Turning Vehicles (in vph) | AA2: TRR 1500 - Lengths of Left-Turn Lanes at Unsignalized Intersections* | AO2: Critical Headway, tc | AU2: Posted Speed (mph)
B3: Left Turn (vph) | C3: ='Aux Lane Inputs-Tab 2'!E14 -> 0
B4: Left Turn Rounded | C4: =IF(C3<5,0,((IF(AND(C3>=5,C3<=50,D5>D1),50,(IF(AND(C3>=20,C3<50,D5>=F1),50,(IF(AND(C3>=10,C3<50,F1>=D5>=D1),50,MROUND('Aux Lane Inputs-Tab 2'!E14,50))))))))) -> 0 | AA4: Opposing Volume (in vph) | AN4: %HV | AO4: 2 lanes | AP4: 4 lanes | AU4: 25 | AV4: 35 | AW4: 40 | AX4: 45 | AY4: 50 | AZ4: 55 | BL4: Posted Speed (mph)/Grade | BM4: DECELERATION (Feet)*
B5: Opposing Volume Rounded | C5: =MROUND('Aux Lane Inputs-Tab 2'!E20,100) ->  | D5: ='Aux Lane Inputs-Tab 2'!E20 ->  | AA5: 100 | AB5: 200 | AC5: 300 | AD5: 400 | AE5: 500 | AF5: 600 | AG5: 700 | AH5: 800 | AI5: 900 | AJ5: 1000 | AK5: 1100 | AL5: 1200 | AN5: 5 | AO5: 4.2 | AP5: 4.2 | AS5: Brake reaction distance (ft) | AU5: 44.1 | AV5: 58.8 | AW5: 58.8 | AX5: 66.15 | AY5: 73.5 | AZ5: 80.85 | BL5: Grade | BM5: -1 | BN5: -2 | BO5: -3 | BP5: -4 | BQ5: -5 | BR5: -6 | BS5: -7 | BT5: -8 | BU5: -9 | BV5: 0 | BW5: 1 | BX5: 2 | BY5: 3 | BZ5: 4 | CA5: 5 | CB5: 6 | CC5: 7 | CD5: 8 | CE5: 9
B6: Speed Limit | C6: ='Aux Lane Inputs-Tab 2'!K6 -> 0 | Z6: 50 | AA6: 1 | AB6: 1 | AC6: 1 | AD6: 2 | AE6: 2 | AF6: 2 | AG6: 2 | AH6: 2 | AI6: 2 | AJ6: 3 | AK6: 3 | AL6: 3 | AN6: 10 | AO6: 4.2 | AP6: 4.3 | AS6: Braking distance downgrade 3% (ft) | AU6: 94.39124487 | AV6: 128.4769722 | AW6: 128.4769722 | AX6: 167.8066575 | AY6: 212.380301 | AZ6: 262.1979024 | BL6: 25 | BM6: 131 | BN6: 131 | BO6: 139 | BP6: 142 | BQ6: 145 | BR6: 149 | BS6: 153 | BT6: 157 | BU6: 161 | BV6: 131 | BW6: 131 | BX6: 131 | BY6: 124 | BZ6: 122 | CA6: 120 | CB6: 118 | CC6: 116 | CD6: 115 | CE6: 113
B7: Slope | C7: =IF(-3<='Aux Lane Inputs-Tab 2'!E16*100<=3,0,ROUND('Aux Lane Inputs-Tab 2'!E16*100,0)) -> 0 | Z7: 100 | AA7: 1 | AB7: 1 | AC7: 2 | AD7: 2 | AE7: 2 | AF7: 3 | AG7: 3 | AH7: 3 | AI7: 3 | AJ7: 3 | AK7: 4 | AL7: 4 | AN7: 20 | AO7: 4.3 | AP7: 4.5 | AS7: Braking distance downgrade 4% (ft) | AU7: 97.45762712 | AV7: 132.6506591 | AW7: 132.6506591 | AX7: 173.2580038 | AY7: 219.279661 | AZ7: 270.7156309 | BL7: 30 | BM7: 168.8458333 | BN7: 168.8458333 | BO7: 179.9269722 | BP7: 184.1006591 | BQ7: 188.5546229 | BR7: 193.3180765 | BS7: 198.4244392 | BT7: 203.9121212 | BU7: 209.8254918 | BV7: 168.8458333 | BW7: 168.8458333 | BX7: 168.8458333 | BY7: 159.524415 | BZ7: 156.7377429 | CA7: 154.0911658 | CB7: 151.5743781 | CC7: 149.178061 | CD7: 146.8937669 | CE7: 144.7138199
B8: Decel Dist | C8: =INDEX(BL5:CE12,MATCH(C6,BL5:BL12,),MATCH(C7,BL5:CE5,)) ->  | Z8: 150 | AA8: 1 | AB8: 2 | AC8: 2 | AD8: 2 | AE8: 3 | AF8: 3 | AG8: 3 | AH8: 4 | AI8: 4 | AJ8: 4 | AK8: 5 | AL8: 5 | AN8: 30 | AO8: 4.4 | AP8: 4.7 | AS8: Braking distance downgrade 5% (ft) | AU8: 100.729927 | AV8: 137.1046229 | AW8: 137.1046229 | AX8: 179.0754258 | AY8: 226.6423358 | AZ8: 279.8053528 | BL8: 35 | BM8: 177 | BN8: 177 | BO8: 188 | BP8: 192 | BQ8: 196 | BR8: 201 | BS8: 206 | BT8: 212 | BU8: 218 | BV8: 177 | BW8: 177 | BX8: 177 | BY8: 167 | BZ8: 165 | CA8: 162 | CB8: 159 | CC8: 157 | CD8: 155 | CE8: 153
B9: Storage | C9: =SUM(O36:O162) -> 0 | Z9: 200 | AA9: 1 | AB9: 2 | AC9: 2 | AD9: 3 | AE9: 3 | AF9: 4 | AG9: 4 | AH9: 4 | AI9: 5 | AJ9: 5 | AK9: 6 | AL9: 6 | AN9: 40 | AO9: 4.5 | AP9: 4.9 | AS9: Braking distance downgrade 6% (ft) | AU9: 104.2296073 | AV9: 141.8680765 | AW9: 141.8680765 | AX9: 185.2970796 | AY9: 234.5166163 | AZ9: 289.5266868 | BL9: 40 | BM9: 177 | BN9: 177 | BO9: 188 | BP9: 192 | BQ9: 196 | BR9: 201 | BS9: 206 | BT9: 212 | BU9: 218 | BV9: 177 | BW9: 177 | BX9: 177 | BY9: 167 | BZ9: 165 | CA9: 162 | CB9: 159 | CC9: 157 | CD9: 155 | CE9: 153
B10: Left Turn Length | C10: =IF(C9=0,0,SUM(C8:C9)) -> 0 | D10: =CEILING(C10,5) -> 0 | Z10: 250 | AA10: 2 | AB10: 2 | AC10: 3 | AD10: 3 | AE10: 4 | AF10: 4 | AG10: 4 | AH10: 5 | AI10: 5 | AJ10: 6 | AK10: 7 | AL10: 8 | AN10: 50 | AO10: 4.6 | AP10: 5.1 | AS10: Braking distance downgrade 7% (ft) | AU10: 107.9812207 | AV10: 146.9744392 | AW10: 146.9744392 | AX10: 191.9666145 | AY10: 242.9577465 | AZ10: 299.9478352 | BL10: 45 | BM10: 220 | BN10: 220 | BO10: 234 | BP10: 240 | BQ10: 246 | BR10: 252 | BS10: 259 | BT10: 266 | BU10: 274 | BV10: 220 | BW10: 220 | BX10: 220 | BY10: 208 | BZ10: 204 | CA10: 201 | CB10: 197 | CC10: 194 | CD10: 191 | CE10: 188
Z11: 300 | AA11: 2 | AB11: 2 | AC11: 3 | AD11: 3 | AE11: 4 | AF11: 4 | AG11: 5 | AH11: 6 | AI11: 6 | AJ11: 7 | AK11: 8 | AL11: 10 | AN11: 70 | AO11: 4.8 | AP11: 5.5 | AS11: Braking distance downgrade 8% (ft) | AU11: 112.012987 | AV11: 152.4621212 | AW11: 152.4621212 | AX11: 199.1341991 | AY11: 252.0292208 | AZ11: 311.1471861 | BL11: 50 | BM11: 268 | BN11: 268 | BO11: 286 | BP11: 293 | BQ11: 301 | BR11: 309 | BS11: 317 | BT11: 326 | BU11: 336 | BV11: 268 | BW11: 268 | BX11: 268 | BY11: 253 | BZ11: 248 | CA11: 244 | CB11: 240 | CC11: 236 | CD11: 232 | CE11: 228
Z12: 350 | AA12: 2 | AB12: 2 | AC12: 3 | AD12: 4 | AE12: 4 | AF12: 5 | AG12: 6 | AH12: 6 | AI12: 7 | AJ12: 8 | AK12: 10 | AL12: 12 | AS12: Braking distance downgrade 9% (ft) | AU12: 116.3575042 | AV12: 158.3754918 | AW12: 158.3754918 | AX12: 206.8577853 | AY12: 261.8043845 | AZ12: 323.2152895 | BL12: 55 | BM12: 321 | BN12: 321 | BO12: 344 | BP12: 352 | BQ12: 361 | BR12: 371 | BS12: 381 | BT12: 392 | BU12: 405 | BV12: 321 | BW12: 321 | BX12: 321 | BY12: 302 | BZ12: 296 | CA12: 291 | CB12: 286 | CC12: 281 | CD12: 276 | CE12: 272
Z13: 400 | AA13: 2 | AB13: 3 | AC13: 3 | AD13: 4 | AE13: 5 | AF13: 5 | AG13: 6 | AH13: 7 | AI13: 8 | AJ13: 10 | AK13: 12 | AL13: 15 | AS13: Braking distance on level (ft) | AU13: 86.38 | AV13: 117.578 | AW13: 117.578 | AX13: 153.571 | AY13: 194.363 | AZ13: 239.9553 | BM13: D = Downgrade
A14: LEFT-TURN LANE LENGTH AT UNSIGNALIZED INTERSECTIONS | AS14: Braking distance upgrade 3% (ft) | AU14: 79.40161105 | AV14: 108.074415 | AW14: 108.074415 | AX14: 141.1584196 | AY14: 178.6536249 | AZ14: 220.5600307 | BM14: U = Upgrade
Z15: Critical Headway (sec) = 4.3 | AS15: Braking distance upgrade 4% (ft) | AU15: 77.35426009 | AV15: 105.2877429 | AW15: 105.2877429 | AX15: 137.5186846 | AY15: 174.0470852 | AZ15: 214.8729447
A16: LEFT-TURN LANE LENGTH (Feet) = QUEUE STORAGE + DECELERATION | Z16: Left-Turning Vehicles (in vph) | AA16: TRR 1500 - Lengths of Left-Turn Lanes at Unsignalized Intersections* | AS16: Braking distance upgrade 5% (ft) | AU16: 75.40983607 | AV16: 102.6411658 | AW16: 102.6411658 | AX16: 134.0619308 | AY16: 169.6721311 | AZ16: 209.4717668
AA17: Opposing Volume (in vph) | AS17: Braking distance upgrade 6% (ft) | AT17: Braking distance upgrade 3% (ft) | AU17: 73.56076759 | AV17: 100.1243781 | AW17: 100.1243781 | AX17: 130.7746979 | AY17: 165.5117271 | AZ17: 204.3354655
AA18: 100 | AB18: 200 | AC18: 300 | AD18: 400 | AE18: 500 | AF18: 600 | AG18: 700 | AH18: 800 | AI18: 900 | AJ18: 1000 | AK18: 1100 | AL18: 1200 | AS18: Braking distance upgrade 7% (ft) | AT18: Braking distance upgrade 3% (ft) | AU18: 71.80020812 | AV18: 97.72806105 | AW18: 97.72806105 | AX18: 127.6448144 | AY18: 161.5504683 | AZ18: 199.4450225 | BL18: Traffic Pattern Group | BP18: 10-Year
A19: Input Data | Z19: 50 | AA19: 1 | AB19: 1 | AC19: 1 | AD19: 2 | AE19: 2 | AF19: 2 | AG19: 2 | AH19: 2 | AI19: 2 | AJ19: 3 | AK19: 3 | AL19: 3 | AS19: Braking distance upgrade 8% (ft) | AT19: Braking distance upgrade 3% (ft) | AU19: 70.12195122 | AV19: 95.44376694 | AW19: 95.44376694 | AX19: 124.6612466 | AY19: 157.7743902 | AZ19: 194.7831978 | BK19: AADT | BM19: K-Factor | BN19: D-Factor | BO19: Growth | BP19: Opposing
A20: Queue Storage | C20: Left-turning vehicles in vph | Z20: 100 | AA20: 1 | AB20: 2 | AC20: 2 | AD20: 2 | AE20: 2 | AF20: 3 | AG20: 3 | AH20: 3 | AI20: 3 | AJ20: 4 | AK20: 4 | AL20: 4 | AS20: Braking distance upgrade 9% (ft) | AT20: Braking distance upgrade 3% (ft) | AU20: 68.5203575 | AV20: 93.26381993 | AW20: 93.26381993 | AX20: 121.8139689 | AY20: 154.1708044 | AZ20: 190.3343264 | BO20: Factor | BP20: Volume
C21: Critical Headway given by %HV and Number of Lanes in each direction | Z21: 150 | AA21: 1 | AB21: 2 | AC21: 2 | AD21: 3 | AE21: 3 | AF21: 3 | AG21: 3 | AH21: 4 | AI21: 4 | AJ21: 4 | AK21: 5 | AL21: 5 | BK21: 10000 | BL21: 1 | BM21: 9.9 | BN21: 55.6 | BO21: 1.16 | BP21: =(BM21/100)*(BN21/100)*BO21*$BK$21 -> 638.5104
C22: Percentage of Heavy Veh. making the left-turn: 5, 10, 20, 30, 40, 50, and 70 | Z22: 200 | AA22: 2 | AB22: 2 | AC22: 3 | AD22: 3 | AE22: 3 | AF22: 4 | AG22: 4 | AH22: 4 | AI22: 5 | AJ22: 5 | AK22: 6 | AL22: 7 | AS22: 50 | AT22: =((AS22*AS22)/11.2)*1.075 -> 239.9553571 | BL22: 2 | BM22: 10.24 | BN22: 58.38 | BO22: 1.16 | BP22: =(BM22/100)*(BN22/100)*BO22*$BK$21 -> 693.460992
C23: Number of lanes in each direction (major road): 2-lane or 4-lane | Z23: 250 | AA23: 2 | AB23: 2 | AC23: 3 | AD23: 3 | AE23: 4 | AF23: 4 | AG23: 5 | AH23: 5 | AI23: 6 | AJ23: 6 | AK23: 7 | AL23: 8 | AS23: 3 | AU23: =((AS$22*AS$22)/(30*((11.2/32.2)-(AS23/100)))) -> 262.1979024 | BL23: 3 | BM23: 10 | BN23: 57.95 | BO23: 1.16 | BP23: 672.22
C24: Projected 10-Year Opposing Volume in vph = AADT * K * D * Growth Factor | Z24: 300 | AA24: 2 | AB24: 2 | AC24: 3 | AD24: 4 | AE24: 4 | AF24: 5 | AG24: 5 | AH24: 6 | AI24: 6 | AJ24: 8 | AK24: 9 | AL24: 11 | AS24: 4 | AU24: =((AS$22*AS$22)/(30*((11.2/32.2)-(AS24/100)))) -> 270.7156309 | BL24: 4 | BM24: 10.4 | BN24: 52.55 | BO24: 1.16 | BP24: 633.9632
D25: AADT | Z25: 350 | AA25: 2 | AB25: 2 | AC25: 3 | AD25: 4 | AE25: 4 | AF25: 5 | AG25: 6 | AH25: 7 | AI25: 8 | AJ25: 9 | AK25: 11 | AL25: 13 | AS25: 5 | AU25: 279.8053528 | BL25: 5 | BM25: 12.14 | BN25: 60.69 | BO25: 1.16 | BP25: 854.660856
D26: TPG provided K and D factors | Z26: 400 | AA26: 2 | AB26: 3 | AC26: 4 | AD26: 4 | AE26: 5 | AF26: 6 | AG26: 6 | AH26: 7 | AI26: 9 | AJ26: 11 | AK26: 13 | AL26: 17 | AS26: 6 | AU26: 289.5266868 | BL26: 6 | BM26: 14.5 | BN26: 62.62 | BO26: 1.16 | BP26: 1053.2684
D27: 10-Year Growth Factor = 1.16 (Assuming a 1.5% annual growth) | AS27: 7 | AU27: 299.9478352 | BL27: 7 | BM27: 16.08 | BN27: 69.93 | BO27: 1.16 | BP27: 1304.390304
A28: Deceleration | C28: Posted Speed in mph | Z28: Critical Headway (sec) = 4.4 | AS28: 8 | AU28: 311.1471861 | BL28: 8 | BM28: 16.03 | BN28: 56.54 | BO28: 1.16 | BP28: 1051.349992
C29: Grade: from level (0%) to 9% upgrade or downgrade | Z29: Left-Turning Vehicles (in vph) | AA29: TRR 1500 - Lengths of Left-Turn Lanes at Unsignalized Intersections* | AS29: 9 | AU29: 323.2152895
AA30: Opposing Volume (in vph) | AS30: 0 | AU30: 239.5833333
AA31: 100 | AB31: 200 | AC31: 300 | AD31: 400 | AE31: 500 | AF31: 600 | AG31: 700 | AH31: 800 | AI31: 900 | AJ31: 1000 | AK31: 1100 | AL31: 1200 | AS31: -3 | AU31: 220.5600307
Z32: 50 | AA32: 1 | AB32: 1 | AC32: 2 | AD32: 2 | AE32: 2 | AF32: 2 | AG32: 2 | AH32: 2 | AI32: 2 | AJ32: 3 | AK32: 3 | AL32: 3 | AS32: -4 | AU32: 214.8729447
A33: Critical Headway (sec) = 4.2 | Z33: 100 | AA33: 1 | AB33: 2 | AC33: 2 | AD33: 2 | AE33: 2 | AF33: 3 | AG33: 3 | AH33: 3 | AI33: 3 | AJ33: 4 | AK33: 4 | AL33: 4 | AS33: -5 | AU33: 209.4717668
A34: Left-Turning Vehicles (in vph) | C34: TRR 1500 - Lengths of Left-Turn Lanes at Unsignalized Intersections* | Z34: 150 | AA34: 1 | AB34: 2 | AC34: 2 | AD34: 3 | AE34: 3 | AF34: 3 | AG34: 4 | AH34: 4 | AI34: 4 | AJ34: 5 | AK34: 5 | AL34: 6 | AS34: -6 | AU34: 204.3354655
C35: Opposing Volume (in vph) | Z35: 200 | AA35: 2 | AB35: 2 | AC35: 3 | AD35: 3 | AE35: 3 | AF35: 4 | AG35: 4 | AH35: 4 | AI35: 5 | AJ35: 6 | AK35: 6 | AL35: 7 | AS35: -7 | AU35: 199.4450225
B36: 0 | C36: 100 | D36: 200 | E36: 300 | F36: 400 | G36: 500 | H36: 600 | I36: 700 | J36: 800 | K36: 900 | L36: 1000 | M36: 1100 | N36: 1200 | O36: =IF(C$2=4.2,INDEX(A36:N45,MATCH(C$4,A36:A45,),MATCH(C$5,A36:N36,)),) -> 0 | Z36: 250 | AA36: 2 | AB36: 2 | AC36: 3 | AD36: 3 | AE36: 4 | AF36: 4 | AG36: 5 | AH36: 5 | AI36: 6 | AJ36: 7 | AK36: 8 | AL36: 9 | AS36: -8 | AU36: 194.7831978
A37: 0 | B37: =C37 -> 15 | C37: =C38 -> 15 | D37: =D38 -> 15 | E37: 15 | F37: 40 | G37: 40 | H37: 40 | I37: 40 | J37: 40 | K37: 40 | L37: 65 | M37: 65 | N37: 65 | P37: Modifiws LL SETS TO INCLUDE 0 -50 IN RANGE 9/15
A38: 50 | B38: =C38 -> 15 | C38: =(ROUND(AA6, 0)*25)-10 -> 15 | D38: 15 | E38: 15 | F38: 40 | G38: 40 | H38: 40 | I38: 40 | J38: 40 | K38: 40 | L38: 65 | M38: 65 | N38: 65 | Z38: 300 | AA38: 2 | AB38: 2 | AC38: 3 | AD38: 4 | AE38: 4 | AF38: 5 | AG38: 5 | AH38: 6 | AI38: 7 | AJ38: 8 | AK38: 10 | AL38: 11 | AS38: -9 | AU38: 190.3343264
A39: 100 | B39: 15 | C39: 15 | D39: 15 | E39: 40 | F39: 40 | G39: 40 | H39: 65 | I39: 65 | J39: 65 | K39: 65 | L39: 65 | M39: 90 | N39: 90 | Z39: 350 | AA39: 2 | AB39: 3 | AC39: 3 | AD39: 4 | AE39: 4 | AF39: 5 | AG39: 6 | AH39: 7 | AI39: 8 | AJ39: 10 | AK39: 12 | AL39: 15
A40: 150 | B40: 15 | C40: 15 | D40: 40 | E40: 40 | F40: 40 | G40: 65 | H40: 65 | I40: 65 | J40: 90 | K40: 90 | L40: 90 | M40: 115 | N40: 115 | Z40: 400 | AA40: 2 | AB40: 3 | AC40: 4 | AD40: 4 | AE40: 5 | AF40: 6 | AG40: 7 | AH40: 8 | AI40: 9 | AJ40: 12 | AK40: 15 | AL40: 19
A41: 200 | B41: 15 | C41: 15 | D41: 40 | E41: 40 | F41: 65 | G41: 65 | H41: 90 | I41: 90 | J41: 90 | K41: 115 | L41: 115 | M41: 140 | N41: 140
A42: 250 | B42: 40 | C42: 40 | D42: 40 | E42: 65 | F42: 65 | G42: 90 | H42: 90 | I42: 90 | J42: 115 | K42: 115 | L42: 140 | M42: 165 | N42: 190 | Z42: Critical Headway (sec) = 4.5 | AU42: Posted Speed (mph)
A43: 300 | B43: 40 | C43: 40 | D43: 40 | E43: 65 | F43: 65 | G43: 90 | H43: 90 | I43: 115 | J43: 140 | K43: 140 | L43: 165 | M43: 190 | N43: 240 | Z43: Left-Turning Vehicles (in vph) | AA43: TRR 1500 - Lengths of Left-Turn Lanes at Unsignalized Intersections* | AV43: DECELERATION (Feet)*
A44: 350 | B44: 40 | C44: 40 | D44: 40 | E44: 65 | F44: 90 | G44: 90 | H44: 115 | I44: 140 | J44: 140 | K44: 165 | L44: 190 | M44: 240 | N44: 290 | AA44: Opposing Volume (in vph) | AV44: D 3% | AW44: D 4% | AX44: D 5% | AY44: D 6% | AZ44: D 7% | BA44: D 8% | BB44: D 9% | BC44: Level | BD44: U 3% | BE44: U 4% | BF44: U 5% | BG44: U 6% | BH44: U 7% | BI44: U 8% | BJ44: U 9%
A45: 400 | B45: 40 | C45: 40 | D45: 65 | E45: 65 | F45: 90 | G45: 115 | H45: 115 | I45: 140 | J45: 165 | K45: 190 | L45: 240 | M45: 290 | N45: 365 | AA45: 100 | AB45: 200 | AC45: 300 | AD45: 400 | AE45: 500 | AF45: 600 | AG45: 700 | AH45: 800 | AI45: 900 | AJ45: 1000 | AK45: 1100 | AL45: 1200 | AU45: 25 | AV45: =ROUNDUP($AU$5+$AU6,0) -> 139 | AW45: =ROUNDUP($AU$5+$AU7,0) -> 142 | AX45: =ROUNDUP($AU$5+$AU8,0) -> 145 | AY45: =ROUNDUP($AU$5+$AU9,0) -> 149 | AZ45: =ROUNDUP($AU$5+$AU10,0) -> 153 | BA45: =ROUNDUP($AU$5+$AU11,0) -> 157 | BB45: =ROUNDUP($AU$5+$AU12,0) -> 161 | BC45: =ROUNDUP($AU$5+$AU13,0) -> 131 | BD45: =ROUNDUP($AU$5+$AU14,0) -> 124 | BE45: =ROUNDUP($AU$5+$AU15,0) -> 122 | BF45: =ROUNDUP($AU$5+$AU16,0) -> 120 | BG45: =ROUNDUP($AU$5+$AU17,0) -> 118 | BH45: =ROUNDUP($AU$5+$AU18,0) -> 116 | BI45: =ROUNDUP($AU$5+$AU19,0) -> 115 | BJ45: =ROUNDUP($AU$5+$AU20,0) -> 113
Z46: 50 | AA46: 1 | AB46: 1 | AC46: 2 | AD46: 2 | AE46: 2 | AF46: 2 | AG46: 2 | AH46: 2 | AI46: 3 | AJ46: 3 | AK46: 3 | AL46: 3 | AU46: 35 | AV46: =ROUNDUP($AV$5+$AV6,0) -> 188 | AW46: =ROUNDUP($AV$5+$AV7,0) -> 192 | AX46: =ROUNDUP($AV$5+$AV8,0) -> 196 | AY46: =ROUNDUP($AV$5+$AV9,0) -> 201 | AZ46: =ROUNDUP($AV$5+$AV10,0) -> 206 | BA46: =ROUNDUP($AV$5+$AV11,0) -> 212 | BB46: =ROUNDUP($AV$5+$AV12,0) -> 218 | BC46: =ROUNDUP($AV$5+$AV13,0) -> 177 | BD46: =ROUNDUP($AV$5+$AV14,0) -> 167 | BE46: =ROUNDUP($AV$5+$AV15,0) -> 165 | BF46: =ROUNDUP($AV$5+$AV16,0) -> 162 | BG46: =ROUNDUP($AV$5+$AV17,0) -> 159 | BH46: =ROUNDUP($AV$5+$AV18,0) -> 157 | BI46: =ROUNDUP($AV$5+$AV19,0) -> 155 | BJ46: =ROUNDUP($AV$5+$AV20,0) -> 153
A47: Critical Headway (sec) = 4.3 | Z47: 100 | AA47: 1 | AB47: 2 | AC47: 2 | AD47: 2 | AE47: 2 | AF47: 3 | AG47: 3 | AH47: 3 | AI47: 3 | AJ47: 4 | AK47: 4 | AL47: 4 | AU47: 40 | AV47: =ROUNDUP($AW$5+$AW6,0) -> 188 | AW47: =ROUNDUP($AW$5+$AW7,0) -> 192 | AX47: =ROUNDUP($AW$5+$AW8,0) -> 196 | AY47: =ROUNDUP($AW$5+$AW9,0) -> 201 | AZ47: =ROUNDUP($AW$5+$AW10,0) -> 206 | BA47: =ROUNDUP($AW$5+$AW11,0) -> 212 | BB47: =ROUNDUP($AW$5+$AW12,0) -> 218 | BC47: =ROUNDUP($AW$5+$AW13,0) -> 177 | BD47: =ROUNDUP($AW$5+$AW14,0) -> 167 | BE47: =ROUNDUP($AW$5+$AW15,0) -> 165 | BF47: =ROUNDUP($AW$5+$AW16,0) -> 162 | BG47: =ROUNDUP($AW$5+$AW17,0) -> 159 | BH47: =ROUNDUP($AW$5+$AW18,0) -> 157 | BI47: =ROUNDUP($AW$5+$AW19,0) -> 155 | BJ47: =ROUNDUP($AW$5+$AW20,0) -> 153
A48: Left-Turning Vehicles (in vph) | C48: TRR 1500 - Lengths of Left-Turn Lanes at Unsignalized Intersections* | Z48: 150 | AA48: 1 | AB48: 2 | AC48: 2 | AD48: 3 | AE48: 3 | AF48: 3 | AG48: 4 | AH48: 4 | AI48: 4 | AJ48: 5 | AK48: 5 | AL48: 6 | AU48: 45 | AV48: =ROUNDUP($AX$5+$AX6,0) -> 234 | AW48: =ROUNDUP($AX$5+$AX7,0) -> 240 | AX48: =ROUNDUP($AX$5+$AX8,0) -> 246 | AY48: =ROUNDUP($AX$5+$AX9,0) -> 252 | AZ48: =ROUNDUP($AX$5+$AX10,0) -> 259 | BA48: =ROUNDUP($AX$5+$AX11,0) -> 266 | BB48: =ROUNDUP($AX$5+$AX12,0) -> 274 | BC48: =ROUNDUP($AX$5+$AX13,0) -> 220 | BD48: =ROUNDUP($AX$5+$AX14,0) -> 208 | BE48: =ROUNDUP($AX$5+$AX15,0) -> 204 | BF48: =ROUNDUP($AX$5+$AX16,0) -> 201 | BG48: =ROUNDUP($AX$5+$AX17,0) -> 197 | BH48: =ROUNDUP($AX$5+$AX18,0) -> 194 | BI48: =ROUNDUP($AX$5+$AX19,0) -> 191 | BJ48: =ROUNDUP($AX$5+$AX20,0) -> 188
C49: Opposing Volume (in vph) | Z49: 200 | AA49: 2 | AB49: 2 | AC49: 3 | AD49: 3 | AE49: 3 | AF49: 4 | AG49: 4 | AH49: 5 | AI49: 5 | AJ49: 6 | AK49: 7 | AL49: 8 | AU49: 50 | AV49: =ROUNDUP($AY$5+$AY6,0) -> 286 | AW49: =ROUNDUP($AY$5+$AY7,0) -> 293 | AX49: =ROUNDUP($AY$5+$AY8,0) -> 301 | AY49: =ROUNDUP($AY$5+$AY9,0) -> 309 | AZ49: =ROUNDUP($AY$5+$AY10,0) -> 317 | BA49: =ROUNDUP($AY$5+$AY11,0) -> 326 | BB49: =ROUNDUP($AY$5+$AY12,0) -> 336 | BC49: =ROUNDUP($AY$5+$AY13,0) -> 268 | BD49: =ROUNDUP($AY$5+$AY14,0) -> 253 | BE49: =ROUNDUP($AY$5+$AY15,0) -> 248 | BF49: =ROUNDUP($AY$5+$AY16,0) -> 244 | BG49: =ROUNDUP($AY$5+$AY17,0) -> 240 | BH49: =ROUNDUP($AY$5+$AY18,0) -> 236 | BI49: =ROUNDUP($AY$5+$AY19,0) -> 232 | BJ49: =ROUNDUP($AY$5+$AY20,0) -> 228
B50: 0 | C50: 100 | D50: 200 | E50: 300 | F50: 400 | G50: 500 | H50: 600 | I50: 700 | J50: 800 | K50: 900 | L50: 1000 | M50: 1100 | N50: 1200 | O50: =IF(C$2=4.3,INDEX(A50:N59,MATCH(C$4,A50:A59,),MATCH(C$5,A50:N50,)),) -> 0 | Z50: 250 | AA50: 2 | AB50: 2 | AC50: 3 | AD50: 3 | AE50: 4 | AF50: 4 | AG50: 5 | AH50: 5 | AI50: 6 | AJ50: 7 | AK50: 8 | AL50: 10 | AU50: 55 | AV50: =ROUNDUP($AZ$5+$AZ6,0) -> 344 | AW50: =ROUNDUP($AZ$5+$AZ7,0) -> 352 | AX50: =ROUNDUP($AZ$5+$AZ8,0) -> 361 | AY50: =ROUNDUP($AZ$5+$AZ9,0) -> 371 | AZ50: =ROUNDUP($AZ$5+$AZ10,0) -> 381 | BA50: =ROUNDUP($AZ$5+$AZ11,0) -> 392 | BB50: =ROUNDUP($AZ$5+$AZ12,0) -> 405 | BC50: =ROUNDUP($AZ$5+$AZ13,0) -> 321 | BD50: =ROUNDUP($AZ$5+$AZ14,0) -> 302 | BE50: =ROUNDUP($AZ$5+$AZ15,0) -> 296 | BF50: =ROUNDUP($AZ$5+$AZ16,0) -> 291 | BG50: =ROUNDUP($AZ$5+$AZ17,0) -> 286 | BH50: =ROUNDUP($AZ$5+$AZ18,0) -> 281 | BI50: =ROUNDUP($AZ$5+$AZ19,0) -> 276 | BJ50: =ROUNDUP($AZ$5+$AZ20,0) -> 272
A51: 0 | B51: =C51 -> 15 | C51: =C52 -> 15 | D51: 15 | E51: 15 | F51: 40 | G51: 40 | H51: 40 | I51: 40 | J51: 40 | K51: 40 | L51: 65 | M51: 65 | N51: 65
A52: 50 | B52: 15 | C52: =(ROUND(AA19, 0)*25)-10 -> 15 | D52: 15 | E52: 15 | F52: 40 | G52: 40 | H52: 40 | I52: 40 | J52: 40 | K52: 40 | L52: 65 | M52: 65 | N52: 65 | Z52: 300 | AA52: 2 | AB52: 2 | AC52: 3 | AD52: 4 | AE52: 4 | AF52: 5 | AG52: 5 | AH52: 6 | AI52: 7 | AJ52: 9 | AK52: 10 | AL52: 12
A53: 100 | B53: 15 | C53: 15 | D53: 40 | E53: 40 | F53: 40 | G53: 40 | H53: 65 | I53: 65 | J53: 65 | K53: 65 | L53: 90 | M53: 90 | N53: 90 | Z53: 350 | AA53: 2 | AB53: 3 | AC53: 3 | AD53: 4 | AE53: 5 | AF53: 5 | AG53: 6 | AH53: 7 | AI53: 8 | AJ53: 10 | AK53: 13 | AL53: 16
A54: 150 | B54: 15 | C54: 15 | D54: 40 | E54: 40 | F54: 65 | G54: 65 | H54: 65 | I54: 65 | J54: 90 | K54: 90 | L54: 90 | M54: 115 | N54: 115 | Z54: 400 | AA54: 2 | AB54: 3 | AC54: 4 | AD54: 4 | AE54: 5 | AF54: 6 | AG54: 7 | AH54: 8 | AI54: 10 | AJ54: 13 | AK54: 16 | AL54: 22
A55: 200 | B55: 40 | C55: 40 | D55: 40 | E55: 65 | F55: 65 | G55: 65 | H55: 90 | I55: 90 | J55: 90 | K55: 115 | L55: 115 | M55: 140 | N55: 165
A56: 250 | B56: 40 | C56: 40 | D56: 40 | E56: 65 | F56: 65 | G56: 90 | H56: 90 | I56: 115 | J56: 115 | K56: 140 | L56: 140 | M56: 165 | N56: 190 | Z56: Critical Headway (sec) = 4.6
A57: 300 | B57: 40 | C57: 40 | D57: 40 | E57: 65 | F57: 90 | G57: 90 | H57: 115 | I57: 115 | J57: 140 | K57: 140 | L57: 190 | M57: 215 | N57: 265 | Z57: Left-Turning Vehicles (in vph) | AA57: TRR 1500 - Lengths of Left-Turn Lanes at Unsignalized Intersections*
A58: 350 | B58: 40 | C58: 40 | D58: 40 | E58: 65 | F58: 90 | G58: 90 | H58: 115 | I58: 140 | J58: 165 | K58: 190 | L58: 215 | M58: 265 | N58: 315 | AA58: Opposing Volume (in vph)
A59: 400 | B59: 40 | C59: 40 | D59: 65 | E59: 90 | F59: 90 | G59: 115 | H59: 140 | I59: 140 | J59: 165 | K59: 215 | L59: 265 | M59: 315 | N59: 415 | AA59: 100 | AB59: 200 | AC59: 300 | AD59: 400 | AE59: 500 | AF59: 600 | AG59: 700 | AH59: 800 | AI59: 900 | AJ59: 1000 | AK59: 1100 | AL59: 1200
Z60: 50 | AA60: 1 | AB60: 1 | AC60: 2 | AD60: 2 | AE60: 2 | AF60: 2 | AG60: 2 | AH60: 2 | AI60: 3 | AJ60: 3 | AK60: 3 | AL60: 3
A61: Critical Headway (sec) = 4.4 | Z61: 100 | AA61: 1 | AB61: 2 | AC61: 2 | AD61: 2 | AE61: 3 | AF61: 3 | AG61: 3 | AH61: 3 | AI61: 4 | AJ61: 4 | AK61: 4 | AL61: 5
A62: Left-Turning Vehicles (in vph) | C62: TRR 1500 - Lengths of Left-Turn Lanes at Unsignalized Intersections* | Z62: 150 | AA62: 1 | AB62: 2 | AC62: 2 | AD62: 3 | AE62: 3 | AF62: 3 | AG62: 4 | AH62: 4 | AI62: 4 | AJ62: 5 | AK62: 6 | AL62: 6
C63: Opposing Volume (in vph) | Z63: 200 | AA63: 2 | AB63: 2 | AC63: 3 | AD63: 3 | AE63: 3 | AF63: 4 | AG63: 4 | AH63: 5 | AI63: 5 | AJ63: 6 | AK63: 7 | AL63: 8
B64: 0 | C64: 100 | D64: 200 | E64: 300 | F64: 400 | G64: 500 | H64: 600 | I64: 700 | J64: 800 | K64: 900 | L64: 1000 | M64: 1100 | N64: 1200 | O64: =IF(C$2=4.4,INDEX(A64:N73,MATCH(C$4,A64:A73,),MATCH(C$5,A64:N64,)),) -> 0 | Z64: 250 | AA64: 2 | AB64: 2 | AC64: 3 | AD64: 3 | AE64: 4 | AF64: 4 | AG64: 5 | AH64: 6 | AI64: 6 | AJ64: 7 | AK64: 9 | AL64: 10
A65: 0 | B65: =C65 -> 15 | C65: =C66 -> 15 | D65: 15 | E65: 40 | F65: 40 | G65: 40 | H65: 40 | I65: 40 | J65: 40 | K65: 40 | L65: 65 | M65: 65 | N65: 65
A66: 50 | B66: 15 | C66: =(ROUND(AA32, 0)*25)-10 -> 15 | D66: 15 | E66: 40 | F66: 40 | G66: 40 | H66: 40 | I66: 40 | J66: 40 | K66: 40 | L66: 65 | M66: 65 | N66: 65 | Z66: 300 | AA66: 2 | AB66: 2 | AC66: 3 | AD66: 4 | AE66: 4 | AF66: 5 | AG66: 6 | AH66: 6 | AI66: 8 | AJ66: 9 | AK66: 11 | AL66: 14
A67: 100 | B67: 15 | C67: 15 | D67: 40 | E67: 40 | F67: 40 | G67: 40 | H67: 65 | I67: 65 | J67: 65 | K67: 65 | L67: 90 | M67: 90 | N67: 90 | Z67: 350 | AA67: 2 | AB67: 3 | AC67: 4 | AD67: 4 | AE67: 5 | AF67: 6 | AG67: 6 | AH67: 8 | AI67: 9 | AJ67: 11 | AK67: 14 | AL67: 19
A68: 150 | B68: 15 | C68: 15 | D68: 40 | E68: 40 | F68: 65 | G68: 65 | H68: 65 | I68: 90 | J68: 90 | K68: 90 | L68: 115 | M68: 115 | N68: 140 | Z68: 400 | AA68: 2 | AB68: 3 | AC68: 4 | AD68: 5 | AE68: 5 | AF68: 6 | AG68: 7 | AH68: 9 | AI68: 11 | AJ68: 14 | AK68: 18 | AL68: 26
A69: 200 | B69: 40 | C69: 40 | D69: 40 | E69: 65 | F69: 65 | G69: 65 | H69: 90 | I69: 90 | J69: 90 | K69: 115 | L69: 140 | M69: 140 | N69: 165
A70: 250 | B70: 40 | C70: 40 | D70: 40 | E70: 65 | F70: 65 | G70: 90 | H70: 90 | I70: 115 | J70: 115 | K70: 140 | L70: 165 | M70: 190 | N70: 215 | Z70: Critical Headway (sec) = 4.7
A71: 300 | B71: 40 | C71: =(ROUND(AA38, 0)*25)-10 -> 40 | D71: 40 | E71: 65 | F71: 90 | G71: 90 | H71: 115 | I71: 115 | J71: 140 | K71: 165 | L71: 190 | M71: 240 | N71: 265 | Z71: Left-Turning Vehicles (in vph) | AA71: TRR 1500 - Lengths of Left-Turn Lanes at Unsignalized Intersections*
A72: 350 | B72: 40 | C72: 40 | D72: 65 | E72: 65 | F72: 90 | G72: 90 | H72: 115 | I72: 140 | J72: 165 | K72: 190 | L72: 240 | M72: 290 | N72: 365 | AA72: Opposing Volume (in vph)
A73: 400 | B73: 40 | C73: 40 | D73: 65 | E73: 90 | F73: 90 | G73: 115 | H73: 140 | I73: 165 | J73: 190 | K73: 215 | L73: 290 | M73: 365 | N73: 465 | AA73: 100 | AB73: 200 | AC73: 300 | AD73: 400 | AE73: 500 | AF73: 600 | AG73: 700 | AH73: 800 | AI73: 900 | AJ73: 1000 | AK73: 1100 | AL73: 1200
Z74: 50 | AA74: 1 | AB74: 1 | AC74: 2 | AD74: 2 | AE74: 2 | AF74: 2 | AG74: 2 | AH74: 2 | AI74: 3 | AJ74: 3 | AK74: 3 | AL74: 3
A75: Critical Headway (sec) = 4.5 | Z75: 100 | AA75: 1 | AB75: 2 | AC75: 2 | AD75: 2 | AE75: 3 | AF75: 3 | AG75: 3 | AH75: 3 | AI75: 4 | AJ75: 4 | AK75: 4 | AL75: 5
A76: Left-Turning Vehicles (in vph) | C76: TRR 1500 - Lengths of Left-Turn Lanes at Unsignalized Intersections* | Z76: 150 | AA76: 1 | AB76: 2 | AC76: 2 | AD76: 3 | AE76: 3 | AF76: 3 | AG76: 4 | AH76: 4 | AI76: 5 | AJ76: 5 | AK76: 6 | AL76: 6
C77: Opposing Volume (in vph) | Z77: 200 | AA77: 2 | AB77: 2 | AC77: 3 | AD77: 3 | AE77: 4 | AF77: 4 | AG77: 4 | AH77: 5 | AI77: 6 | AJ77: 6 | AK77: 7 | AL77: 8
B78: 0 | C78: 100 | D78: 200 | E78: 300 | F78: 400 | G78: 500 | H78: 600 | I78: 700 | J78: 800 | K78: 900 | L78: 1000 | M78: 1100 | N78: 1200 | O78: =IF(C$2=4.5,INDEX(A78:N87,MATCH(C$4,A78:A87,),MATCH(C$5,A78:N78,)),) -> 0 | Z78: 250 | AA78: 2 | AB78: 2 | AC78: 3 | AD78: 4 | AE78: 4 | AF78: 5 | AG78: 5 | AH78: 6 | AI78: 7 | AJ78: 8 | AK78: 9 | AL78: 11
A79: 0 | B79: =C79 -> 15 | C79: =C80 -> 15 | D79: 15 | E79: 40 | F79: 40 | G79: 40 | H79: 40 | I79: 40 | J79: 40 | K79: 65 | L79: 65 | M79: 65 | N79: 65
A80: 50 | B80: 15 | C80: =(ROUND(AA46, 0)*25)-10 -> 15 | D80: 15 | E80: 40 | F80: 40 | G80: 40 | H80: 40 | I80: 40 | J80: 40 | K80: 65 | L80: 65 | M80: 65 | N80: 65 | Z80: 300 | AA80: 2 | AB80: 3 | AC80: 3 | AD80: 4 | AE80: 4 | AF80: 5 | AG80: 6 | AH80: 7 | AI80: 8 | AJ80: 10 | AK80: 12 | AL80: 15
A81: 100 | B81: 15 | C81: 15 | D81: 40 | E81: 40 | F81: 40 | G81: 40 | H81: 65 | I81: 65 | J81: 65 | K81: 65 | L81: 90 | M81: 90 | N81: 90 | Z81: 350 | AA81: 2 | AB81: 3 | AC81: 4 | AD81: 4 | AE81: 5 | AF81: 6 | AG81: 7 | AH81: 8 | AI81: 9 | AJ81: 12 | AK81: 16 | AL81: 21
A82: 150 | B82: 15 | C82: 15 | D82: 40 | E82: 40 | F82: 65 | G82: 65 | H82: 65 | I82: 90 | J82: 90 | K82: 90 | L82: 115 | M82: 115 | N82: 140 | Z82: 400 | AA82: 2 | AB82: 3 | AC82: 4 | AD82: 5 | AE82: 5 | AF82: 7 | AG82: 8 | AH82: 9 | AI82: 11 | AJ82: 15 | AK82: 21 | AL82: 33
A83: 200 | B83: 40 | C83: 40 | D83: 40 | E83: 65 | F83: 65 | G83: 65 | H83: 90 | I83: 90 | J83: 115 | K83: 115 | L83: 140 | M83: 165 | N83: 190
A84: 250 | B84: 40 | C84: 40 | D84: 40 | E84: 65 | F84: 65 | G84: 90 | H84: 90 | I84: 115 | J84: 115 | K84: 140 | L84: 165 | M84: 190 | N84: 240 | Z84: Critical Headway (sec) = 4.8
A85: 300 | B85: 40 | C85: =(ROUND(AA52, 0)*25)-10 -> 40 | D85: 40 | E85: 65 | F85: 90 | G85: 90 | H85: 115 | I85: 115 | J85: 140 | K85: 165 | L85: 215 | M85: 240 | N85: 290 | Z85: Left-Turning Vehicles (in vph) | AA85: TRR 1500 - Lengths of Left-Turn Lanes at Unsignalized Intersections*
A86: 350 | B86: 40 | C86: 40 | D86: 65 | E86: 65 | F86: 90 | G86: 115 | H86: 115 | I86: 140 | J86: 165 | K86: 190 | L86: 240 | M86: 315 | N86: 390 | AA86: Opposing Volume (in vph)
A87: 400 | B87: 40 | C87: 40 | D87: 65 | E87: 90 | F87: 90 | G87: 115 | H87: 140 | I87: 165 | J87: 190 | K87: 240 | L87: 315 | M87: 390 | N87: 540 | AA87: 100 | AB87: 200 | AC87: 300 | AD87: 400 | AE87: 500 | AF87: 600 | AG87: 700 | AH87: 800 | AI87: 900 | AJ87: 1000 | AK87: 1100 | AL87: 1200
Z88: 50 | AA88: 1 | AB88: 1 | AC88: 2 | AD88: 2 | AE88: 2 | AF88: 2 | AG88: 2 | AH88: 3 | AI88: 3 | AJ88: 3 | AK88: 3 | AL88: 3
A89: Critical Headway (sec) = 4.6 | Z89: 100 | AA89: 1 | AB89: 2 | AC89: 2 | AD89: 2 | AE89: 3 | AF89: 3 | AG89: 3 | AH89: 3 | AI89: 4 | AJ89: 4 | AK89: 5 | AL89: 5
A90: Left-Turning Vehicles (in vph) | C90: TRR 1500 - Lengths of Left-Turn Lanes at Unsignalized Intersections* | Z90: 150 | AA90: 1 | AB90: 2 | AC90: 2 | AD90: 3 | AE90: 3 | AF90: 4 | AG90: 4 | AH90: 4 | AI90: 5 | AJ90: 5 | AK90: 6 | AL90: 7
C91: Opposing Volume (in vph) | Z91: 200 | AA91: 2 | AB91: 2 | AC91: 3 | AD91: 3 | AE91: 4 | AF91: 4 | AG91: 5 | AH91: 5 | AI91: 6 | AJ91: 7 | AK91: 8 | AL91: 9
B92: 0 | C92: 100 | D92: 200 | E92: 300 | F92: 400 | G92: 500 | H92: 600 | I92: 700 | J92: 800 | K92: 900 | L92: 1000 | M92: 1100 | N92: 1200 | O92: =IF(C$2=4.6,INDEX(A92:N101,MATCH(C$4,A92:A101,),MATCH(C$5,A92:N92,)),) -> 0 | Z92: 250 | AA92: 2 | AB92: 2 | AC92: 3 | AD92: 4 | AE92: 4 | AF92: 5 | AG92: 5 | AH92: 6 | AI92: 7 | AJ92: 8 | AK92: 10 | AL92: 12
A93: 0 | B93: =C93 -> 15 | C93: =C94 -> 15 | D93: 15 | E93: 40 | F93: 40 | G93: 40 | H93: 40 | I93: 40 | J93: 40 | K93: 65 | L93: 65 | M93: 65 | N93: 65
A94: 50 | B94: 15 | C94: =(ROUND(AA60, 0)*25)-10 -> 15 | D94: 15 | E94: 40 | F94: 40 | G94: 40 | H94: 40 | I94: 40 | J94: 40 | K94: 65 | L94: 65 | M94: 65 | N94: 65 | Z94: 300 | AA94: 2 | AB94: 3 | AC94: 3 | AD94: 4 | AE94: 5 | AF94: 5 | AG94: 6 | AH94: 7 | AI94: 8 | AJ94: 10 | AK94: 13 | AL94: 17
A95: 100 | B95: 15 | C95: 15 | D95: 40 | E95: 40 | F95: 40 | G95: 65 | H95: 65 | I95: 65 | J95: 65 | K95: 90 | L95: 90 | M95: 90 | N95: 115 | Z95: 350 | AA95: 2 | AB95: 3 | AC95: 4 | AD95: 4 | AE95: 5 | AF95: 6 | AG95: 7 | AH95: 8 | AI95: 10 | AJ95: 13 | AK95: 17 | AL95: 25
A96: 150 | B96: 15 | C96: 15 | D96: 40 | E96: 40 | F96: 65 | G96: 65 | H96: 65 | I96: 90 | J96: 90 | K96: 90 | L96: 115 | M96: 140 | N96: 140 | Z96: 400 | AA96: 2 | AB96: 3 | AC96: 4 | AD96: 5 | AE96: 6 | AF96: 7 | AG96: 8 | AH96: 10 | AI96: 12 | AJ96: 17 | AK96: 24 | AL96: 43
A97: 200 | B97: 40 | C97: 40 | D97: 40 | E97: 65 | F97: 65 | G97: 65 | H97: 90 | I97: 90 | J97: 115 | K97: 115 | L97: 140 | M97: 165 | N97: 190
A98: 250 | B98: 40 | C98: 40 | D98: 40 | E98: 65 | F98: 65 | G98: 90 | H98: 90 | I98: 115 | J98: 140 | K98: 140 | L98: 165 | M98: 215 | N98: 240 | Z98: Critical Headway (sec) = 4.9
A99: 300 | B99: 40 | C99: =(ROUND(AA66, 0)*25)-10 -> 40 | D99: 40 | E99: 65 | F99: 90 | G99: 90 | H99: 115 | I99: 140 | J99: 140 | K99: 190 | L99: 215 | M99: 265 | N99: 340 | Z99: Left-Turning Vehicles (in vph) | AA99: TRR 1500 - Lengths of Left-Turn Lanes at Unsignalized Intersections*
A100: 350 | B100: 40 | C100: 40 | D100: 65 | E100: 90 | F100: 90 | G100: 115 | H100: 140 | I100: 140 | J100: 190 | K100: 215 | L100: 265 | M100: 340 | N100: 465 | AA100: Opposing Volume (in vph)
A101: 400 | B101: 40 | C101: 40 | D101: 65 | E101: 90 | F101: 115 | G101: 115 | H101: 140 | I101: 165 | J101: 215 | K101: 265 | L101: 340 | M101: 440 | N101: 640 | AA101: 100 | AB101: 200 | AC101: 300 | AD101: 400 | AE101: 500 | AF101: 600 | AG101: 700 | AH101: 800 | AI101: 900 | AJ101: 1000 | AK101: 1100 | AL101: 1200
Z102: 50 | AA102: 1 | AB102: 1 | AC102: 2 | AD102: 2 | AE102: 2 | AF102: 2 | AG102: 2 | AH102: 3 | AI102: 3 | AJ102: 3 | AK102: 3 | AL102: 3
A103: Critical Headway (sec) = 4.7 | Z103: 100 | AA103: 1 | AB103: 2 | AC103: 2 | AD103: 2 | AE103: 3 | AF103: 3 | AG103: 3 | AH103: 4 | AI103: 4 | AJ103: 4 | AK103: 5 | AL103: 5
A104: Left-Turning Vehicles (in vph) | C104: TRR 1500 - Lengths of Left-Turn Lanes at Unsignalized Intersections* | Z104: 150 | AA104: 1 | AB104: 2 | AC104: 3 | AD104: 3 | AE104: 3 | AF104: 4 | AG104: 4 | AH104: 4 | AI104: 5 | AJ104: 6 | AK104: 6 | AL104: 7
C105: Opposing Volume (in vph) | Z105: 200 | AA105: 2 | AB105: 2 | AC105: 3 | AD105: 3 | AE105: 4 | AF105: 4 | AG105: 5 | AH105: 5 | AI105: 6 | AJ105: 7 | AK105: 8 | AL105: 10
B106: 0 | C106: 100 | D106: 200 | E106: 300 | F106: 400 | G106: 500 | H106: 600 | I106: 700 | J106: 800 | K106: 900 | L106: 1000 | M106: 1100 | N106: 1200 | O106: =IF(C$2=4.7,INDEX(A106:N115,MATCH(C$4,A106:A115,),MATCH(C$5,A106:N106,)),) -> 0 | Z106: 250 | AA106: 2 | AB106: 2 | AC106: 3 | AD106: 4 | AE106: 4 | AF106: 5 | AG106: 6 | AH106: 6 | AI106: 7 | AJ106: 9 | AK106: 11 | AL106: 13
A107: 0 | B107: =C107 -> 15 | C107: =C108 -> 15 | D107: 15 | E107: 40 | F107: 40 | G107: 40 | H107: 40 | I107: 40 | J107: 40 | K107: 65 | L107: 65 | M107: 65 | N107: 65
A108: 50 | B108: 15 | C108: =(ROUND(AA74, 0)*25)-10 -> 15 | D108: 15 | E108: 40 | F108: 40 | G108: 40 | H108: 40 | I108: 40 | J108: 40 | K108: 65 | L108: 65 | M108: 65 | N108: 65 | Z108: 300 | AA108: 2 | AB108: 3 | AC108: 3 | AD108: 4 | AE108: 5 | AF108: 6 | AG108: 6 | AH108: 7 | AI108: 9 | AJ108: 11 | AK108: 14 | AL108: 19
A109: 100 | B109: 15 | C109: 15 | D109: 40 | E109: 40 | F109: 40 | G109: 65 | H109: 65 | I109: 65 | J109: 65 | K109: 90 | L109: 90 | M109: 90 | N109: 115 | Z109: 350 | AA109: 2 | AB109: 3 | AC109: 4 | AD109: 5 | AE109: 5 | AF109: 6 | AG109: 7 | AH109: 9 | AI109: 11 | AJ109: 14 | AK109: 20 | AL109: 30
A110: 150 | B110: 15 | C110: 15 | D110: 40 | E110: 40 | F110: 65 | G110: 65 | H110: 65 | I110: 90 | J110: 90 | K110: 115 | L110: 115 | M110: 140 | N110: 140 | Z110: 400 | AA110: 2 | AB110: 3 | AC110: 4 | AD110: 5 | AE110: 6 | AF110: 7 | AG110: 9 | AH110: 10 | AI110: 13 | AJ110: 19 | AK110: 29 | AL110: 64
A111: 200 | B111: 40 | C111: 40 | D111: 40 | E111: 65 | F111: 65 | G111: 90 | H111: 90 | I111: 90 | J111: 115 | K111: 140 | L111: 140 | M111: 165 | N111: 190
A112: 250 | B112: 40 | C112: 40 | D112: 40 | E112: 65 | F112: 90 | G112: 90 | H112: 115 | I112: 115 | J112: 140 | K112: 165 | L112: 190 | M112: 215 | N112: 265 | Z112: Critical Headway (sec) = 5.1
A113: 300 | B113: 40 | C113: =(ROUND(AA80, 0)*25)-10 -> 40 | D113: 65 | E113: 65 | F113: 90 | G113: 90 | H113: 115 | I113: 140 | J113: 165 | K113: 190 | L113: 240 | M113: 290 | N113: 365 | Z113: Left-Turning Vehicles (in vph) | AA113: TRR 1500 - Lengths of Left-Turn Lanes at Unsignalized Intersections*
A114: 350 | B114: 40 | C114: 40 | D114: 65 | E114: 90 | F114: 90 | G114: 115 | H114: 140 | I114: 165 | J114: 190 | K114: 215 | L114: 290 | M114: 390 | N114: 515 | AA114: Opposing Volume (in vph)
A115: 400 | B115: 40 | C115: 40 | D115: 65 | E115: 90 | F115: 115 | G115: 115 | H115: 165 | I115: 190 | J115: 215 | K115: 265 | L115: 365 | M115: 515 | N115: 815 | AA115: 100 | AB115: 200 | AC115: 300 | AD115: 400 | AE115: 500 | AF115: 600 | AG115: 700 | AH115: 800 | AI115: 900 | AJ115: 1000 | AK115: 1100 | AL115: 1200
Z116: 50 | AA116: 1 | AB116: 1 | AC116: 2 | AD116: 2 | AE116: 2 | AF116: 2 | AG116: 2 | AH116: 3 | AI116: 3 | AJ116: 3 | AK116: 3 | AL116: 4
A117: Critical Headway (sec) = 4.8 | Z117: 100 | AA117: 1 | AB117: 2 | AC117: 2 | AD117: 3 | AE117: 3 | AF117: 3 | AG117: 3 | AH117: 4 | AI117: 4 | AJ117: 5 | AK117: 5 | AL117: 6
A118: Left-Turning Vehicles (in vph) | C118: TRR 1500 - Lengths of Left-Turn Lanes at Unsignalized Intersections* | Z118: 150 | AA118: 2 | AB118: 2 | AC118: 3 | AD118: 3 | AE118: 3 | AF118: 4 | AG118: 4 | AH118: 5 | AI118: 5 | AJ118: 6 | AK118: 7 | AL118: 8
C119: Opposing Volume (in vph) | Z119: 200 | AA119: 2 | AB119: 2 | AC119: 3 | AD119: 3 | AE119: 4 | AF119: 4 | AG119: 5 | AH119: 6 | AI119: 6 | AJ119: 8 | AK119: 9 | AL119: 11
B120: 0 | C120: 100 | D120: 200 | E120: 300 | F120: 400 | G120: 500 | H120: 600 | I120: 700 | J120: 800 | K120: 900 | L120: 1000 | M120: 1100 | N120: 1200 | O120: =IF(C$2=4.8,INDEX(A120:N129,MATCH(C$4,A120:A129,),MATCH(C$5,A120:N120,)),) -> 0 | Z120: 250 | AA120: 2 | AB120: 2 | AC120: 3 | AD120: 4 | AE120: 4 | AF120: 5 | AG120: 6 | AH120: 7 | AI120: 8 | AJ120: 10 | AK120: 13 | AL120: 16
A121: 0 | B121: =C121 -> 15 | C121: =C122 -> 15 | D121: 15 | E121: 40 | F121: 40 | G121: 40 | H121: 40 | I121: 40 | J121: 65 | K121: 65 | L121: 65 | M121: 65 | N121: 65
A122: 50 | B122: 15 | C122: =(ROUND(AA88, 0)*25)-10 -> 15 | D122: 15 | E122: 40 | F122: 40 | G122: 40 | H122: 40 | I122: 40 | J122: 65 | K122: 65 | L122: 65 | M122: 65 | N122: 65 | Z122: 300 | AA122: 2 | AB122: 3 | AC122: 4 | AD122: 4 | AE122: 5 | AF122: 6 | AG122: 7 | AH122: 8 | AI122: 10 | AJ122: 13 | AK122: 18 | AL122: 26
A123: 100 | B123: 15 | C123: 15 | D123: 40 | E123: 40 | F123: 40 | G123: 65 | H123: 65 | I123: 65 | J123: 65 | K123: 90 | L123: 90 | M123: 115 | N123: 115 | Z123: 350 | AA123: 2 | AB123: 3 | AC123: 4 | AD123: 5 | AE123: 6 | AF123: 7 | AG123: 8 | AH123: 10 | AI123: 12 | AJ123: 17 | AK123: 26 | AL123: 53
A124: 150 | B124: 15 | C124: 15 | D124: 40 | E124: 40 | F124: 65 | G124: 65 | H124: 90 | I124: 90 | J124: 90 | K124: 115 | L124: 115 | M124: 140 | N124: 165 | Z124: 400 | AA124: 2 | AB124: 3 | AC124: 4 | AD124: 5 | AE124: 6 | AF124: 8 | AG124: 10 | AH124: 12 | AI124: 16 | AJ124: 24 | AK124: 48 | AL124: 70
A125: 200 | B125: 40 | C125: 40 | D125: 40 | E125: 65 | F125: 65 | G125: 90 | H125: 90 | I125: 115 | J125: 115 | K125: 140 | L125: 165 | M125: 190 | N125: 215
A126: 250 | B126: 40 | C126: 40 | D126: 40 | E126: 65 | F126: 90 | G126: 90 | H126: 115 | I126: 115 | J126: 140 | K126: 165 | L126: 190 | M126: 240 | N126: 290 | Z126: Critical Headway (sec) = 5.5
A127: 300 | B127: 40 | C127: =(ROUND(AA94, 0)*25)-10 -> 40 | D127: 65 | E127: 65 | F127: 90 | G127: 115 | H127: 115 | I127: 140 | J127: 165 | K127: 190 | L127: 240 | M127: 315 | N127: 415 | Z127: Left-Turning Vehicles (in vph) | AA127: TRR 1500 - Lengths of Left-Turn Lanes at Unsignalized Intersections*
A128: 350 | B128: 40 | C128: 40 | D128: 65 | E128: 90 | F128: 90 | G128: 115 | H128: 140 | I128: 165 | J128: 190 | K128: 240 | L128: 315 | M128: 415 | N128: 615 | AA128: Opposing Volume (in vph)
A129: 400 | B129: 40 | C129: 40 | D129: 65 | E129: 90 | F129: 115 | G129: 140 | H129: 165 | I129: 190 | J129: 240 | K129: 290 | L129: 415 | M129: 590 | N129: 1065 | AA129: 100 | AB129: 200 | AC129: 300 | AD129: 400 | AE129: 500 | AF129: 600 | AG129: 700 | AH129: 800 | AI129: 900 | AJ129: 1000 | AK129: 1100 | AL129: 1200
Z130: 50 | AA130: 1 | AB130: 1 | AC130: 2 | AD130: 2 | AE130: 2 | AF130: 2 | AG130: 3 | AH130: 3 | AI130: 3 | AJ130: 3 | AK130: 4 | AL130: 4
A131: Critical Headway (sec) = 4.9 | Z131: 100 | AA131: 1 | AB131: 2 | AC131: 2 | AD131: 3 | AE131: 3 | AF131: 3 | AG131: 4 | AH131: 4 | AI131: 5 | AJ131: 5 | AK131: 6 | AL131: 6
A132: Left-Turning Vehicles (in vph) | C132: TRR 1500 - Lengths of Left-Turn Lanes at Unsignalized Intersections* | Z132: 150 | AA132: 2 | AB132: 2 | AC132: 3 | AD132: 3 | AE132: 4 | AF132: 4 | AG132: 5 | AH132: 5 | AI132: 6 | AJ132: 7 | AK132: 8 | AL132: 10
C133: Opposing Volume (in vph) | Z133: 200 | AA133: 2 | AB133: 2 | AC133: 3 | AD133: 4 | AE133: 4 | AF133: 5 | AG133: 6 | AH133: 7 | AI133: 8 | AJ133: 10 | AK133: 12 | AL133: 15
B134: 0 | C134: 100 | D134: 200 | E134: 300 | F134: 400 | G134: 500 | H134: 600 | I134: 700 | J134: 800 | K134: 900 | L134: 1000 | M134: 1100 | N134: 1200 | O134: =IF(C$2=4.9,INDEX(A134:N143,MATCH(C$4,A134:A143,),MATCH(C$5,A134:N134,)),) -> 0 | Z134: 250 | AA134: 2 | AB134: 3 | AC134: 4 | AD134: 4 | AE134: 5 | AF134: 6 | AG134: 7 | AH134: 8 | AI134: 10 | AJ134: 13 | AK134: 18 | AL134: 27
A135: 0 | B135: =C135 -> 15 | C135: =C136 -> 15 | D135: 15 | E135: 40 | F135: 40 | G135: 40 | H135: 40 | I135: 40 | J135: 65 | K135: 65 | L135: 65 | M135: 65 | N135: 65
A136: 50 | B136: 15 | C136: =(ROUND(AA102, 0)*25)-10 -> 15 | D136: 15 | E136: 40 | F136: 40 | G136: 40 | H136: 40 | I136: 40 | J136: 65 | K136: 65 | L136: 65 | M136: 65 | N136: 65 | Z136: 300 | AA136: 2 | AB136: 3 | AC136: 4 | AD136: 5 | AE136: 6 | AF136: 7 | AG136: 8 | AH136: 10 | AI136: 13 | AJ136: 19 | AK136: 32 | AL136: 91
A137: 100 | B137: 15 | C137: 15 | D137: 40 | E137: 40 | F137: 40 | G137: 65 | H137: 65 | I137: 65 | J137: 90 | K137: 90 | L137: 90 | M137: 115 | N137: 115 | Z137: 350 | AA137: 2 | AB137: 3 | AC137: 4 | AD137: 5 | AE137: 6 | AF137: 8 | AG137: 10 | AH137: 13 | AI137: 18 | AJ137: 30 | AK137: 109 | AL137: 109
A138: 150 | B138: 15 | C138: 15 | D138: 40 | E138: 65 | F138: 65 | G138: 65 | H138: 90 | I138: 90 | J138: 90 | K138: 115 | L138: 140 | M138: 140 | N138: 165 | Z138: 400 | AA138: 2 | AB138: 3 | AC138: 5 | AD138: 6 | AE138: 7 | AF138: 9 | AG138: 12 | AH138: 16 | AI138: 25 | AJ138: 66 | AK138: 109 | AL138: 109
A139: 200 | B139: 40 | C139: 40 | D139: 40 | E139: 65 | F139: 65 | G139: 90 | H139: 90 | I139: 115 | J139: 115 | K139: 140 | L139: 165 | M139: 190 | N139: 240
A140: 250 | B140: 40 | C140: 40 | D140: 40 | E140: 65 | F140: 90 | G140: 90 | H140: 115 | I140: 140 | J140: 140 | K140: 165 | L140: 215 | M140: 265 | N140: 315
A141: 300 | B141: 40 | C141: =(ROUND(AA108, 0)*25)-10 -> 40 | D141: 65 | E141: 65 | F141: 90 | G141: 115 | H141: 140 | I141: 140 | J141: 165 | K141: 215 | L141: 265 | M141: 340 | N141: 465
A142: 350 | B142: 40 | C142: 40 | D142: 65 | E142: 90 | F142: 115 | G142: 115 | H142: 140 | I142: 165 | J142: 215 | K142: 265 | L142: 340 | M142: 490 | N142: 740
A143: 400 | B143: 40 | C143: 40 | D143: 65 | E143: 90 | F143: 115 | G143: 140 | H143: 165 | I143: 215 | J143: 240 | K143: 315 | L143: 465 | M143: 715 | N143: 1590
A145: Critical Headway (sec) = 5.1
A146: Left-Turning Vehicles (in vph) | C146: TRR 1500 - Lengths of Left-Turn Lanes at Unsignalized Intersections*
C147: Opposing Volume (in vph)
B148: 0 | C148: 100 | D148: 200 | E148: 300 | F148: 400 | G148: 500 | H148: 600 | I148: 700 | J148: 800 | K148: 900 | L148: 1000 | M148: 1100 | N148: 1200 | O148: =IF(C$2=5.1,INDEX(A148:N157,MATCH(C$4,A148:A157,),MATCH(C$5,A148:N148,)),) -> 0
A149: 0 | B149: =C149 -> 15 | C149: =C150 -> 15 | D149: 15 | E149: 40 | F149: 40 | G149: 40 | H149: 40 | I149: 40 | J149: 65 | K149: 65 | L149: 65 | M149: 65 | N149: 90
A150: 50 | B150: 15 | C150: =(ROUND(AA116, 0)*25)-10 -> 15 | D150: 15 | E150: 40 | F150: 40 | G150: 40 | H150: 40 | I150: 40 | J150: 65 | K150: 65 | L150: 65 | M150: 65 | N150: 90
A151: 100 | B151: 15 | C151: 15 | D151: 40 | E151: 40 | F151: 65 | G151: 65 | H151: 65 | I151: 65 | J151: 90 | K151: 90 | L151: 115 | M151: 115 | N151: 140
A152: 150 | B152: 40 | C152: 40 | D152: 40 | E152: 65 | F152: 65 | G152: 65 | H152: 90 | I152: 90 | J152: 115 | K152: 115 | L152: 140 | M152: 165 | N152: 190
A153: 200 | B153: 40 | C153: 40 | D153: 40 | E153: 65 | F153: 65 | G153: 90 | H153: 90 | I153: 115 | J153: 140 | K153: 140 | L153: 190 | M153: 215 | N153: 265
A154: 250 | B154: 40 | C154: 40 | D154: 40 | E154: 65 | F154: 90 | G154: 90 | H154: 115 | I154: 140 | J154: 165 | K154: 190 | L154: 240 | M154: 315 | N154: 390
A155: 300 | B155: 40 | C155: =(ROUND(AA122, 0)*25)-10 -> 40 | D155: 65 | E155: 90 | F155: 90 | G155: 115 | H155: 140 | I155: 165 | J155: 190 | K155: 240 | L155: 315 | M155: 440 | N155: 640
A156: 350 | B156: 40 | C156: 40 | D156: 65 | E156: 90 | F156: 115 | G156: 140 | H156: 165 | I156: 190 | J156: 240 | K156: 290 | L156: 415 | M156: 640 | N156: 1315
A157: 400 | B157: 40 | C157: 40 | D157: 65 | E157: 90 | F157: 115 | G157: 140 | H157: 190 | I157: 240 | J157: 290 | K157: 390 | L157: 590 | M157: 1190 | N157: 1740
A159: Critical Headway (sec) = 5.5
A160: Left-Turning Vehicles (in vph) | C160: TRR 1500 - Lengths of Left-Turn Lanes at Unsignalized Intersections*
C161: Opposing Volume (in vph)
B162: 0 | C162: =C163 -> 15 | D162: =D163 -> 15 | E162: =E163 -> 40 | F162: =F163 -> 40 | G162: =G163 -> 40 | H162: =H163 -> 40 | I162: =I163 -> 65 | J162: =J163 -> 65 | K162: =K163 -> 65 | L162: =L163 -> 65 | M162: =M163 -> 90 | N162: =N163 -> 90 | O162: =IF(C$2=5.5,INDEX(A162:N171,MATCH(C$4,A162:A171,),MATCH(C$5,A162:N162,)),) -> 0
A163: 0 | B163: =C163 -> 15 | C163: 15 | D163: 15 | E163: 40 | F163: 40 | G163: 40 | H163: 40 | I163: 65 | J163: 65 | K163: 65 | L163: 65 | M163: 90 | N163: 90
A164: 50 | B164: 15 | C164: =(ROUND(AA130, 0)*25)-10 -> 15 | D164: 15 | E164: 40 | F164: 40 | G164: 40 | H164: 40 | I164: 65 | J164: 65 | K164: 65 | L164: 65 | M164: 90 | N164: 90
A165: 100 | B165: 15 | C165: 15 | D165: 40 | E165: 40 | F165: 65 | G165: 65 | H165: 65 | I165: 90 | J165: 90 | K165: 115 | L165: 115 | M165: 140 | N165: 140
A166: 150 | B166: 40 | C166: 40 | D166: 40 | E166: 65 | F166: 65 | G166: 90 | H166: 90 | I166: 115 | J166: 115 | K166: 140 | L166: 165 | M166: 190 | N166: 240
A167: 200 | B167: 40 | C167: 40 | D167: 40 | E167: 65 | F167: 90 | G167: 90 | H167: 115 | I167: 140 | J167: 165 | K167: 190 | L167: 240 | M167: 290 | N167: 365
A168: 250 | B168: 40 | C168: 40 | D168: 65 | E168: 90 | F168: 90 | G168: 115 | H168: 140 | I168: 165 | J168: 190 | K168: 240 | L168: 315 | M168: 440 | N168: 665
A169: 300 | B169: 40 | C169: =(ROUND(AA136, 0)*25)-10 -> 40 | D169: 65 | E169: 90 | F169: 115 | G169: 140 | H169: 165 | I169: 190 | J169: 240 | K169: 315 | L169: 465 | M169: 790 | N169: 2265
A170: 350 | B170: 40 | C170: 40 | D170: 65 | E170: 90 | F170: 115 | G170: 140 | H170: 190 | I170: 240 | J170: 315 | K170: 440 | L170: 740 | M170: 2715 | N170: 2715
A171: 400 | B171: 40 | C171: 40 | D171: 65 | E171: 115 | F171: 140 | G171: 165 | H171: 215 | I171: 290 | J171: 390 | K171: 615 | L171: 1640 | M171: 2715 | N171: 2715

Sheet R>50+Calcs (hidden)
B1: Projected ADT | C1: =IF('Aux Lane Inputs-Tab 2'!K11<2000,E1,IF('Aux Lane Inputs-Tab 2'!K11<4000,E2,IF('Aux Lane Inputs-Tab 2'!K11<10000,E3,IF('Aux Lane Inputs-Tab 2'!K11>10000,E4,0)))) -> Less Than 2,000 | E1: Less Than 2,000 | G1: IF(A6>0,A6,IF(B6>0,B6,IF(C6>0,C6),IF(C6>0,C6,IF(D6>0,D6,IF(E6>0,E6,IF(F6>0,F6,IF(G6>0,G6,IF(H6>0,H6,IF(I6>0,I6,IF(J6>0,J6,IF(K6>0,K6,IF(L6>0,L6,IF(M6>0,M6,IF(N6>0,N6,IF(O6>0,O6,IF(P6>0,P6,IF(Q6>0,Q6,IF(R6>0,R6)))))))))))))))))) | I1: If Heavy veh >=10%
B2: RT Turn ADT | C2: ='Aux Lane Inputs-Tab 2'!K14 -> 0-50 | E2: 2,000 to 4,000 Vehicles | G2: RTL Length | H2: =SUM(A6:S6)+I2 ->  | I2: =IF(AND('Aux Lane Inputs-Tab 2'!E17>=10,SUM(A6:S6)>0),25,0) ->  | L2: =IF(-3<='Aux Lane Inputs-Tab 2'!K16*100<=3,0,'Aux Lane Inputs-Tab 2'!K16*100) -> 0
B3: Posted SL | C3: ='Aux Lane Inputs-Tab 2'!K6 -> 0 | E3: 4,001 to 10,000 Vehicles | I3: =IF(#REF!="RCP",INDEX($BL$69:$BZ$89,MATCH(#REF!,$BL$69:$BL$89,),MATCH(#REF!,$BL$69:$BZ$69,)),IF(#REF!="ERCP",INDEX($CA$69:$CN$89,MATCH(#REF!,$CA$69:$CA$89,),MATCH(#REF!,$CA$69:$CN$69,)),INDEX($BL$97:$BX$116,MATCH(#REF!,$BL$97:$BL$115,),MATCH(#REF!,$BL$97:$BX$97,)))) ->  | J3: Example of Indexing
B4: Roadway Slope | C4: =IF(-3<='Aux Lane Inputs-Tab 2'!K16*100<=3,0,ROUNDDOWN('Aux Lane Inputs-Tab 2'!K16*100,0)) -> 0 | D4: =ROUNDUP(C4,0) -> 0 | E4: Over 10,000 Vehicles | F4: =C1&C2 -> Less Than 2,0000-50
A5: -1 | B5: -2 | C5: -3 | D5: -4 | E5: -5 | F5: -6 | G5: -7 | H5: -8 | I5: -9 | J5: 0 | K5: 1 | L5: 2 | M5: 3 | N5: 4 | O5: 5 | P5: 6 | Q5: 7 | R5: 8 | S5: 9
A6: =M10 -> 0 | B6: =M41 -> 0 | C6: =M72 -> 0 | D6: =M103 -> 0 | E6: =M134 -> 0 | F6: =M166 -> 0 | G6: =M197 -> 0 | H6: =M228 -> 0 | I6: =M259 -> 0 | J6: =M290 ->  | K6: =M321 -> 0 | L6: =M352 -> 0 | M6: =M383 -> 0 | N6: =M414 -> 0 | O6: =M445 -> 0 | P6: =M476 -> 0 | Q6: =M507 -> 0 | R6: =M538 -> 0 | S6: =M569 -> 0
B7: Right-Turn Lane Warrants (R > 50') G = 1% Downgrade
B8: Projected 10-Year Roadway ADT | C8: Right-turn ADT | D8: Assumed Speed Change on Through Lane | E8: Highway Posted Speed
M10: =IF(D$4=-1,INDEX(E11:L35,MATCH(F$4,E11:E35,),MATCH(C$3,E11:L11,)),) -> 0
F11: 25 | G11: 30 | H11: 35 | I11: 40 | J11: 45 | K11: 50 | L11: 55
B12: Less Than 2,000 | C12: 0-50 | E12: =B12&C12 -> Less Than 2,0000-50 | F12: - | G12: - | H12: - | I12: - | J12: - | K12: - | L12: -
B13: Less Than 2,000 | C13: 51 - 100 | E13: =B13&C13 -> Less Than 2,00051 - 100 | F13: - | G13: - | H13: - | I13: - | J13: - | K13: - | L13: -
B14: Less Than 2,000 | C14: 101 - 200 | D14: 20 MPH | E14: Less Than 2,000101 - 200 | F14: - | G14: 100 | H14: 100 | I14: 135 | J14: 135 | K14: 150 | L14: 195
B15: Less Than 2,000 | C15: 201 - 300 | E15: Less Than 2,000201 - 300 | F15: - | G15: 100 | H15: 100 | I15: 135 | J15: 150 | K15: 195 | L15: 240
B16: Less Than 2,000 | C16: 301 - 400 | E16: Less Than 2,000301 - 400 | F16: - | G16: 100 | H16: 100 | I16: 135 | J16: 150 | K16: 195 | L16: 240
B17: Less Than 2,000 | C17: Over 400 | D17: 15 MPH | E17: Less Than 2,000Over 400 | F17: - | G17: 100 | H17: 100 | I17: 135 | J17: 150 | K17: 195 | L17: 240
B18: 2,000 to 4,000 Vehicles | C18: 0-50 | E18: =B18&C18 -> 2,000 to 4,000 Vehicles0-50 | F18: - | G18: - | H18: - | I18: - | J18: - | K18: - | L18: -
B19: 2,000 to 4,000 Vehicles | C19: 51 - 100 | E19: 2,000 to 4,000 Vehicles51 - 100 | F19: - | G19: - | H19: - | I19: - | J19: - | K19: - | L19: -
B20: 2,000 to 4,000 Vehicles | C20: 101 - 200 | D20: 20 MPH | E20: 2,000 to 4,000 Vehicles101 - 200 | F20: - | G20: 100 | H20: 100 | I20: 135 | J20: 135 | K20: 150 | L20: 195
B21: 2,000 to 4,000 Vehicles | C21: 201 - 300 | D21: 20 MPH | E21: 2,000 to 4,000 Vehicles201 - 300 | F21: - | G21: 100 | H21: 100 | I21: 135 | J21: 150 | K21: 195 | L21: 240
B22: 2,000 to 4,000 Vehicles | C22: 301 - 400 | D22: 15 MPH | E22: 2,000 to 4,000 Vehicles301 - 400 | F22: - | G22: 100 | H22: 100 | I22: 135 | J22: 150 | K22: 195 | L22: 240
B23: 2,000 to 4,000 Vehicles | C23: Over 400 | D23: 10 MPH | E23: 2,000 to 4,000 VehiclesOver 400 | F23: 100 | G23: 110 | H23: 110 | I23: 150 | J23: 195 | K23: 240 | L23: 295
B24: 4,001 to 10,000 Vehicles | C24: 0-50 | E24: =B24&C24 -> 4,001 to 10,000 Vehicles0-50 | F24: - | G24: - | H24: - | I24: - | J24: - | K24: - | L24: -
B25: 4,001 to 10,000 Vehicles | C25: 51 - 100 | D25: 20 MPH | E25: 4,001 to 10,000 Vehicles51 - 100 | F25: - | G25: 135 | H25: 135 | I25: 135 | J25: 135 | K25: 150 | L25: 195
B26: 4,001 to 10,000 Vehicles | C26: 101 - 200 | D26: 15 MPH | E26: 4,001 to 10,000 Vehicles101 - 200 | F26: - | G26: 135 | H26: 135 | I26: 135 | J26: 150 | K26: 195 | L26: 240
B27: 4,001 to 10,000 Vehicles | C27: 201 - 300 | E27: 4,001 to 10,000 Vehicles201 - 300 | F27: 135 | G27: 135 | H27: 135 | I27: 150 | J27: 195 | K27: 240 | L27: 295
B28: 4,001 to 10,000 Vehicles | C28: 301 - 400 | D28: 10 MPH | E28: 4,001 to 10,000 Vehicles301 - 400 | F28: 135 | G28: 135 | H28: 135 | I28: 150 | J28: 195 | K28: 240 | L28: 295
B29: 4,001 to 10,000 Vehicles | C29: Over 400 | D29: 5 MPH | E29: 4,001 to 10,000 VehiclesOver 400 | F29: 135 | G29: 150 | H29: 150 | I29: 195 | J29: 240 | K29: 295 | L29: 355
B30: Over 10,000 Vehicles | C30: 0-50 | E30: =B30&C30 -> Over 10,000 Vehicles0-50 | F30: - | G30: - | H30: - | I30: - | J30: - | K30: - | L30: -
B31: Over 10,000 Vehicles | C31: 51 - 100 | D31: 15 MPH | E31: Over 10,000 Vehicles51 - 100 | F31: - | G31: 135 | H31: 135 | I31: 135 | J31: 150 | K31: 195 | L31: 240
B32: Over 10,000 Vehicles | C32: 101 - 200 | D32: 10 MPH | E32: Over 10,000 Vehicles101 - 200 | F32: 135 | G32: 135 | H32: 135 | I32: 150 | J32: 195 | K32: 240 | L32: 295
B33: Over 10,000 Vehicles | C33: 201 - 300 | D33: 5 MPH | E33: Over 10,000 Vehicles201 - 300 | F33: 135 | G33: 150 | H33: 150 | I33: 195 | J33: 240 | K33: 295 | L33: 355
B34: Over 10,000 Vehicles | C34: 301 - 400 | E34: Over 10,000 Vehicles301 - 400 | F34: 135 | G34: 150 | H34: 150 | I34: 195 | J34: 240 | K34: 295 | L34: 355
B35: Over 10,000 Vehicles | C35: Over 400 | D35: 0 MPH | E35: Over 10,000 VehiclesOver 400 | F35: 135 | G35: 195 | H35: 195 | I35: 240 | J35: 295 | K35: 355 | L35: 415
B38: Right-Turn Lane Warrants (R > 50') G = 2% Downgrade
B39: Projected 10-Year Roadway ADT | C39: Right-turn ADT | D39: Assumed Speed Change on Through Lane | E39: Highway Posted Speed
M41: =IF(D$4=-2,INDEX(E42:L66,MATCH(F$4,E42:E66,),MATCH(C$3,E42:L42,)),) -> 0
F42: 25 | G42: 30 | H42: 35 | I42: 40 | J42: 45 | K42: 50 | L42: 55
B43: Less Than 2,000 | C43: 0-50 | E43: =B43&C43 -> Less Than 2,0000-50 | F43: - | G43: - | H43: - | I43: - | J43: - | K43: - | L43: -
B44: Less Than 2,000 | C44: 51 - 100 | E44: =B44&C44 -> Less Than 2,00051 - 100 | F44: - | G44: - | H44: - | I44: - | J44: - | K44: - | L44: -
B45: Less Than 2,000 | C45: 101 - 200 | D45: 20 MPH | E45: Less Than 2,000101 - 200 | F45: - | G45: 100 | H45: 100 | I45: 135 | J45: 135 | K45: 150 | L45: 195
B46: Less Than 2,000 | C46: 201 - 300 | E46: Less Than 2,000201 - 300 | F46: - | G46: 100 | H46: 100 | I46: 135 | J46: 150 | K46: 195 | L46: 240
B47: Less Than 2,000 | C47: 301 - 400 | E47: Less Than 2,000301 - 400 | F47: - | G47: 100 | H47: 100 | I47: 135 | J47: 150 | K47: 195 | L47: 240
B48: Less Than 2,000 | C48: Over 400 | D48: 15 MPH | E48: Less Than 2,000Over 400 | F48: - | G48: 100 | H48: 100 | I48: 135 | J48: 150 | K48: 195 | L48: 240
B49: 2,000 to 4,000 Vehicles | C49: 0-50 | E49: =B49&C49 -> 2,000 to 4,000 Vehicles0-50 | F49: - | G49: - | H49: - | I49: - | J49: - | K49: - | L49: -
B50: 2,000 to 4,000 Vehicles | C50: 51 - 100 | E50: 2,000 to 4,000 Vehicles51 - 100 | F50: - | G50: - | H50: - | I50: - | J50: - | K50: - | L50: -
B51: 2,000 to 4,000 Vehicles | C51: 101 - 200 | D51: 20 MPH | E51: 2,000 to 4,000 Vehicles101 - 200 | F51: - | G51: 100 | H51: 100 | I51: 135 | J51: 135 | K51: 150 | L51: 195
B52: 2,000 to 4,000 Vehicles | C52: 201 - 300 | E52: 2,000 to 4,000 Vehicles201 - 300 | F52: - | G52: 100 | H52: 100 | I52: 135 | J52: 150 | K52: 195 | L52: 240
B53: 2,000 to 4,000 Vehicles | C53: 301 - 400 | D53: 15 MPH | E53: 2,000 to 4,000 Vehicles301 - 400 | F53: - | G53: 100 | H53: 100 | I53: 135 | J53: 150 | K53: 195 | L53: 240
B54: 2,000 to 4,000 Vehicles | C54: Over 400 | D54: 10 MPH | E54: 2,000 to 4,000 VehiclesOver 400 | F54: 100 | G54: 110 | H54: 110 | I54: 150 | J54: 195 | K54: 240 | L54: 295
B55: 4,001 to 10,000 Vehicles | C55: 0-50 | E55: =B55&C55 -> 4,001 to 10,000 Vehicles0-50 | F55: - | G55: - | H55: - | I55: - | J55: - | K55: - | L55: -
B56: 4,001 to 10,000 Vehicles | C56: 51 - 100 | D56: 20 MPH | E56: 4,001 to 10,000 Vehicles51 - 100 | F56: - | G56: 135 | H56: 135 | I56: 135 | J56: 135 | K56: 150 | L56: 195
B57: 4,001 to 10,000 Vehicles | C57: 101 - 200 | D57: 15 MPH | E57: 4,001 to 10,000 Vehicles101 - 200 | F57: - | G57: 135 | H57: 135 | I57: 135 | J57: 150 | K57: 195 | L57: 240
B58: 4,001 to 10,000 Vehicles | C58: 201 - 300 | E58: 4,001 to 10,000 Vehicles201 - 300 | F58: 135 | G58: 135 | H58: 135 | I58: 150 | J58: 195 | K58: 240 | L58: 295
B59: 4,001 to 10,000 Vehicles | C59: 301 - 400 | D59: 10 MPH | E59: 4,001 to 10,000 Vehicles301 - 400 | F59: 135 | G59: 135 | H59: 135 | I59: 150 | J59: 195 | K59: 240 | L59: 295
B60: 4,001 to 10,000 Vehicles | C60: Over 400 | D60: 5 MPH | E60: 4,001 to 10,000 VehiclesOver 400 | F60: 135 | G60: 150 | H60: 150 | I60: 195 | J60: 240 | K60: 295 | L60: 355
B61: Over 10,000 Vehicles | C61: 0-50 | E61: =B61&C61 -> Over 10,000 Vehicles0-50 | F61: - | G61: - | H61: - | I61: - | J61: - | K61: - | L61: -
B62: Over 10,000 Vehicles | C62: 51 - 100 | D62: 15 MPH | E62: Over 10,000 Vehicles51 - 100 | F62: - | G62: 135 | H62: 135 | I62: 135 | J62: 150 | K62: 195 | L62: 240
B63: Over 10,000 Vehicles | C63: 101 - 200 | D63: 10 MPH | E63: Over 10,000 Vehicles101 - 200 | F63: 135 | G63: 135 | H63: 135 | I63: 150 | J63: 195 | K63: 240 | L63: 295
B64: Over 10,000 Vehicles | C64: 201 - 300 | D64: 5 MPH | E64: Over 10,000 Vehicles201 - 300 | F64: 135 | G64: 150 | H64: 150 | I64: 195 | J64: 240 | K64: 295 | L64: 355
B65: Over 10,000 Vehicles | C65: 301 - 400 | D65: 5 MPH | E65: Over 10,000 Vehicles301 - 400 | F65: 135 | G65: 150 | H65: 150 | I65: 195 | J65: 240 | K65: 295 | L65: 355
B66: Over 10,000 Vehicles | C66: Over 400 | D66: 0 MPH | E66: Over 10,000 VehiclesOver 400 | F66: 135 | G66: 195 | H66: 195 | I66: 240 | J66: 295 | K66: 355 | L66: 415
B69: Right-Turn Lane Warrants (R > 50') G = 3% Downgrade
B70: Projected 10-Year Roadway ADT | C70: Right-turn ADT | D70: Assumed Speed Change on Through Lane | E70: Highway Posted Speed
M72: =IF(D$4=-3,INDEX(E73:L97,MATCH(F$4,E73:E97,),MATCH(C$3,E73:L73,)),) -> 0
F73: 25 | G73: 30 | H73: 35 | I73: 40 | J73: 45 | K73: 50 | L73: 55
B74: Less Than 2,000 | C74: 0-50 | E74: =B74&C74 -> Less Than 2,0000-50 | F74: - | G74: - | H74: - | I74: - | J74: - | K74: - | L74: -
B75: Less Than 2,000 | C75: 51 - 100 | E75: Less Than 2,00051 - 100 | F75: - | G75: - | H75: - | I75: - | J75: - | K75: - | L75: -
B76: Less Than 2,000 | C76: 101 - 200 | D76: 20 MPH | E76: Less Than 2,000101 - 200 | F76: - | G76: 100 | H76: 100 | I76: 135 | J76: 135 | K76: 160 | L76: 205
B77: Less Than 2,000 | C77: 201 - 300 | D77: 15 MPH | E77: Less Than 2,000201 - 300 | F77: - | G77: 100 | H77: 100 | I77: 135 | J77: 160 | K77: 205 | L77: 255
B78: Less Than 2,000 | C78: 301 - 400 | E78: Less Than 2,000301 - 400 | F78: - | G78: 100 | H78: 100 | I78: 135 | J78: 160 | K78: 205 | L78: 255
B79: Less Than 2,000 | C79: Over 400 | E79: Less Than 2,000Over 400 | F79: - | G79: 100 | H79: 100 | I79: 135 | J79: 160 | K79: 205 | L79: 255
B80: 2,000 to 4,000 Vehicles | C80: 0-50 | E80: =B80&C80 -> 2,000 to 4,000 Vehicles0-50 | F80: - | G80: - | H80: - | I80: - | J80: - | K80: - | L80: -
B81: 2,000 to 4,000 Vehicles | C81: 51 - 100 | E81: =B81&C81 -> 2,000 to 4,000 Vehicles51 - 100 | F81: - | G81: - | H81: - | I81: - | J81: - | K81: - | L81: -
B82: 2,000 to 4,000 Vehicles | C82: 101 - 200 | D82: 20 MPH | E82: 2,000 to 4,000 Vehicles101 - 200 | F82: - | G82: 100 | H82: 100 | I82: 135 | J82: 135 | K82: 160 | L82: 205
B83: 2,000 to 4,000 Vehicles | C83: 201 - 300 | D83: 20 MPH | E83: 2,000 to 4,000 Vehicles201 - 300 | F83: - | G83: 100 | H83: 100 | I83: 135 | J83: 160 | K83: 205 | L83: 255
B84: 2,000 to 4,000 Vehicles | C84: 301 - 400 | D84: 15 MPH | E84: 2,000 to 4,000 Vehicles301 - 400 | F84: - | G84: 100 | H84: 100 | I84: 135 | J84: 160 | K84: 205 | L84: 255
B85: 2,000 to 4,000 Vehicles | C85: Over 400 | D85: 10 MPH | E85: 2,000 to 4,000 VehiclesOver 400 | F85: 100 | G85: 115 | H85: 115 | I85: 160 | J85: 205 | K85: 255 | L85: 315
B86: 4,001 to 10,000 Vehicles | C86: 0-50 | E86: =B86&C86 -> 4,001 to 10,000 Vehicles0-50 | F86: - | G86: - | H86: - | I86: - | J86: - | K86: - | L86: -
B87: 4,001 to 10,000 Vehicles | C87: 51 - 100 | D87: 20 MPH | E87: 4,001 to 10,000 Vehicles51 - 100 | F87: - | G87: 135 | H87: 135 | I87: 135 | J87: 135 | K87: 160 | L87: 205
B88: 4,001 to 10,000 Vehicles | C88: 101 - 200 | D88: 15 MPH | E88: 4,001 to 10,000 Vehicles101 - 200 | F88: - | G88: 135 | H88: 135 | I88: 135 | J88: 160 | K88: 205 | L88: 255
B89: 4,001 to 10,000 Vehicles | C89: 201 - 300 | D89: 10 MPH | E89: 4,001 to 10,000 Vehicles201 - 300 | F89: 135 | G89: 135 | H89: 135 | I89: 160 | J89: 205 | K89: 255 | L89: 315
B90: 4,001 to 10,000 Vehicles | C90: 301 - 400 | D90: 10 MPH | E90: 4,001 to 10,000 Vehicles301 - 400 | F90: 135 | G90: 135 | H90: 135 | I90: 160 | J90: 205 | K90: 255 | L90: 315
B91: 4,001 to 10,000 Vehicles | C91: Over 400 | D91: 5 MPH | E91: 4,001 to 10,000 VehiclesOver 400 | F91: 135 | G91: 160 | H91: 160 | I91: 205 | J91: 255 | K91: 315 | L91: 375
B92: Over 10,000 Vehicles | C92: 0-50 | E92: =B92&C92 -> Over 10,000 Vehicles0-50 | F92: - | G92: - | H92: - | I92: - | J92: - | K92: - | L92: -
B93: Over 10,000 Vehicles | C93: 51 - 100 | D93: 15 MPH | E93: Over 10,000 Vehicles51 - 100 | F93: - | G93: 135 | H93: 135 | I93: 135 | J93: 160 | K93: 205 | L93: 255
B94: Over 10,000 Vehicles | C94: 101 - 200 | D94: 10 MPH | E94: Over 10,000 Vehicles101 - 200 | F94: 135 | G94: 135 | H94: 135 | I94: 160 | J94: 205 | K94: 255 | L94: 315
B95: Over 10,000 Vehicles | C95: 201 - 300 | D95: 5 MPH | E95: Over 10,000 Vehicles201 - 300 | F95: 135 | G95: 155 | H95: 160 | I95: 205 | J95: 255 | K95: 315 | L95: 375
B96: Over 10,000 Vehicles | C96: 301 - 400 | D96: 5 MPH | E96: Over 10,000 Vehicles301 - 400 | F96: 135 | G96: 155 | H96: 160 | I96: 205 | J96: 255 | K96: 315 | L96: 375
B97: Over 10,000 Vehicles | C97: Over 400 | D97: 0 MPH | E97: Over 10,000 VehiclesOver 400 | F97: 135 | G97: 205 | H97: 205 | I97: 255 | J97: 315 | K97: 375 | L97: 445
B100: Right-Turn Lane Warrants (R > 50') G = 4% Downgrade
B101: Projected 10-Year Roadway ADT | C101: Right-turn ADT | D101: Assumed Speed Change on Through Lane | E101: Highway Posted Speed
M103: =IF(D$4=-4,INDEX(E104:L128,MATCH(F$4,E104:E128,),MATCH(C$3,E104:L104,)),) -> 0
F104: 25 | G104: 30 | H104: 35 | I104: 40 | J104: 45 | K104: 50 | L104: 55
B105: Less Than 2,000 | C105: 0-50 | E105: =B105&C105 -> Less Than 2,0000-50 | F105: - | G105: - | H105: - | I105: - | J105: - | K105: - | L105: -
B106: Less Than 2,000 | C106: 51 - 100 | E106: =B106&C106 -> Less Than 2,00051 - 100 | F106: - | G106: - | H106: - | I106: - | J106: - | K106: - | L106: -
B107: Less Than 2,000 | C107: 101 - 200 | D107: 20 MPH | E107: Less Than 2,000101 - 200 | F107: - | G107: 100 | H107: 100 | I107: 135 | J107: 135 | K107: 160 | L107: 210
B108: Less Than 2,000 | C108: 201 - 300 | D108: 15 MPH | E108: Less Than 2,000201 - 300 | F108: - | G108: 100 | H108: 100 | I108: 135 | J108: 160 | K108: 210 | L108: 265
B109: Less Than 2,000 | C109: 301 - 400 | E109: Less Than 2,000301 - 400 | F109: - | G109: 100 | H109: 100 | I109: 135 | J109: 160 | K109: 210 | L109: 265
B110: Less Than 2,000 | C110: Over 400 | E110: Less Than 2,000Over 400 | F110: - | G110: 100 | H110: 100 | I110: 135 | J110: 160 | K110: 210 | L110: 265
B111: 2,000 to 4,000 Vehicles | C111: 0-50 | E111: =B111&C111 -> 2,000 to 4,000 Vehicles0-50 | F111: - | G111: - | H111: - | I111: - | J111: - | K111: - | L111: -
B112: 2,000 to 4,000 Vehicles | C112: 51 - 100 | E112: 2,000 to 4,000 Vehicles51 - 100 | F112: - | G112: - | H112: - | I112: - | J112: - | K112: - | L112: -
B113: 2,000 to 4,000 Vehicles | C113: 101 - 200 | D113: 20 MPH | E113: 2,000 to 4,000 Vehicles101 - 200 | F113: - | G113: 100 | H113: 100 | I113: 135 | J113: 135 | K113: 160 | L113: 210
B114: 2,000 to 4,000 Vehicles | C114: 201 - 300 | E114: 2,000 to 4,000 Vehicles201 - 300 | F114: - | G114: 100 | H114: 100 | I114: 135 | J114: 160 | K114: 210 | L114: 265
B115: 2,000 to 4,000 Vehicles | C115: 301 - 400 | D115: 15 MPH | E115: 2,000 to 4,000 Vehicles301 - 400 | F115: - | G115: 100 | H115: 100 | I115: 135 | J115: 160 | K115: 210 | L115: 265
B116: 2,000 to 4,000 Vehicles | C116: Over 400 | D116: 10 MPH | E116: 2,000 to 4,000 VehiclesOver 400 | F116: 100 | G116: 120 | H116: 120 | I116: 160 | J116: 210 | K116: 265 | L116: 320
B117: 4,001 to 10,000 Vehicles | C117: 0-50 | E117: =B117&C117 -> 4,001 to 10,000 Vehicles0-50 | F117: - | G117: - | H117: - | I117: - | J117: - | K117: - | L117: -
B118: 4,001 to 10,000 Vehicles | C118: 51 - 100 | D118: 20 MPH | E118: 4,001 to 10,000 Vehicles51 - 100 | F118: - | G118: 135 | H118: 135 | I118: 135 | J118: 135 | K118: 160 | L118: 210
B119: 4,001 to 10,000 Vehicles | C119: 101 - 200 | D119: 15 MPH | E119: 4,001 to 10,000 Vehicles101 - 200 | F119: - | G119: 135 | H119: 135 | I119: 135 | J119: 160 | K119: 210 | L119: 265
B120: 4,001 to 10,000 Vehicles | C120: 201 - 300 | E120: =B120&C120 -> 4,001 to 10,000 Vehicles201 - 300 | F120: 135 | G120: 135 | H120: 135 | I120: 160 | J120: 210 | K120: 265 | L120: 320
B121: 4,001 to 10,000 Vehicles | C121: 301 - 400 | D121: 10 MPH | E121: 4,001 to 10,000 Vehicles301 - 400 | F121: 135 | G121: 135 | H121: 135 | I121: 160 | J121: 210 | K121: 265 | L121: 320
B122: 4,001 to 10,000 Vehicles | C122: Over 400 | D122: 5 MPH | E122: 4,001 to 10,000 VehiclesOver 400 | F122: 135 | G122: 160 | H122: 160 | I122: 210 | J122: 265 | K122: 320 | L122: 385
B123: Over 10,000 Vehicles | C123: 0-50 | E123: =B123&C123 -> Over 10,000 Vehicles0-50 | F123: - | G123: - | H123: - | I123: - | J123: - | K123: - | L123: -
B124: Over 10,000 Vehicles | C124: 51 - 100 | D124: 15 MPH | E124: Over 10,000 Vehicles51 - 100 | F124: - | G124: 135 | H124: 135 | I124: 135 | J124: 160 | K124: 210 | L124: 265
B125: Over 10,000 Vehicles | C125: 101 - 200 | D125: 10 MPH | E125: Over 10,000 Vehicles101 - 200 | F125: 135 | G125: 135 | H125: 135 | I125: 160 | J125: 210 | K125: 265 | L125: 320
B126: Over 10,000 Vehicles | C126: 201 - 300 | E126: =B126&C126 -> Over 10,000 Vehicles201 - 300 | F126: 135 | G126: 160 | H126: 160 | I126: 210 | J126: 265 | K126: 320 | L126: 385
B127: Over 10,000 Vehicles | C127: 301 - 400 | D127: 5 MPH | E127: Over 10,000 Vehicles301 - 400 | F127: 135 | G127: 160 | H127: 160 | I127: 210 | J127: 265 | K127: 320 | L127: 385
B128: Over 10,000 Vehicles | C128: Over 400 | D128: 0 MPH | E128: Over 10,000 VehiclesOver 400 | F128: 135 | G128: 210 | H128: 210 | I128: 265 | J128: 320 | K128: 385 | L128: 455
B131: Right-Turn Lane Warrants (R > 50') G = 5% Downgrade
B132: Projected 10-Year Roadway ADT | C132: Right-turn ADT | D132: Assumed Speed Change on Through Lane | E132: Highway Posted Speed
M134: =IF(D$4=-5,INDEX(E135:L159,MATCH(F$4,E135:E159,),MATCH(C$3,E135:L135,)),) -> 0
F135: 25 | G135: 30 | H135: 35 | I135: 40 | J135: 45 | K135: 50 | L135: 55
B136: Less Than 2,000 | C136: 0-50 | E136: =B136&C136 -> Less Than 2,0000-50 | F136: - | G136: - | H136: - | I136: - | J136: - | K136: - | L136: -
B137: Less Than 2,000 | C137: 51 - 100 | E137: =B137&C137 -> Less Than 2,00051 - 100 | F137: - | G137: - | H137: - | I137: - | J137: - | K137: - | L137: -
B138: Less Than 2,000 | C138: 101 - 200 | D138: 20 MPH | E138: Less Than 2,000101 - 200 | F138: - | G138: 100 | H138: 100 | I138: 135 | J138: 135 | K138: 160 | L138: 215
B139: Less Than 2,000 | C139: 201 - 300 | D139: 15 MPH | E139: Less Than 2,000201 - 300 | F139: - | G139: 100 | H139: 100 | I139: 135 | J139: 160 | K139: 215 | L139: 270
B140: Less Than 2,000 | C140: 301 - 400 | E140: Less Than 2,000301 - 400 | F140: - | G140: 100 | H140: 100 | I140: 135 | J140: 160 | K140: 215 | L140: 270
B141: Less Than 2,000 | C141: Over 400 | E141: Less Than 2,000Over 400 | F141: - | G141: 100 | H141: 100 | I141: 135 | J141: 160 | K141: 215 | L141: 270
B142: 2,000 to 4,000 Vehicles | C142: 0-50 | E142: =B142&C142 -> 2,000 to 4,000 Vehicles0-50 | F142: - | G142: - | H142: - | I142: - | J142: - | K142: - | L142: -
B143: 2,000 to 4,000 Vehicles | C143: 51 - 100 | E143: 2,000 to 4,000 Vehicles51 - 100 | F143: - | G143: - | H143: - | I143: - | J143: - | K143: - | L143: -
B144: 2,000 to 4,000 Vehicles | C144: 101 - 200 | D144: 20 MPH | E144: 2,000 to 4,000 Vehicles101 - 200 | F144: - | G144: 100 | H144: 100 | I144: 135 | J144: 135 | K144: 160 | L144: 215
B145: 2,000 to 4,000 Vehicles | C145: 201 - 300 | E145: 2,000 to 4,000 Vehicles201 - 300 | F145: - | G145: 100 | H145: 100 | I145: 135 | J145: 160 | K145: 215 | L145: 270
B146: 2,000 to 4,000 Vehicles | C146: 301 - 400 | D146: 15 MPH | E146: 2,000 to 4,000 Vehicles301 - 400 | F146: - | G146: 100 | H146: 100 | I146: 135 | J146: 160 | K146: 215 | L146: 270
B147: 2,000 to 4,000 Vehicles | C147: Over 400 | D147: 10 MPH | E147: 2,000 to 4,000 VehiclesOver 400 | F147: 100 | G147: 120 | H147: 120 | I147: 160 | J147: 215 | K147: 270 | L147: 330
B148: 4,001 to 10,000 Vehicles | C148: 0-50 | E148: =B148&C148 -> 4,001 to 10,000 Vehicles0-50 | F148: - | G148: - | H148: - | I148: - | J148: - | K148: - | L148: -
B149: 4,001 to 10,000 Vehicles | C149: 51 - 100 | D149: 20 MPH | E149: 4,001 to 10,000 Vehicles51 - 100 | F149: - | G149: 135 | H149: 135 | I149: 135 | J149: 135 | K149: 160 | L149: 215
B150: 4,001 to 10,000 Vehicles | C150: 101 - 200 | D150: 15 MPH | E150: 4,001 to 10,000 Vehicles101 - 200 | F150: - | G150: 135 | H150: 135 | I150: 135 | J150: 160 | K150: 215 | L150: 270
B151: 4,001 to 10,000 Vehicles | C151: 201 - 300 | D151: 10 MPH | E151: 4,001 to 10,000 Vehicles201 - 300 | F151: 135 | G151: 135 | H151: 135 | I151: 160 | J151: 215 | K151: 270 | L151: 330
B152: 4,001 to 10,000 Vehicles | C152: 301 - 400 | E152: 4,001 to 10,000 Vehicles301 - 400 | F152: 135 | G152: 135 | H152: 135 | I152: 160 | J152: 215 | K152: 270 | L152: 330
B153: 4,001 to 10,000 Vehicles | C153: Over 400 | D153: 5 MPH | E153: 4,001 to 10,000 VehiclesOver 400 | F153: 135 | G153: 160 | H153: 160 | I153: 215 | J153: 270 | K153: 330 | L153: 395
B154: Over 10,000 Vehicles | C154: 0-50 | E154: Over 10,000 Vehicles0-50 | F154: - | G154: - | H154: - | I154: - | J154: - | K154: - | L154: -
B155: Over 10,000 Vehicles | C155: 51 - 100 | D155: 15 MPH | E155: =B155&C155 -> Over 10,000 Vehicles51 - 100 | F155: - | G155: 135 | H155: 135 | I155: 135 | J155: 160 | K155: 215 | L155: 270
B156: Over 10,000 Vehicles | C156: 101 - 200 | D156: 10 MPH | E156: Over 10,000 Vehicles101 - 200 | F156: 135 | G156: 135 | H156: 135 | I156: 160 | J156: 215 | K156: 270 | L156: 330
B157: Over 10,000 Vehicles | C157: 201 - 300 | D157: 5 MPH | E157: Over 10,000 Vehicles201 - 300 | F157: 135 | G157: 160 | H157: 160 | I157: 215 | J157: 270 | K157: 330 | L157: 395
B158: Over 10,000 Vehicles | C158: 301 - 400 | E158: Over 10,000 Vehicles301 - 400 | F158: 135 | G158: 160 | H158: 160 | I158: 215 | J158: 270 | K158: 330 | L158: 395
B159: Over 10,000 Vehicles | C159: Over 400 | D159: 0 MPH | E159: Over 10,000 VehiclesOver 400 | F159: 135 | G159: 215 | H159: 215 | I159: 270 | J159: 330 | K159: 395 | L159: 470
B163: Right-Turn Lane Warrants (R > 50') G = 6% Downgrade
B164: Projected 10-Year Roadway ADT | C164: Right-turn ADT | D164: Assumed Speed Change on Through Lane | E164: Highway Posted Speed
M166: =IF(D$4=-6,INDEX(E167:L191,MATCH(F$4,E167:E191,),MATCH(C$3,E167:L167,)),) -> 0
F167: 25 | G167: 30 | H167: 35 | I167: 40 | J167: 45 | K167: 50 | L167: 55
B168: Less Than 2,000 | C168: 0-50 | E168: =B168&C168 -> Less Than 2,0000-50 | F168: - | G168: - | H168: - | I168: - | J168: - | K168: - | L168: -
B169: Less Than 2,000 | C169: 51 - 100 | E169: =B169&C169 -> Less Than 2,00051 - 100 | F169: - | G169: - | H169: - | I169: - | J169: - | K169: - | L169: -
B170: Less Than 2,000 | C170: 101 - 200 | D170: 20 MPH | E170: Less Than 2,000101 - 200 | F170: - | G170: 100 | H170: 100 | I170: 135 | J170: 135 | K170: 170 | L170: 220
B171: Less Than 2,000 | C171: 201 - 300 | E171: Less Than 2,000201 - 300 | F171: - | G171: 100 | H171: 100 | I171: 135 | J171: 170 | K171: 220 | L171: 275
B172: Less Than 2,000 | C172: 301 - 400 | E172: Less Than 2,000301 - 400 | F172: - | G172: 100 | H172: 100 | I172: 135 | J172: 170 | K172: 220 | L172: 275
B173: Less Than 2,000 | C173: Over 400 | D173: 15 MPH | E173: Less Than 2,000Over 400 | F173: - | G173: 100 | H173: 100 | I173: 135 | J173: 170 | K173: 220 | L173: 275
B174: 2,000 to 4,000 Vehicles | C174: 0-50 | E174: =B174&C174 -> 2,000 to 4,000 Vehicles0-50 | F174: - | G174: - | H174: - | I174: - | J174: - | K174: - | L174: -
B175: 2,000 to 4,000 Vehicles | C175: 51 - 100 | E175: 2,000 to 4,000 Vehicles51 - 100 | F175: - | G175: - | H175: - | I175: - | J175: - | K175: - | L175: -
B176: 2,000 to 4,000 Vehicles | C176: 101 - 200 | D176: 20 MPH | E176: 2,000 to 4,000 Vehicles101 - 200 | F176: - | G176: 100 | H176: 100 | I176: 135 | J176: 135 | K176: 170 | L176: 220
B177: 2,000 to 4,000 Vehicles | C177: 201 - 300 | E177: 2,000 to 4,000 Vehicles201 - 300 | F177: - | G177: 100 | H177: 100 | I177: 135 | J177: 170 | K177: 220 | L177: 275
B178: 2,000 to 4,000 Vehicles | C178: 301 - 400 | D178: 15 MPH | E178: 2,000 to 4,000 Vehicles301 - 400 | F178: - | G178: 100 | H178: 100 | I178: 135 | J178: 170 | K178: 220 | L178: 275
B179: 2,000 to 4,000 Vehicles | C179: Over 400 | D179: 10 MPH | E179: 2,000 to 4,000 VehiclesOver 400 | F179: 100 | G179: 125 | H179: 125 | I179: 170 | J179: 220 | K179: 275 | L179: 340
B180: 4,001 to 10,000 Vehicles | C180: 0-50 | E180: =B180&C180 -> 4,001 to 10,000 Vehicles0-50 | F180: - | G180: - | H180: - | I180: - | J180: - | K180: - | L180: -
B181: 4,001 to 10,000 Vehicles | C181: 51 - 100 | D181: 20 MPH | E181: 4,001 to 10,000 Vehicles51 - 100 | F181: - | G181: 135 | H181: 135 | I181: 135 | J181: 135 | K181: 170 | L181: 220
B182: 4,001 to 10,000 Vehicles | C182: 101 - 200 | D182: 15 MPH | E182: 4,001 to 10,000 Vehicles101 - 200 | F182: - | G182: 135 | H182: 135 | I182: 135 | J182: 170 | K182: 220 | L182: 275
B183: 4,001 to 10,000 Vehicles | C183: 201 - 300 | E183: 4,001 to 10,000 Vehicles201 - 300 | F183: 135 | G183: 135 | H183: 135 | I183: 170 | J183: 220 | K183: 275 | L183: 340
B184: 4,001 to 10,000 Vehicles | C184: 301 - 400 | D184: 10 MPH | E184: 4,001 to 10,000 Vehicles301 - 400 | F184: 135 | G184: 135 | H184: 135 | I184: 170 | J184: 220 | K184: 275 | L184: 340
B185: 4,001 to 10,000 Vehicles | C185: Over 400 | D185: 5 MPH | E185: 4,001 to 10,000 VehiclesOver 400 | F185: 135 | G185: 170 | H185: 170 | I185: 220 | J185: 275 | K185: 340 | L185: 405
B186: Over 10,000 Vehicles | C186: 0-50 | E186: =B186&C186 -> Over 10,000 Vehicles0-50 | F186: - | G186: - | H186: - | I186: - | J186: - | K186: - | L186: -
B187: Over 10,000 Vehicles | C187: 51 - 100 | D187: 15 MPH | E187: Over 10,000 Vehicles51 - 100 | F187: - | G187: 135 | H187: 135 | I187: 135 | J187: 170 | K187: 220 | L187: 275
B188: Over 10,000 Vehicles | C188: 101 - 200 | D188: 10 MPH | E188: Over 10,000 Vehicles101 - 200 | F188: 135 | G188: 135 | H188: 135 | I188: 170 | J188: 220 | K188: 275 | L188: 340
B189: Over 10,000 Vehicles | C189: 201 - 300 | D189: 5 MPH | E189: Over 10,000 Vehicles201 - 300 | F189: 135 | G189: 170 | H189: 170 | I189: 220 | J189: 275 | K189: 340 | L189: 405
B190: Over 10,000 Vehicles | C190: 301 - 400 | E190: Over 10,000 Vehicles301 - 400 | F190: 135 | G190: 170 | H190: 170 | I190: 220 | J190: 275 | K190: 340 | L190: 405
B191: Over 10,000 Vehicles | C191: Over 400 | D191: 0 MPH | E191: Over 10,000 VehiclesOver 400 | F191: 135 | G191: 220 | H191: 220 | I191: 275 | J191: 340 | K191: 405 | L191: 480
B194: Right-Turn Lane Warrants (R > 50') G = 7% Downgrade
B195: Projected 10-Year Roadway ADT | C195: Right-turn ADT | D195: Assumed Speed Change on Through Lane | E195: Highway Posted Speed
M197: =IF(D$4=-7,INDEX(E198:L222,MATCH(F$4,E198:E222,),MATCH(C$3,E198:L198,)),) -> 0
F198: 25 | G198: 30 | H198: 35 | I198: 40 | J198: 45 | K198: 50 | L198: 55
B199: Less Than 2,000 | C199: 0-50 | E199: =B199&C199 -> Less Than 2,0000-50 | F199: - | G199: - | H199: - | I199: - | J199: - | K199: - | L199: -
B200: Less Than 2,000 | C200: 51 - 100 | E200: =B200&C200 -> Less Than 2,00051 - 100 | F200: - | G200: - | H200: - | I200: - | J200: - | K200: - | L200: -
B201: Less Than 2,000 | C201: 101 - 200 | D201: 20 MPH | E201: Less Than 2,000101 - 200 | F201: - | G201: 100 | H201: 100 | I201: 135 | J201: 135 | K201: 170 | L201: 225
B202: Less Than 2,000 | C202: 201 - 300 | E202: Less Than 2,000201 - 300 | F202: - | G202: 100 | H202: 100 | I202: 135 | J202: 170 | K202: 225 | L202: 285
B203: Less Than 2,000 | C203: 301 - 400 | E203: Less Than 2,000301 - 400 | F203: - | G203: 100 | H203: 100 | I203: 135 | J203: 170 | K203: 225 | L203: 285
B204: Less Than 2,000 | C204: Over 400 | D204: 15 MPH | E204: Less Than 2,000Over 400 | F204: - | G204: 100 | H204: 100 | I204: 135 | J204: 170 | K204: 225 | L204: 285
B205: 2,000 to 4,000 Vehicles | C205: 0-50 | E205: =B205&C205 -> 2,000 to 4,000 Vehicles0-50 | F205: - | G205: - | H205: - | I205: - | J205: - | K205: - | L205: -
B206: 2,000 to 4,000 Vehicles | C206: 51 - 100 | E206: 2,000 to 4,000 Vehicles51 - 100 | F206: - | G206: - | H206: - | I206: - | J206: - | K206: - | L206: -
B207: 2,000 to 4,000 Vehicles | C207: 101 - 200 | D207: 20 MPH | E207: 2,000 to 4,000 Vehicles101 - 200 | F207: - | G207: 100 | H207: 100 | I207: 135 | J207: 135 | K207: 170 | L207: 225
B208: 2,000 to 4,000 Vehicles | C208: 201 - 300 | E208: 2,000 to 4,000 Vehicles201 - 300 | F208: - | G208: 100 | H208: 100 | I208: 135 | J208: 170 | K208: 225 | L208: 285
B209: 2,000 to 4,000 Vehicles | C209: 301 - 400 | D209: 15 MPH | E209: 2,000 to 4,000 Vehicles301 - 400 | F209: - | G209: 100 | H209: 100 | I209: 135 | J209: 170 | K209: 225 | L209: 285
B210: 2,000 to 4,000 Vehicles | C210: Over 400 | D210: 10 MPH | E210: 2,000 to 4,000 VehiclesOver 400 | F210: 100 | G210: 125 | H210: 125 | I210: 170 | J210: 225 | K210: 285 | L210: 350
B211: 4,001 to 10,000 Vehicles | C211: 0-50 | E211: =B211&C211 -> 4,001 to 10,000 Vehicles0-50 | F211: - | G211: - | H211: - | I211: - | J211: - | K211: - | L211: -
B212: 4,001 to 10,000 Vehicles | C212: 51 - 100 | D212: 20 MPH | E212: 4,001 to 10,000 Vehicles51 - 100 | F212: - | G212: 135 | H212: 135 | I212: 135 | J212: 135 | K212: 170 | L212: 225
B213: 4,001 to 10,000 Vehicles | C213: 101 - 200 | D213: 15 MPH | E213: 4,001 to 10,000 Vehicles101 - 200 | F213: - | G213: 135 | H213: 135 | I213: 135 | J213: 170 | K213: 225 | L213: 285
B214: 4,001 to 10,000 Vehicles | C214: 201 - 300 | E214: 4,001 to 10,000 Vehicles201 - 300 | F214: 135 | G214: 135 | H214: 135 | I214: 170 | J214: 225 | K214: 285 | L214: 350
B215: 4,001 to 10,000 Vehicles | C215: 301 - 400 | D215: 10 MPH | E215: 4,001 to 10,000 Vehicles301 - 400 | F215: 135 | G215: 135 | H215: 135 | I215: 170 | J215: 225 | K215: 285 | L215: 350
B216: 4,001 to 10,000 Vehicles | C216: Over 400 | D216: 5 MPH | E216: 4,001 to 10,000 VehiclesOver 400 | F216: 135 | G216: 170 | H216: 170 | I216: 225 | J216: 285 | K216: 350 | L216: 420
B217: Over 10,000 Vehicles | C217: 0-50 | E217: =B217&C217 -> Over 10,000 Vehicles0-50 | F217: - | G217: - | H217: - | I217: - | J217: - | K217: - | L217: -
B218: Over 10,000 Vehicles | C218: 51 - 100 | D218: 15 MPH | E218: Over 10,000 Vehicles51 - 100 | F218: - | G218: 135 | H218: 135 | I218: 135 | J218: 170 | K218: 225 | L218: 285
B219: Over 10,000 Vehicles | C219: 101 - 200 | D219: 10 MPH | E219: Over 10,000 Vehicles101 - 200 | F219: 135 | G219: 135 | H219: 135 | I219: 170 | J219: 225 | K219: 285 | L219: 350
B220: Over 10,000 Vehicles | C220: 201 - 300 | D220: 5 MPH | E220: Over 10,000 Vehicles201 - 300 | F220: 135 | G220: 170 | H220: 170 | I220: 225 | J220: 285 | K220: 350 | L220: 420
... 338 more rows

Sheet R ≤ 50+Calcs (hidden)
B1: Projected ADT | C1: =IF('Aux Lane Inputs-Tab 2'!K11<2000,E1,IF('Aux Lane Inputs-Tab 2'!K11<4000,E2,IF('Aux Lane Inputs-Tab 2'!K11<10000,E3,IF('Aux Lane Inputs-Tab 2'!K11>10000,E4,0)))) -> Less Than 2,000 | E1: Less Than 2,000 | I1: If Heavy veh >=10%
B2: RT Turn ADT | C2: ='Aux Lane Inputs-Tab 2'!K14 -> 0-50 | E2: 2,000 to 4,000 Vehicles | G2: RTL Length | H2: =IF(C4>9,0,IF(C4<-9,0,SUM(A6:S6)+I2)) ->  | I2: =IF(AND('Aux Lane Inputs-Tab 2'!E17>=10,SUM(A6:S6)>0),25,0) ->  | K2: =IF(2001<'R ≤ 50+Calcs'!C2>4000,'R ≤ 50+Calcs'!F2,0) -> 0
B3: Posted SL | C3: ='Aux Lane Inputs-Tab 2'!K6 -> 0 | E3: 4,001 to 10,000 Vehicles | I3: =IF(#REF!="RCP",INDEX($BK$69:$BY$89,MATCH(#REF!,$BK$69:$BK$89,),MATCH(#REF!,$BK$69:$BY$69,)),IF(#REF!="ERCP",INDEX($BZ$69:$CM$89,MATCH(#REF!,$BZ$69:$BZ$89,),MATCH(#REF!,$BZ$69:$CM$69,)),INDEX($BK$97:$BW$116,MATCH(#REF!,$BK$97:$BK$115,),MATCH(#REF!,$BK$97:$BW$97,)))) ->  | J3: Example of Indexing
B4: Roadway Slope | C4: =IF(-3<='Aux Lane Inputs-Tab 2'!K16*100<=3,0,ROUNDDOWN('Aux Lane Inputs-Tab 2'!K16*100,0)) -> 0 | D4: =ROUNDUP(C4,0) -> 0 | E4: Over 10,000 Vehicles | F4: =C1&C2 -> Less Than 2,0000-50
A5: -1 | B5: -2 | C5: -3 | D5: -4 | E5: -5 | F5: -6 | G5: -7 | H5: -8 | I5: -9 | J5: 0 | K5: 1 | L5: 2 | M5: 3 | N5: 4 | O5: 5 | P5: 6 | Q5: 7 | R5: 8 | S5: 9
A6: =M10 -> 0 | B6: =M41 -> 0 | C6: =M72 -> 0 | D6: =M103 -> 0 | E6: =M134 -> 0 | F6: =M165 -> 0 | G6: =M196 -> 0 | H6: =M227 -> 0 | I6: =M258 -> 0 | J6: =M289 ->  | K6: =M319 -> 0 | L6: =M349 -> 0 | M6: =M380 -> 0 | N6: =M411 -> 0 | O6: =M442 -> 0 | P6: =M473 -> 0 | Q6: =M504 -> 0 | R6: =M535 -> 0 | S6: =M566 -> 0
B7: Right-Turn Lane Warrants (R ≤ 50') Level G = 1%
B8: Projected 10-Year Roadway ADT | C8: Right-turn ADT | D8: Assumed Speed Change on Through Lane | F8: Highway Posted Speed
M10: =IF(D$4=-1,INDEX(E11:L35,MATCH(F$4,E11:E35,),MATCH(C$3,E11:L11,)),) -> 0
F11: 25 | G11: 30 | H11: 35 | I11: 40 | J11: 45 | K11: 50 | L11: 55
B12: Less Than 2,000 | C12: 0-50 | E12: =B12&C12 -> Less Than 2,0000-50 | F12: - | G12: - | H12: - | I12: - | J12: - | K12: - | L12: -
B13: Less Than 2,000 | C13: 51 - 100 | E13: =B13&C13 -> Less Than 2,00051 - 100 | F13: - | G13: - | H13: - | I13: - | J13: - | K13: - | L13: -
B14: Less Than 2,000 | C14: 101 - 200 | D14: 20 MPH | E14: Less Than 2,000101 - 200 | F14: 100 | G14: 100 | H14: 100 | I14: 150 | J14: 160 | K14: 195 | L14: 240
B15: Less Than 2,000 | C15: 201 - 300 | E15: Less Than 2,000201 - 300 | F15: 100 | G15: 100 | H15: 125 | I15: 160 | J15: 195 | K15: 240 | L15: 290
B16: Less Than 2,000 | C16: 301 - 400 | E16: Less Than 2,000301 - 400 | F16: 100 | G16: 100 | H16: 125 | I16: 160 | J16: 195 | K16: 240 | L16: 290
B17: Less Than 2,000 | C17: Over 400 | D17: 15 MPH | E17: Less Than 2,000Over 400 | F17: 100 | G17: 100 | H17: 125 | I17: 160 | J17: 195 | K17: 240 | L17: 290
B18: 2,000 to 4,000 Vehicles | C18: 0-50 | E18: =B18&C18 -> 2,000 to 4,000 Vehicles0-50 | F18: - | G18: - | H18: - | I18: - | J18: - | K18: - | L18: -
B19: 2,000 to 4,000 Vehicles | C19: 51 - 100 | E19: 2,000 to 4,000 Vehicles51 - 100 | F19: - | G19: - | H19: - | I19: - | J19: - | K19: - | L19: -
B20: 2,000 to 4,000 Vehicles | C20: 101 - 200 | D20: 20 MPH | E20: 2,000 to 4,000 Vehicles101 - 200 | F20: 100 | G20: 100 | H20: 100 | I20: 150 | J20: 160 | K20: 195 | L20: 240
B21: 2,000 to 4,000 Vehicles | C21: 201 - 300 | E21: 2,000 to 4,000 Vehicles201 - 300 | F21: 100 | G21: 100 | H21: 125 | I21: 160 | J21: 195 | K21: 240 | L21: 290
B22: 2,000 to 4,000 Vehicles | C22: 301 - 400 | D22: 15 MPH | E22: 2,000 to 4,000 Vehicles301 - 400 | F22: 100 | G22: 100 | H22: 125 | I22: 160 | J22: 195 | K22: 240 | L22: 290
B23: 2,000 to 4,000 Vehicles | C23: Over 400 | D23: 10 MPH | E23: 2,000 to 4,000 VehiclesOver 400 | F23: 100 | G23: 120 | H23: 160 | I23: 195 | J23: 240 | K23: 290 | L23: 340
B24: 4,001 to 10,000 Vehicles | C24: 0-50 | E24: =B24&C24 -> 4,001 to 10,000 Vehicles0-50 | F24: - | G24: - | H24: - | I24: - | J24: - | K24: - | L24: -
B25: 4,001 to 10,000 Vehicles | C25: 51 - 100 | D25: 20 MPH | E25: 4,001 to 10,000 Vehicles51 - 100 | F25: 150 | G25: 150 | H25: 150 | I25: 150 | J25: 160 | K25: 195 | L25: 240
B26: 4,001 to 10,000 Vehicles | C26: 101 - 200 | D26: 15 MPH | E26: 4,001 to 10,000 Vehicles101 - 200 | F26: 150 | G26: 150 | H26: 150 | I26: 160 | J26: 195 | K26: 240 | L26: 290
B27: 4,001 to 10,000 Vehicles | C27: 201 - 300 | D27: 10 MPH | E27: 4,001 to 10,000 Vehicles201 - 300 | F27: 150 | G27: 150 | H27: 160 | I27: 195 | J27: 240 | K27: 290 | L27: 340
B28: 4,001 to 10,000 Vehicles | C28: 301 - 400 | E28: 4,001 to 10,000 Vehicles301 - 400 | F28: 150 | G28: 150 | H28: 160 | I28: 195 | J28: 240 | K28: 290 | L28: 340
B29: 4,001 to 10,000 Vehicles | C29: Over 400 | D29: 5 MPH | E29: 4,001 to 10,000 VehiclesOver 400 | F29: 150 | G29: 150 | H29: 195 | I29: 240 | J29: 290 | K29: 340 | L29: 400
B30: Over 10,000 Vehicles | C30: 0-50 | E30: =B30&C30 -> Over 10,000 Vehicles0-50 | F30: - | G30: - | H30: - | I30: - | J30: - | K30: - | L30: -
B31: Over 10,000 Vehicles | C31: 51 - 100 | D31: 15 MPH | E31: Over 10,000 Vehicles51 - 100 | F31: 150 | G31: 150 | H31: 150 | I31: 160 | J31: 195 | K31: 240 | L31: 290
B32: Over 10,000 Vehicles | C32: 101 - 200 | D32: 10 MPH | E32: Over 10,000 Vehicles101 - 200 | F32: 150 | G32: 150 | H32: 160 | I32: 195 | J32: 240 | K32: 290 | L32: 340
B33: Over 10,000 Vehicles | C33: 201 - 300 | D33: 5 MPH | E33: Over 10,000 Vehicles201 - 300 | F33: 150 | G33: 150 | H33: 195 | I33: 240 | J33: 290 | K33: 340 | L33: 400
B34: Over 10,000 Vehicles | C34: 301 - 400 | E34: Over 10,000 Vehicles301 - 400 | F34: 150 | G34: 150 | H34: 195 | I34: 240 | J34: 290 | K34: 340 | L34: 400
B35: Over 10,000 Vehicles | C35: Over 400 | D35: 0 MPH | E35: Over 10,000 VehiclesOver 400 | F35: 160 | G35: 175 | H35: 240 | I35: 290 | J35: 340 | K35: 400 | L35: 460
B38: Right-Turn Lane Warrants (R ≤ 50') Level G = 2%
B39: Projected 10-Year Roadway ADT | C39: Right-turn ADT | D39: Assumed Speed Change on Through Lane | F39: Highway Posted Speed
M41: =IF(D$4=-2,INDEX(E42:L66,MATCH(F$4,E42:E66,),MATCH(C$3,E42:L42,)),) -> 0
F42: 25 | G42: 30 | H42: 35 | I42: 40 | J42: 45 | K42: 50 | L42: 55
B43: Less Than 2,000 | C43: 0-50 | E43: =B43&C43 -> Less Than 2,0000-50 | F43: - | G43: - | H43: - | I43: - | J43: - | K43: - | L43: -
B44: Less Than 2,000 | C44: 51 - 100 | E44: =B44&C44 -> Less Than 2,00051 - 100 | F44: - | G44: - | H44: - | I44: - | J44: - | K44: - | L44: -
B45: Less Than 2,000 | C45: 101 - 200 | D45: 20 MPH | E45: Less Than 2,000101 - 200 | F45: 100 | G45: 100 | H45: 100 | I45: 150 | J45: 160 | K45: 195 | L45: 240
B46: Less Than 2,000 | C46: 201 - 300 | E46: Less Than 2,000201 - 300 | F46: 100 | G46: 100 | H46: 125 | I46: 160 | J46: 195 | K46: 240 | L46: 290
B47: Less Than 2,000 | C47: 301 - 400 | E47: Less Than 2,000301 - 400 | F47: 100 | G47: 100 | H47: 125 | I47: 160 | J47: 195 | K47: 240 | L47: 290
B48: Less Than 2,000 | C48: Over 400 | D48: 15 MPH | E48: Less Than 2,000Over 400 | F48: 100 | G48: 100 | H48: 125 | I48: 160 | J48: 195 | K48: 240 | L48: 290
B49: 2,000 to 4,000 Vehicles | C49: 0-50 | E49: =B49&C49 -> 2,000 to 4,000 Vehicles0-50 | F49: - | G49: - | H49: - | I49: - | J49: - | K49: - | L49: -
B50: 2,000 to 4,000 Vehicles | C50: 51 - 100 | E50: 2,000 to 4,000 Vehicles51 - 100 | F50: - | G50: - | H50: - | I50: - | J50: - | K50: - | L50: -
B51: 2,000 to 4,000 Vehicles | C51: 101 - 200 | D51: 20 MPH | E51: 2,000 to 4,000 Vehicles101 - 200 | F51: 100 | G51: 100 | H51: 100 | I51: 150 | J51: 160 | K51: 195 | L51: 240
B52: 2,000 to 4,000 Vehicles | C52: 201 - 300 | E52: 2,000 to 4,000 Vehicles201 - 300 | F52: 100 | G52: 100 | H52: 125 | I52: 160 | J52: 195 | K52: 240 | L52: 290
B53: 2,000 to 4,000 Vehicles | C53: 301 - 400 | D53: 15 MPH | E53: 2,000 to 4,000 Vehicles301 - 400 | F53: 100 | G53: 100 | H53: 125 | I53: 160 | J53: 195 | K53: 240 | L53: 290
B54: 2,000 to 4,000 Vehicles | C54: Over 400 | D54: 10 MPH | E54: 2,000 to 4,000 VehiclesOver 400 | F54: 100 | G54: 120 | H54: 160 | I54: 195 | J54: 240 | K54: 290 | L54: 340
B55: 4,001 to 10,000 Vehicles | C55: 0-50 | E55: =B55&C55 -> 4,001 to 10,000 Vehicles0-50 | F55: - | G55: - | H55: - | I55: - | J55: - | K55: - | L55: -
B56: 4,001 to 10,000 Vehicles | C56: 51 - 100 | D56: 20 MPH | E56: 4,001 to 10,000 Vehicles51 - 100 | F56: 150 | G56: 150 | H56: 150 | I56: 150 | J56: 160 | K56: 195 | L56: 240
B57: 4,001 to 10,000 Vehicles | C57: 101 - 200 | D57: 15 MPH | E57: 4,001 to 10,000 Vehicles101 - 200 | F57: 150 | G57: 150 | H57: 150 | I57: 160 | J57: 195 | K57: 240 | L57: 290
B58: 4,001 to 10,000 Vehicles | C58: 201 - 300 | D58: 10 MPH | E58: 4,001 to 10,000 Vehicles201 - 300 | F58: 150 | G58: 150 | H58: 160 | I58: 195 | J58: 240 | K58: 290 | L58: 340
B59: 4,001 to 10,000 Vehicles | C59: 301 - 400 | E59: 4,001 to 10,000 Vehicles301 - 400 | F59: 150 | G59: 150 | H59: 160 | I59: 195 | J59: 240 | K59: 290 | L59: 340
B60: 4,001 to 10,000 Vehicles | C60: Over 400 | D60: 5 MPH | E60: 4,001 to 10,000 VehiclesOver 400 | F60: 150 | G60: 150 | H60: 195 | I60: 240 | J60: 290 | K60: 340 | L60: 400
B61: Over 10,000 Vehicles | C61: 0-50 | E61: =B61&C61 -> Over 10,000 Vehicles0-50 | F61: - | G61: - | H61: - | I61: - | J61: - | K61: - | L61: -
B62: Over 10,000 Vehicles | C62: 51 - 100 | D62: 15 MPH | E62: Over 10,000 Vehicles51 - 100 | F62: 150 | G62: 150 | H62: 150 | I62: 160 | J62: 195 | K62: 240 | L62: 290
B63: Over 10,000 Vehicles | C63: 101 - 200 | D63: 10 MPH | E63: Over 10,000 Vehicles101 - 200 | F63: 150 | G63: 150 | H63: 160 | I63: 195 | J63: 240 | K63: 290 | L63: 340
B64: Over 10,000 Vehicles | C64: 201 - 300 | D64: 5 MPH | E64: Over 10,000 Vehicles201 - 300 | F64: 150 | G64: 150 | H64: 195 | I64: 240 | J64: 290 | K64: 340 | L64: 400
B65: Over 10,000 Vehicles | C65: 301 - 400 | E65: Over 10,000 Vehicles301 - 400 | F65: 150 | G65: 150 | H65: 195 | I65: 240 | J65: 290 | K65: 340 | L65: 400
B66: Over 10,000 Vehicles | C66: Over 400 | D66: 0 MPH | E66: Over 10,000 VehiclesOver 400 | F66: 160 | G66: 175 | H66: 240 | I66: 290 | J66: 340 | K66: 400 | L66: 460
B69: Right-Turn Lane Warrants (R ≤ 50') G = 3% Downgrade
B70: Projected 10-Year Roadway ADT | C70: Right-turn ADT | D70: Assumed Speed Change on Through Lane | F70: Highway Posted Speed
M72: =IF(D$4=-3,INDEX(E73:L97,MATCH(F$4,E73:E97,),MATCH(C$3,E73:L73,)),) -> 0
F73: 25 | G73: 30 | H73: 35 | I73: 40 | J73: 45 | K73: 50 | L73: 55
B74: Less Than 2,000 | C74: 0-50 | E74: =B74&C74 -> Less Than 2,0000-50 | F74: - | G74: - | H74: - | I74: - | J74: - | K74: - | L74: -
B75: Less Than 2,000 | C75: 51 - 100 | E75: Less Than 2,00051 - 100 | F75: - | G75: - | H75: - | I75: - | J75: - | K75: - | L75: -
B76: Less Than 2,000 | C76: 101 - 200 | D76: 20 MPH | E76: Less Than 2,000101 - 200 | F76: 100 | G76: 100 | H76: 100 | I76: 150 | J76: 165 | K76: 205 | L76: 255
B77: Less Than 2,000 | C77: 201 - 300 | E77: Less Than 2,000201 - 300 | F77: 100 | G77: 100 | H77: 100 | I77: 150 | J77: 165 | K77: 205 | L77: 255
B78: Less Than 2,000 | C78: 301 - 400 | E78: Less Than 2,000301 - 400 | F78: 100 | G78: 100 | H78: 130 | I78: 165 | J78: 205 | K78: 255 | L78: 305
B79: Less Than 2,000 | C79: Over 400 | D79: 15 MPH | E79: Less Than 2,000Over 400 | F79: 100 | G79: 100 | H79: 130 | I79: 165 | J79: 205 | K79: 255 | L79: 305
B80: 2,000 to 4,000 Vehicles | C80: 0-50 | E80: =B80&C80 -> 2,000 to 4,000 Vehicles0-50 | F80: - | G80: - | H80: - | I80: - | J80: - | K80: - | L80: -
B81: 2,000 to 4,000 Vehicles | C81: 51 - 100 | E81: 2,000 to 4,000 Vehicles51 - 100 | F81: - | G81: - | H81: - | I81: - | J81: - | K81: - | L81: -
B82: 2,000 to 4,000 Vehicles | C82: 101 - 200 | D82: 20 MPH | E82: 2,000 to 4,000 Vehicles101 - 200 | F82: 100 | G82: 100 | H82: 100 | I82: 150 | J82: 165 | K82: 205 | L82: 255
B83: 2,000 to 4,000 Vehicles | C83: 201 - 300 | E83: 2,000 to 4,000 Vehicles201 - 300 | F83: 100 | G83: 100 | H83: 130 | I83: 165 | J83: 205 | K83: 255 | L83: 305
B84: 2,000 to 4,000 Vehicles | C84: 301 - 400 | D84: 15 MPH | E84: 2,000 to 4,000 Vehicles301 - 400 | F84: 100 | G84: 100 | H84: 130 | I84: 165 | J84: 205 | K84: 255 | L84: 305
B85: 2,000 to 4,000 Vehicles | C85: Over 400 | D85: 10 MPH | E85: 2,000 to 4,000 VehiclesOver 400 | F85: 100 | G85: 105 | H85: 165 | I85: 205 | J85: 255 | K85: 305 | L85: 365
B86: 4,001 to 10,000 Vehicles | C86: 0-50 | E86: =B86&C86 -> 4,001 to 10,000 Vehicles0-50 | F86: - | G86: - | H86: - | I86: - | J86: - | K86: - | L86: -
B87: 4,001 to 10,000 Vehicles | C87: 51 - 100 | D87: 20 MPH | E87: 4,001 to 10,000 Vehicles51 - 100 | F87: 150 | G87: 150 | H87: 150 | I87: 150 | J87: 165 | K87: 205 | L87: 255
B88: 4,001 to 10,000 Vehicles | C88: 101 - 200 | D88: 15 MPH | E88: 4,001 to 10,000 Vehicles101 - 200 | F88: 150 | G88: 150 | H88: 150 | I88: 165 | J88: 205 | K88: 255 | L88: 305
B89: 4,001 to 10,000 Vehicles | C89: 201 - 300 | D89: 10 MPH | E89: 4,001 to 10,000 Vehicles201 - 300 | F89: 150 | G89: 150 | H89: 165 | I89: 205 | J89: 255 | K89: 305 | L89: 365
B90: 4,001 to 10,000 Vehicles | C90: 301 - 400 | E90: 4,001 to 10,000 Vehicles301 - 400 | F90: 150 | G90: 150 | H90: 165 | I90: 205 | J90: 255 | K90: 305 | L90: 365
B91: 4,001 to 10,000 Vehicles | C91: Over 400 | D91: 5 MPH | E91: 4,001 to 10,000 VehiclesOver 400 | F91: 150 | G91: 150 | H91: 205 | I91: 255 | J91: 305 | K91: 365 | L91: 425
B92: Over 10,000 Vehicles | C92: 0-50 | E92: =B92&C92 -> Over 10,000 Vehicles0-50 | F92: - | G92: - | H92: - | I92: - | J92: - | K92: - | L92: -
B93: Over 10,000 Vehicles | C93: 51 - 100 | D93: 15 MPH | E93: Over 10,000 Vehicles51 - 100 | F93: 150 | G93: 150 | H93: 150 | I93: 165 | J93: 205 | K93: 255 | L93: 305
B94: Over 10,000 Vehicles | C94: 101 - 200 | D94: 10 MPH | E94: Over 10,000 Vehicles101 - 200 | F94: 150 | G94: 150 | H94: 165 | I94: 205 | J94: 255 | K94: 305 | L94: 365
B95: Over 10,000 Vehicles | C95: 201 - 300 | D95: 5 MPH | E95: Over 10,000 Vehicles201 - 300 | F95: 150 | G95: 150 | H95: 205 | I95: 255 | J95: 305 | K95: 365 | L95: 425
B96: Over 10,000 Vehicles | C96: 301 - 400 | E96: Over 10,000 Vehicles301 - 400 | F96: 150 | G96: 150 | H96: 205 | I96: 255 | J96: 305 | K96: 365 | L96: 425
B97: Over 10,000 Vehicles | C97: Over 400 | D97: 0 MPH | E97: Over 10,000 VehiclesOver 400 | F97: 165 | G97: 185 | H97: 255 | I97: 305 | J97: 365 | K97: 425 | L97: 495
B100: Right-Turn Lane Warrants (R ≤ 50') G = 4% Downgrade
B101: Projected 10-Year Roadway ADT | C101: Right-turn ADT | D101: Assumed Speed Change on Through Lane | F101: Highway Posted Speed
M103: =IF(D$4=-4,INDEX(E104:L128,MATCH(F$4,E104:E128,),MATCH(C$3,E104:L104,)),) -> 0
F104: 25 | G104: 30 | H104: 35 | I104: 40 | J104: 45 | K104: 50 | L104: 55
B105: Less Than 2,000 | C105: 0-50 | E105: =B105&C105 -> Less Than 2,0000-50 | F105: - | G105: - | H105: - | I105: - | J105: - | K105: - | L105: -
B106: Less Than 2,000 | C106: 51 - 100 | E106: =B106&C106 -> Less Than 2,00051 - 100 | F106: - | G106: - | H106: - | I106: - | J106: - | K106: - | L106: -
B107: Less Than 2,000 | C107: 101 - 200 | D107: 20 MPH | E107: Less Than 2,000101 - 200 | F107: 100 | G107: 100 | H107: 100 | I107: 150 | J107: 170 | K107: 210 | L107: 260
B108: Less Than 2,000 | C108: 201 - 300 | E108: Less Than 2,000201 - 300 | F108: 100 | G108: 100 | H108: 130 | I108: 170 | J108: 210 | K108: 260 | L108: 315
B109: Less Than 2,000 | C109: 301 - 400 | E109: Less Than 2,000301 - 400 | F109: 100 | G109: 100 | H109: 130 | I109: 170 | J109: 210 | K109: 260 | L109: 315
B110: Less Than 2,000 | C110: Over 400 | D110: 15 MPH | E110: Less Than 2,000Over 400 | F110: 100 | G110: 100 | H110: 130 | I110: 170 | J110: 210 | K110: 260 | L110: 315
B111: 2,000 to 4,000 Vehicles | C111: 0-50 | E111: =B111&C111 -> 2,000 to 4,000 Vehicles0-50 | F111: - | G111: - | H111: - | I111: - | J111: - | K111: - | L111: -
B112: 2,000 to 4,000 Vehicles | C112: 51 - 100 | E112: 2,000 to 4,000 Vehicles51 - 100 | F112: - | G112: - | H112: - | I112: - | J112: - | K112: - | L112: -
B113: 2,000 to 4,000 Vehicles | C113: 101 - 200 | D113: 20 MPH | E113: 2,000 to 4,000 Vehicles101 - 200 | F113: 100 | G113: 100 | H113: 100 | I113: 150 | J113: 170 | K113: 210 | L113: 260
B114: 2,000 to 4,000 Vehicles | C114: 201 - 300 | E114: 2,000 to 4,000 Vehicles201 - 300 | F114: 100 | G114: 100 | H114: 130 | I114: 170 | J114: 210 | K114: 260 | L114: 315
B115: 2,000 to 4,000 Vehicles | C115: 301 - 400 | D115: 15 MPH | E115: 2,000 to 4,000 Vehicles301 - 400 | F115: 100 | G115: 100 | H115: 130 | I115: 170 | J115: 210 | K115: 260 | L115: 315
B116: 2,000 to 4,000 Vehicles | C116: Over 400 | D116: 10 MPH | E116: 2,000 to 4,000 VehiclesOver 400 | F116: 100 | G116: 110 | H116: 170 | I116: 210 | J116: 260 | K116: 315 | L116: 370
B117: 4,001 to 10,000 Vehicles | C117: 0-50 | E117: =B117&C117 -> 4,001 to 10,000 Vehicles0-50 | F117: - | G117: - | H117: - | I117: - | J117: - | K117: - | L117: -
B118: 4,001 to 10,000 Vehicles | C118: 51 - 100 | D118: 20 MPH | E118: 4,001 to 10,000 Vehicles51 - 100 | F118: 150 | G118: 150 | H118: 150 | I118: 150 | J118: 170 | K118: 210 | L118: 260
B119: 4,001 to 10,000 Vehicles | C119: 101 - 200 | D119: 15 MPH | E119: 4,001 to 10,000 Vehicles101 - 200 | F119: 150 | G119: 150 | H119: 150 | I119: 170 | J119: 210 | K119: 260 | L119: 315
B120: 4,001 to 10,000 Vehicles | C120: 201 - 300 | D120: 10 MPH | E120: 4,001 to 10,000 Vehicles201 - 300 | F120: 150 | G120: 150 | H120: 170 | I120: 210 | J120: 260 | K120: 315 | L120: 370
B121: 4,001 to 10,000 Vehicles | C121: 301 - 400 | E121: 4,001 to 10,000 Vehicles301 - 400 | F121: 150 | G121: 150 | H121: 170 | I121: 210 | J121: 260 | K121: 315 | L121: 370
B122: 4,001 to 10,000 Vehicles | C122: Over 400 | D122: 5 MPH | E122: 4,001 to 10,000 VehiclesOver 400 | F122: 150 | G122: 150 | H122: 210 | I122: 260 | J122: 315 | K122: 370 | L122: 435
B123: Over 10,000 Vehicles | C123: 0-50 | E123: =B123&C123 -> Over 10,000 Vehicles0-50 | F123: - | G123: - | H123: - | I123: - | J123: - | K123: - | L123: -
B124: Over 10,000 Vehicles | C124: 51 - 100 | D124: 15 MPH | E124: Over 10,000 Vehicles51 - 100 | F124: 150 | G124: 150 | H124: 150 | I124: 170 | J124: 210 | K124: 260 | L124: 315
B125: Over 10,000 Vehicles | C125: 101 - 200 | D125: 10 MPH | E125: Over 10,000 Vehicles101 - 200 | F125: 150 | G125: 150 | H125: 170 | I125: 210 | J125: 260 | K125: 315 | L125: 370
B126: Over 10,000 Vehicles | C126: 201 - 300 | D126: 5 MPH | E126: Over 10,000 Vehicles201 - 300 | F126: 150 | G126: 150 | H126: 210 | I126: 260 | J126: 315 | K126: 370 | L126: 435
B127: Over 10,000 Vehicles | C127: 301 - 400 | E127: Over 10,000 Vehicles301 - 400 | F127: 150 | G127: 150 | H127: 210 | I127: 260 | J127: 315 | K127: 370 | L127: 435
B128: Over 10,000 Vehicles | C128: Over 400 | D128: 0 MPH | E128: Over 10,000 VehiclesOver 400 | F128: 170 | G128: 185 | H128: 260 | I128: 315 | J128: 370 | K128: 435 | L128: 505
B131: Right-Turn Lane Warrants (R ≤ 50') G = 5% Downgrade
B132: Projected 10-Year Roadway ADT | C132: Right-turn ADT | D132: Assumed Speed Change on Through Lane | F132: Highway Posted Speed
M134: =IF(D$4=-5,INDEX(E135:L159,MATCH(F$4,E135:E159,),MATCH(C$3,E135:L135,)),) -> 0
F135: 25 | G135: 30 | H135: 35 | I135: 40 | J135: 45 | K135: 50 | L135: 55
B136: Less Than 2,000 | C136: 0-50 | E136: =B136&C136 -> Less Than 2,0000-50 | F136: - | G136: - | H136: - | I136: - | J136: - | K136: - | L136: -
B137: Less Than 2,000 | C137: 51 - 100 | E137: =B137&C137 -> Less Than 2,00051 - 100 | F137: - | G137: - | H137: - | I137: - | J137: - | K137: - | L137: -
B138: Less Than 2,000 | C138: 101 - 200 | D138: 20 MPH | E138: Less Than 2,000101 - 200 | F138: 100 | G138: 100 | H138: 100 | I138: 150 | J138: 170 | K138: 215 | L138: 265
B139: Less Than 2,000 | C139: 201 - 300 | E139: Less Than 2,000201 - 300 | F139: 100 | G139: 100 | H139: 135 | I139: 170 | J139: 215 | K139: 265 | L139: 320
B140: Less Than 2,000 | C140: 301 - 400 | E140: Less Than 2,000301 - 400 | F140: 100 | G140: 100 | H140: 135 | I140: 170 | J140: 215 | K140: 265 | L140: 320
B141: Less Than 2,000 | C141: Over 400 | D141: 15 MPH | E141: Less Than 2,000Over 400 | F141: 100 | G141: 100 | H141: 135 | I141: 170 | J141: 215 | K141: 265 | L141: 320
B142: 2,000 to 4,000 Vehicles | C142: 0-50 | E142: =B142&C142 -> 2,000 to 4,000 Vehicles0-50 | F142: - | G142: - | H142: - | I142: - | J142: - | K142: - | L142: -
B143: 2,000 to 4,000 Vehicles | C143: 51 - 100 | E143: 2,000 to 4,000 Vehicles51 - 100 | F143: - | G143: - | H143: - | I143: - | J143: - | K143: - | L143: -
B144: 2,000 to 4,000 Vehicles | C144: 101 - 200 | D144: 20 MPH | E144: 2,000 to 4,000 Vehicles101 - 200 | F144: 100 | G144: 100 | H144: 100 | I144: 150 | J144: 170 | K144: 215 | L144: 265
B145: 2,000 to 4,000 Vehicles | C145: 201 - 300 | E145: 2,000 to 4,000 Vehicles201 - 300 | F145: 100 | G145: 100 | H145: 135 | I145: 170 | J145: 215 | K145: 265 | L145: 320
B146: 2,000 to 4,000 Vehicles | C146: 301 - 400 | D146: 15 MPH | E146: 2,000 to 4,000 Vehicles301 - 400 | F146: 100 | G146: 100 | H146: 135 | I146: 170 | J146: 215 | K146: 265 | L146: 320
B147: 2,000 to 4,000 Vehicles | C147: Over 400 | D147: 10 MPH | E147: 2,000 to 4,000 VehiclesOver 400 | F147: 100 | G147: 105 | H147: 170 | I147: 215 | J147: 265 | K147: 320 | L147: 380
B148: 4,001 to 10,000 Vehicles | C148: 0-50 | E148: =B148&C148 -> 4,001 to 10,000 Vehicles0-50 | F148: - | G148: - | H148: - | I148: - | J148: - | K148: - | L148: -
B149: 4,001 to 10,000 Vehicles | C149: 51 - 100 | D149: 20 MPH | E149: 4,001 to 10,000 Vehicles51 - 100 | F149: 150 | G149: 150 | H149: 150 | I149: 150 | J149: 170 | K149: 215 | L149: 265
B150: 4,001 to 10,000 Vehicles | C150: 101 - 200 | D150: 15 MPH | E150: 4,001 to 10,000 Vehicles101 - 200 | F150: 150 | G150: 150 | H150: 150 | I150: 170 | J150: 215 | K150: 265 | L150: 320
B151: 4,001 to 10,000 Vehicles | C151: 201 - 300 | D151: 10 MPH | E151: 4,001 to 10,000 Vehicles201 - 300 | F151: 150 | G151: 150 | H151: 170 | I151: 215 | J151: 265 | K151: 320 | L151: 380
B152: 4,001 to 10,000 Vehicles | C152: 301 - 400 | E152: 4,001 to 10,000 Vehicles301 - 400 | F152: 150 | G152: 150 | H152: 170 | I152: 215 | J152: 265 | K152: 320 | L152: 380
B153: 4,001 to 10,000 Vehicles | C153: Over 400 | D153: 5 MPH | E153: 4,001 to 10,000 VehiclesOver 400 | F153: 150 | G153: 150 | H153: 215 | I153: 265 | J153: 320 | K153: 380 | L153: 445
B154: Over 10,000 Vehicles | C154: 0-50 | E154: =B154&C154 -> Over 10,000 Vehicles0-50 | F154: - | G154: - | H154: - | I154: - | J154: - | K154: - | L154: -
B155: Over 10,000 Vehicles | C155: 51 - 100 | D155: 15 MPH | E155: Over 10,000 Vehicles51 - 100 | F155: 150 | G155: 150 | H155: 150 | I155: 170 | J155: 215 | K155: 265 | L155: 320
B156: Over 10,000 Vehicles | C156: 101 - 200 | D156: 10 MPH | E156: Over 10,000 Vehicles101 - 200 | F156: 150 | G156: 150 | H156: 170 | I156: 215 | J156: 265 | K156: 320 | L156: 380
B157: Over 10,000 Vehicles | C157: 201 - 300 | D157: 5 MPH | E157: Over 10,000 Vehicles201 - 300 | F157: 150 | G157: 150 | H157: 215 | I157: 265 | J157: 320 | K157: 380 | L157: 445
B158: Over 10,000 Vehicles | C158: 301 - 400 | E158: Over 10,000 Vehicles301 - 400 | F158: 150 | G158: 150 | H158: 215 | I158: 265 | J158: 320 | K158: 380 | L158: 445
B159: Over 10,000 Vehicles | C159: Over 400 | D159: 0 MPH | E159: Over 10,000 VehiclesOver 400 | F159: 170 | G159: 190 | H159: 265 | I159: 320 | J159: 380 | K159: 445 | L159: 520
B162: Right-Turn Lane Warrants (R ≤ 50') G = 6% Downgrade
B163: Projected 10-Year Roadway ADT | C163: Right-turn ADT | D163: Assumed Speed Change on Through Lane | F163: Highway Posted Speed
M165: =IF(D$4=-6,INDEX(E166:L190,MATCH(F$4,E166:E190,),MATCH(C$3,E166:L166,)),) -> 0
F166: 25 | G166: 30 | H166: 35 | I166: 40 | J166: 45 | K166: 50 | L166: 55
B167: Less Than 2,000 | C167: 0-50 | E167: =B167&C167 -> Less Than 2,0000-50 | F167: - | G167: - | H167: - | I167: - | J167: - | K167: - | L167: -
B168: Less Than 2,000 | C168: 51 - 100 | E168: =B168&C168 -> Less Than 2,00051 - 100 | F168: - | G168: - | H168: - | I168: - | J168: - | K168: - | L168: -
B169: Less Than 2,000 | C169: 101 - 200 | D169: 20 MPH | E169: Less Than 2,000101 - 200 | F169: 100 | G169: 100 | H169: 105 | I169: 150 | J169: 175 | K169: 220 | L169: 270
B170: Less Than 2,000 | C170: 201 - 300 | E170: Less Than 2,000201 - 300 | F170: 100 | G170: 100 | H170: 135 | I170: 175 | J170: 220 | K170: 270 | L170: 330
B171: Less Than 2,000 | C171: 301 - 400 | E171: Less Than 2,000301 - 400 | F171: 100 | G171: 100 | H171: 135 | I171: 175 | J171: 220 | K171: 270 | L171: 330
B172: Less Than 2,000 | C172: Over 400 | D172: 15 MPH | E172: Less Than 2,000Over 400 | F172: 100 | G172: 100 | H172: 135 | I172: 175 | J172: 220 | K172: 270 | L172: 330
B173: 2,000 to 4,000 Vehicles | C173: 0-50 | E173: =B173&C173 -> 2,000 to 4,000 Vehicles0-50 | F173: - | G173: - | H173: - | I173: - | J173: - | K173: - | L173: -
B174: 2,000 to 4,000 Vehicles | C174: 51 - 100 | E174: 2,000 to 4,000 Vehicles51 - 100 | F174: - | G174: - | H174: - | I174: - | J174: - | K174: - | L174: -
B175: 2,000 to 4,000 Vehicles | C175: 101 - 200 | D175: 20 MPH | E175: 2,000 to 4,000 Vehicles101 - 200 | F175: 100 | G175: 100 | H175: 105 | I175: 150 | J175: 175 | K175: 220 | L175: 270
B176: 2,000 to 4,000 Vehicles | C176: 201 - 300 | E176: 2,000 to 4,000 Vehicles201 - 300 | F176: 100 | G176: 105 | H176: 135 | I176: 175 | J176: 220 | K176: 270 | L176: 330
B177: 2,000 to 4,000 Vehicles | C177: 301 - 400 | D177: 15 MPH | E177: 2,000 to 4,000 Vehicles301 - 400 | F177: 100 | G177: 105 | H177: 135 | I177: 175 | J177: 220 | K177: 270 | L177: 330
B178: 2,000 to 4,000 Vehicles | C178: Over 400 | D178: 10 MPH | E178: 2,000 to 4,000 VehiclesOver 400 | F178: 105 | G178: 140 | H178: 175 | I178: 220 | J178: 270 | K178: 330 | L178: 390
B179: 4,001 to 10,000 Vehicles | C179: 0-50 | E179: =B179&C179 -> 4,001 to 10,000 Vehicles0-50 | F179: - | G179: - | H179: - | I179: - | J179: - | K179: - | L179: -
B180: 4,001 to 10,000 Vehicles | C180: 51 - 100 | D180: 20 MPH | E180: 4,001 to 10,000 Vehicles51 - 100 | F180: 150 | G180: 150 | H180: 150 | I180: 150 | J180: 175 | K180: 220 | L180: 270
B181: 4,001 to 10,000 Vehicles | C181: 101 - 200 | D181: 15 MPH | E181: 4,001 to 10,000 Vehicles101 - 200 | F181: 150 | G181: 150 | H181: 150 | I181: 175 | J181: 220 | K181: 270 | L181: 330
B182: 4,001 to 10,000 Vehicles | C182: 201 - 300 | D182: 10 MPH | E182: 4,001 to 10,000 Vehicles201 - 300 | F182: 150 | G182: 150 | H182: 175 | I182: 220 | J182: 270 | K182: 330 | L182: 390
B183: 4,001 to 10,000 Vehicles | C183: 301 - 400 | E183: 4,001 to 10,000 Vehicles301 - 400 | F183: 150 | G183: 150 | H183: 175 | I183: 220 | J183: 270 | K183: 330 | L183: 390
B184: 4,001 to 10,000 Vehicles | C184: Over 400 | D184: 5 MPH | E184: 4,001 to 10,000 VehiclesOver 400 | F184: 150 | G184: 150 | H184: 220 | I184: 270 | J184: 330 | K184: 390 | L184: 460
B185: Over 10,000 Vehicles | C185: 0-50 | E185: =B185&C185 -> Over 10,000 Vehicles0-50 | F185: - | G185: - | H185: - | I185: - | J185: - | K185: - | L185: -
B186: Over 10,000 Vehicles | C186: 51 - 100 | D186: 15 MPH | E186: Over 10,000 Vehicles51 - 100 | F186: 150 | G186: 150 | H186: 150 | I186: 175 | J186: 220 | K186: 270 | L186: 330
B187: Over 10,000 Vehicles | C187: 101 - 200 | D187: 10 MPH | E187: Over 10,000 Vehicles101 - 200 | F187: 150 | G187: 150 | H187: 175 | I187: 220 | J187: 270 | K187: 330 | L187: 390
B188: Over 10,000 Vehicles | C188: 201 - 300 | D188: 5 MPH | E188: Over 10,000 Vehicles201 - 300 | F188: 150 | G188: 150 | H188: 220 | I188: 270 | J188: 330 | K188: 390 | L188: 460
B189: Over 10,000 Vehicles | C189: 301 - 400 | E189: Over 10,000 Vehicles301 - 400 | F189: 150 | G189: 150 | H189: 220 | I189: 270 | J189: 330 | K189: 390 | L189: 460
B190: Over 10,000 Vehicles | C190: Over 400 | D190: 0 MPH | E190: Over 10,000 VehiclesOver 400 | F190: 175 | G190: 195 | H190: 270 | I190: 330 | J190: 390 | K190: 460 | L190: 535
B193: Right-Turn Lane Warrants (R ≤ 50') G = 7% Downgrade
B194: Projected 10-Year Roadway ADT | C194: Right-turn ADT | D194: Assumed Speed Change on Through Lane | F194: Highway Posted Speed
M196: =IF(D$4=-7,INDEX(E197:L221,MATCH(F$4,E197:E221,),MATCH(C$3,E197:L197,)),) -> 0
F197: 25 | G197: 30 | H197: 35 | I197: 40 | J197: 45 | K197: 50 | L197: 55
B198: Less Than 2,000 | C198: 0-50 | E198: =B198&C198 -> Less Than 2,0000-50 | F198: - | G198: - | H198: - | I198: - | J198: - | K198: - | L198: -
B199: Less Than 2,000 | C199: 51 - 100 | E199: =B199&C199 -> Less Than 2,00051 - 100 | F199: - | G199: - | H199: - | I199: - | J199: - | K199: - | L199: -
B200: Less Than 2,000 | C200: 101 - 200 | D200: 20 MPH | E200: Less Than 2,000101 - 200 | F200: 100 | G200: 100 | H200: 105 | I200: 150 | J200: 180 | K200: 225 | L200: 280
B201: Less Than 2,000 | C201: 201 - 300 | E201: Less Than 2,000201 - 300 | F201: 100 | G201: 100 | H201: 140 | I201: 180 | J201: 225 | K201: 280 | L201: 335
B202: Less Than 2,000 | C202: 301 - 400 | E202: Less Than 2,000301 - 400 | F202: 100 | G202: 100 | H202: 140 | I202: 180 | J202: 225 | K202: 280 | L202: 335
B203: Less Than 2,000 | C203: Over 400 | D203: 15 MPH | E203: Less Than 2,000Over 400 | F203: 100 | G203: 100 | H203: 140 | I203: 180 | J203: 225 | K203: 280 | L203: 335
B204: 2,000 to 4,000 Vehicles | C204: 0-50 | E204: =B204&C204 -> 2,000 to 4,000 Vehicles0-50 | F204: - | G204: - | H204: - | I204: - | J204: - | K204: - | L204: -
B205: 2,000 to 4,000 Vehicles | C205: 51 - 100 | E205: 2,000 to 4,000 Vehicles51 - 100 | F205: - | G205: - | H205: - | I205: - | J205: - | K205: - | L205: -
B206: 2,000 to 4,000 Vehicles | C206: 101 - 200 | D206: 20 MPH | E206: 2,000 to 4,000 Vehicles101 - 200 | F206: 100 | G206: 100 | H206: 105 | I206: 150 | J206: 180 | K206: 225 | L206: 280
B207: 2,000 to 4,000 Vehicles | C207: 201 - 300 | E207: 2,000 to 4,000 Vehicles201 - 300 | F207: 100 | G207: 100 | H207: 140 | I207: 180 | J207: 225 | K207: 280 | L207: 335
B208: 2,000 to 4,000 Vehicles | C208: 301 - 400 | D208: 15 MPH | E208: 2,000 to 4,000 Vehicles301 - 400 | F208: 100 | G208: 100 | H208: 140 | I208: 180 | J208: 225 | K208: 280 | L208: 335
B209: 2,000 to 4,000 Vehicles | C209: Over 400 | D209: 10 MPH | E209: 2,000 to 4,000 VehiclesOver 400 | F209: 105 | G209: 115 | H209: 180 | I209: 225 | J209: 280 | K209: 335 | L209: 400
B210: 4,001 to 10,000 Vehicles | C210: 0-50 | E210: =B210&C210 -> 4,001 to 10,000 Vehicles0-50 | F210: - | G210: - | H210: - | I210: - | J210: - | K210: - | L210: -
B211: 4,001 to 10,000 Vehicles | C211: 51 - 100 | D211: 20 MPH | E211: 4,001 to 10,000 Vehicles51 - 100 | F211: 150 | G211: 150 | H211: 150 | I211: 150 | J211: 180 | K211: 225 | L211: 280
B212: 4,001 to 10,000 Vehicles | C212: 101 - 200 | D212: 15 MPH | E212: 4,001 to 10,000 Vehicles101 - 200 | F212: 150 | G212: 150 | H212: 150 | I212: 180 | J212: 225 | K212: 280 | L212: 335
B213: 4,001 to 10,000 Vehicles | C213: 201 - 300 | D213: 10 MPH | E213: 4,001 to 10,000 Vehicles201 - 300 | F213: 150 | G213: 150 | H213: 180 | I213: 225 | J213: 280 | K213: 335 | L213: 400
B214: 4,001 to 10,000 Vehicles | C214: 301 - 400 | E214: 4,001 to 10,000 Vehicles301 - 400 | F214: 150 | G214: 150 | H214: 180 | I214: 225 | J214: 280 | K214: 335 | L214: 400
B215: 4,001 to 10,000 Vehicles | C215: Over 400 | D215: 5 MPH | E215: 4,001 to 10,000 VehiclesOver 400 | F215: 150 | G215: 155 | H215: 225 | I215: 280 | J215: 335 | K215: 400 | L215: 470
B216: Over 10,000 Vehicles | C216: 0-50 | E216: =B216&C216 -> Over 10,000 Vehicles0-50 | F216: - | G216: - | H216: - | I216: - | J216: - | K216: - | L216: -
B217: Over 10,000 Vehicles | C217: 51 - 100 | D217: 15 MPH | E217: Over 10,000 Vehicles51 - 100 | F217: 150 | G217: 150 | H217: 150 | I217: 180 | J217: 225 | K217: 280 | L217: 335
B218: Over 10,000 Vehicles | C218: 101 - 200 | D218: 10 MPH | E218: Over 10,000 Vehicles101 - 200 | F218: 150 | G218: 150 | H218: 180 | I218: 225 | J218: 280 | K218: 335 | L218: 400
B219: Over 10,000 Vehicles | C219: 201 - 300 | D219: 5 MPH | E219: Over 10,000 Vehicles201 - 300 | F219: 150 | G219: 155 | H219: 225 | I219: 280 | J219: 335 | K219: 400 | L219: 470
... 338 more rows

Sheet Left Turn Lane-Tab 3
A32: Deceleration Length (ft) = Brake Reaction (ft) + Braking on Level (ft) | C32: Posted Speed (mph) | J32: 10 Year Opposing Volume: Peak Hour %
C33: 25 | D33: 30 | E33: 35 | F33: 40 | G33: 45 | H33: 50 | I33: 55 | J33: Traffic Pattern Group | K33: K-Factor | L33: D-Factor | M33: KxD-Factor | N33: Truck %
A34: Brake reaction distance | C34: 44.1 | D34: 51.5 | E34: 58.8 | F34: 58.8 | G34: 66.15 | H34: 73.5 | I34: 80.85 | J34: 1 | K34: 10.5 | L34: 56.7 | M34: =K34*L34/10000 -> 0.059535 | N34: 6.3
A35: Braking distance on level | C35: 86.4 | D35: 117.6 | E35: 117.6 | F35: 117.6 | G35: 153.6 | H35: 194.4 | I35: 240 | J35: 2 | K35: 10.9 | L35: 56.3 | M35: 0.061367 | N35: 0.9
A36: Stopping Sight Distance | C36: 131 | D36: 169 | E36: 177 | F36: 177 | G36: 220 | H36: 268 | I36: 321 | J36: 4 | K36: 12.4 | L36: 58.6 | M36: 0.072664 | N36: 0.8
J37: 5 | K37: 11.8 | L37: 55.1 | M37: =K37*L37/10000 -> 0.065018 | N37: 1.9
J38: 7 | K38: 14.2 | L38: 58.9 | M38: 0.083638 | N38: 1.7
J39: 8 | K39: 10.3 | L39: 53.8 | M39: 0.055414 | N39: 1.1

Sheet Bypass Lane-Tab 4
A2: Figure 5.2.9.2-a Bypass Lane Warrants
A3: Projected 10-year Roadway AADT | B3: Projected 10- Year Opposing Volume (vph) | C3: Left-Turning Vehicles (vph)
C5: Less than 10 | D5: 10-14 | E5: 15-20 | F5: 21-30 | G5: 31-40 | H5: Over 40
C10: Storage Length (feet)
A11: Less than 1,500 Vehicles | B11: Over 100 | C11: - | D11: - | E11: - | F11: 50 | G11: 50 | H11: 50
A13: 1,500 to 2000 Vehicles | B13: 0-400 | C13: - | D13: - | E13: 50 | F13: 50 | G13: 50
A15: 2,001 to 4,000 Vehicles | B15: 0 - 100 | C15: - | D15: 50 | E15: 50 | F15: 50 | G15: 50
B16: 101 - 200 | C16: - | D16: 50 | E16: 50 | F16: 50 | G16: 50
B17: 201 - 300 | C17: - | D17: 50 | E17: 50 | F17: 50
B18: 301 – 400 | C18: - | D18: 50 | E18: 50 | F18: 50
B19: Over 400 | C19: - | D19: 75 | E19: 75 | G19: See Left-Turn Lane Warrants
A20: 4,001 to 8,000 Vehicles | B20: - | C20: - | D20: 75
A22: Over 8,000 Vehicles | B22: - | C22: -
A24: Posted Speed (mph) | B24: Approach Taper Length (feet) | F24: Posted Speed (mph) | G24: Departure Taper Length (feet)
A27: 25 | B27: Bypass Lane Not Warranted | F27: 25 | G27: Bypass Lane Not Warranted
A28: 30 | B28: 125 | F28: 30 | G28: 65
A29: 35 | B29: 155 | F29: 35 | G29: 80
A30: 40 | B30: 155 | F30: 40 | G30: 80
A31: 45 | B31: 180 | F31: 45 | G31: 90
A32: 50 | B32: 215 | F32: 50 | G32: 110
A33: 55 | B33: 250 | F33: 55 | G33: 125

Sheet Right Turn Lane R ≤ 50-Tab 5
A3: Figure 5.2.9.1-a Right Turn Lane Warrants (R<50’)
A5: Projected 10-Year Roadway ADT | B5: Right-turn ADT | C5: Assumed Speed Change on Through Lane | D5: Highway Posted Speed
D6: 25 MPH | E6: 35 MPH | F6: 40 MPH | G6: 45 MPH | H6: 50 MPH | I6: 55 MPH
D7: Deceleration Length
A8: Less Than 2,000 Vehicles | B8: 0-100 | C8: - | D8: - | E8: - | F8: - | G8: - | H8: - | I8: -
B9: 101 - 200 | C9: 20 MPH | D9: 100 | E9: 100 | F9: 150 | G9: 160 | H9: 195 | I9: 240
B10: Over 200 | C10: 15 MPH | D10: 100 | E10: 125 | F10: 160 | G10: 195 | H10: 240 | I10: 290
A11: 2,000 to 4,000 Vehicles | B11: 0-100 | C11: - | D11: - | E11: - | F11: - | G11: - | H11: - | I11: -
B12: 101 - 200 | C12: 20 MPH | D12: 100 | E12: 100 | F12: 150 | G12: 160 | H12: 195 | I12: 240
B13: 201 - 400 | C13: 15 MPH | D13: 100 | E13: 125 | F13: 160 | G13: 195 | H13: 240 | I13: 290
B14: Over 400 | C14: 10 MPH | D14: 100 | E14: 160 | F14: 195 | G14: 240 | H14: 290 | I14: 340
A15: 4,001 to 10,000 Vehicles | B15: 0-50 | C15: - | D15: - | E15: - | F15: - | G15: - | H15: - | I15: -
B16: 51 - 100 | C16: 20 MPH | D16: 150 | E16: 150 | F16: 150 | G16: 160 | H16: 195 | I16: 240
B17: 101 - 200 | C17: 15 MPH | D17: 150 | E17: 150 | F17: 160 | G17: 195 | H17: 240 | I17: 290
B18: 201 - 400 | C18: 10 MPH | D18: 150 | E18: 160 | F18: 195 | G18: 240 | H18: 290 | I18: 340
B19: Over 400 | C19: 5 MPH | D19: 150 | E19: 195 | F19: 240 | G19: 290 | H19: 340 | I19: 400
A20: Over 10,000 Vehicles | B20: 0-50 | C20: - | D20: - | E20: - | F20: - | G20: - | H20: - | I20: -
B21: 51 - 100 | C21: 15 MPH | D21: 150 | E21: 150 | F21: 160 | G21: 195 | H21: 240 | I21: 290
B22: 101 - 200 | C22: 10 MPH | D22: 150 | E22: 160 | F22: 195 | G22: 240 | H22: 290 | I22: 340
B23: 201 - 400 | C23: 5 MPH | D23: 150 | E23: 195 | F23: 240 | G23: 290 | H23: 340 | I23: 400
B24: Over 400 | C24: 0 MPH | D24: 160 | E24: 240 | F24: 290 | G24: 340 | H24: 400 | I24: 460
A26: Assumptions 1. Vehicle Length (ft): 25 2. Brake Reaction time, t (sec): 1 3. Full deceleration to 0 mph (stop condition) 4. Stopping Sight Distance determined, using methodology adopted from the AASHTO Green Book, as follows: a. Per Eq. 3-1, Braking distance on level, d1 = 1.075*((Vdesign speed)2/a), a = 11.2 ft/s2 b. Per Eq. 3-2, Brake reaction distance, d2 = 1.47*(Vdesign speed)*t c. Per Eq. 3-3, Brake distance on grade, d3 = (Vdesign speed)2/(30*(a/32.2)±G), a = 11.2 ft/s2; G = percent of grade divided by 100 d. AASHTO equations reference design speed which DelDOT defines as posted speed + 5 mph. 5. A practical minimum storage length of 25 feet (1 vehicle) is included in the deceleration length as per the NCHRP 457, page 24. 6. All right turn deceleration lengths include a 50-foot taper length

Sheet Right Turn Lane R > 50-Tab 6
A3: Figure 5.2.9.1-b Right Turn Lane Warrants (R>50’)
A5: Projected 10-Year Roadway ADT | B5: Right-turn ADT | C5: Assumed Speed Change on Through Lane | D5: Highway Posted Speed
D6: 25 MPH | E6: 35 MPH | F6: 40 MPH | G6: 45 MPH | H6: 50 MPH | I6: 55 MPH
D7: Deceleration Length
A8: Less Than 2,000 Vehicles | B8: 0-100 | C8: - | D8: - | E8: - | F8: - | G8: - | H8: - | I8: -
B9: 101 - 200 | C9: 20 MPH | D9: - | E9: 100 | F9: 135 | G9: 135 | H9: 150 | I9: 195
B10: Over 200 | C10: 15 MPH | D10: - | E10: 100 | F10: 135 | G10: 150 | H10: 195 | I10: 240
A11: 2,000 to 4,000 Vehicles | B11: 0-100 | C11: - | D11: - | E11: - | F11: - | G11: - | H11: - | I11: -
B12: 101 - 200 | C12: 20 MPH | D12: - | E12: 100 | F12: 135 | G12: 135 | H12: 150 | I12: 195
B13: 201 - 400 | C13: 15 MPH | D13: - | E13: 100 | F13: 135 | G13: 150 | H13: 195 | I13: 240
B14: Over 400 | C14: 10 MPH | D14: 100 | E14: 110 | F14: 150 | G14: 195 | H14: 240 | I14: 295
A15: 4,001 to 10,000 Vehicles | B15: 0-50 | C15: - | D15: - | E15: - | F15: - | G15: - | H15: - | I15: -
B16: 51 - 100 | C16: 20 MPH | D16: - | E16: 135 | F16: 135 | G16: 135 | H16: 150 | I16: 195
B17: 101 - 200 | C17: 15 MPH | D17: - | E17: 135 | F17: 135 | G17: 150 | H17: 195 | I17: 240
B18: 201 - 400 | C18: 10 MPH | D18: 135 | E18: 135 | F18: 150 | G18: 195 | H18: 240 | I18: 295
B19: Over 400 | C19: 5 MPH | D19: 135 | E19: 150 | F19: 195 | G19: 240 | H19: 295 | I19: 355
A20: Over 10,000 Vehicles | B20: 0-50 | C20: - | D20: - | E20: - | F20: - | G20: - | H20: - | I20: -
B21: 51 - 100 | C21: 15 MPH | D21: - | E21: 135 | F21: 135 | G21: 150 | H21: 195 | I21: 240
B22: 101 - 200 | C22: 10 MPH | D22: 135 | E22: 135 | F22: 150 | G22: 195 | H22: 240 | I22: 295
B23: 201 - 400 | C23: 5 MPH | D23: 135 | E23: 150 | F23: 195 | G23: 240 | H23: 295 | I23: 355
B24: Over 400 | C24: 0 MPH | D24: 135 | E24: 195 | F24: 240 | G24: 295 | H24: 355 | I24: 415
A26: Assumptions 1. Vehicle Length (ft): 25 2. Brake Reaction time, t (sec): 1 3. Deceleration to 15 mph (turning design speed of a corner radius > 50 feet adopted from the DelDOT Road Design Manual) 4. Stopping Sight Distance determined by adding the Brake Reaction Distance, (adopted from AASHTO Green Book) and the Braking Distance on Level from the Uniform Acceleration Formula (UAF) as follows: a. Per Eq. 3-2, adopted from the AASHTO Green Book, Brake reaction distance, d1 = 1.47*(Vdesign speed)*t b. Per UAF, Braking distance on level from Design Speed to 15 mph, d2 = ((1.47*15 mph)2- (1.47*Vdesign speed)2)/2a, a = -11.2 ft/s2 c. Per UAF, Braking distance on grade from Design Speed to 15 mph, d2 = ((1.47*15 mph)2- (1.47*Vdesign speed)2)/2*(-32.2*(0.35±G)); G = percent of grade divided by 100 d. Equations reference design speed which DelDOT defines as posted speed + 5 mph. 5. A practical minimum storage length of 25 feet (1 vehicle) is included in the deceleration length as per the NCHRP 457, page 24. 6. All right turn deceleration lengths include a 50-foot taper length

Sheet Signalized Intersection-Tab 7
A2: LEFT-TURN LANE LENGTH AT SIGNALIZED INTERSECTIONS
B4: Requires more detailed coordination with the Traffic Impact Studies Group within the DelDOT: Development Coordination Section
A6: From the Highway Capacity Manual 2010 (HCM 2010) / Highway Capacity Software 2010 (HCS 2010) determine the Left-Turn 95% QUEUE (Veh) and the Left-Turn 50% QUEUE (Veh) | G6: Posted Speed (mph) | H6: DECELERATION (Feet)*
G8: 25 | H8: 135
G9: 35 | H9: 180
G10: 40 | H10: 180
G11: 45 | H11: 220
G12: 50 | H12: 270
G13: 55 | H13: 325
G14: * Includes a 100-foot taper length
A16: LEFT-TURN LANE LENGTH (Feet) = HCS 95% QUEUE + 100 Feet
A17: Input Data | G17: Sample
G18: Input Data | H18: Length
A19: HCS 2010 | C19: 95% Queue in veh | G19: 7.58 | H19: 7.58 x 25 = 189.5
A20: Taper | C20: 100 Feet | H20: 100
G21: Total Left-Turn Lane Length (feet) | I21: 290
A24: LEFT-TURN LANE LENGTH (Feet) = HCS 50% QUEUE + DECELERATION
A25: Input Data | G25: Sample
G26: Input Data | H26: Length
A27: HCS 2010 | C27: 50% Queue in veh | G27: 3.18 | H27: 3.18 x 25 = 79.5
A28: Deceleration | C28: Posted Speed in mph | G28: 45 | H28: 220
G29: Total Left-Turn Lane Length (feet) | I29: 300
A32: THE RECOMMENDED LEFT-TURN LANE LENGTH IS THE HIGHEST OF THE TWO VALUES = 300 feet
A35: RIGHT-TURN LANE LENGTH AT SIGNALIZED INTERSECTIONS
A37: From the Highway Capacity Manual 2010 (HCM 2010) / Highway Capacity Software 2010 (HCS 2010) determine the Right-Turn 95% QUEUE (Veh)
A41: RIGHT-TURN LANE LENGTH (Feet) = HCS 95% QUEUE + 50 Feet
A42: Input Data | G42: Sample
G43: Input Data | H43: Length
A44: HCS 2010 | C44: 95% Queue in veh | G44: 4.59 | H44: 4.59 x 25 = 114.8
A45: Taper | C45: 50 Feet | H45: 50
G46: Total Right-Turn Lane Length (feet) | I46: 165
A49: RIGHT-TURN LANE LENGTH VALUE FROM THE UNSIGNALIZED INTERSECTION "RIGHT TURN LANE R ≤ 50 MPH" TAB 4
A51: THE RECOMMENDED RIGHT-TURN LANE LENGTH IS THE HIGHEST OF THE TWO VALUES
A53: Notes 1. These tables and recommendations are for signalized intersections auxiliary lane calculations only. For unsignalized intersections use Tabs 1 to 5.
A55: Assumptions 1. Vehicle Length (ft): 25 2. Brake Reaction time, t (sec): 1 3. Deceleration length includes 100' opening taper to left turn lane 4. Full deceleration to 0 mph (stop condition) 5. Braking reaction distance assumes the following speed reduction from posted speed limit in through lane: a. 0 mph for 25 - 35 mph posted speed b. 5 mph for 40 - 55 mph posted speed 6. Braking distance assumes the following speed reduction from posted speed limit in through lane: a. 0 mph for 25 mph posted speed b. 5 mph for 35 mph posted speed c. 10 mph for 40 -55 mph posted speed 7. Lengths determined using AASHTO Green Book as follows: a. Per Eq. 3-2, Brake reaction distance, d = 1.47*Vdesign speed*t b. Per Eq. 3-1, Braking distance on level, d = 1.075*((Vdesign speed)2/a), a = 11.2 ft/s (-3% < Grade < 3%) c. Per Eq. 3-3, Braking distance on grade, d = [(Vdesign speed)2/(30*(a/32.2)±G)], a = 11.2 ft/s, -3% ≥ G ≥ 3% d. AASHTO equation and exhibit references design speed which DelDOT defines as posted speed + 5 mph.
A57: Deceleration Length (feet) = Brake Reaction + Braking on Level | D57: Posted Speed (mph)
D58: 25 | E58: 35 | F58: 40 | G58: 45 | H58: 50 | I58: 55
A59: Brake reaction distance (ft) | D59: 44.1 | E59: 58.8 | F59: 58.8 | G59: 66.15 | H59: 73.5 | I59: 80.85
A60: Braking distance on level (ft) | D60: 86.4 | E60: 117.6 | F60: 117.6 | G60: 153.6 | H60: 194.4 | I60: 240
A61: Stopping Sight Distance (ft) | D61: 131 | E61: 177 | F61: 177 | G61: 220 | H61: 268 | I61: 321
A63: 2. Recommended Total Turn Lane Lengths are rounded up to the nearest 5'.

Sheet Drop Lists - K&D factors - Msgs (hidden)
B1: Drop lists | K1: Critical Headway, tc
L2: 2 lanes | M2: 4 lanes | N2: > 4 Lanes
B3: Posted Speed | C3: Roadway ADT | D3: RT ADT | E3: Funct Class | F3: Intersection Legs | G3: Radius | H3: Proposed entrance | K3: %HV | S3: 0-50
S4: 51 - 100 | V4: ='Traffic Generation Input Tab-1'!I22 -> 0
B5: 25 | C5: Less Than 2,000 | D5: 0-50 | E5: Interstate | F5: 3 | G5: R≤50' | H5: Proposed Entrance 1 | K5: 5 | L5: =(4.1+(1*K5/100)) -> 4.15 | M5: =(4.1+(2*K5/100)) -> 4.2 | S5: 101 - 200
B6: 30 | C6: 2,000 to 4,000 Vehicles | D6: 51 - 100 | E6: Other Freeway / Expressway | F6: 4 | G6: R>50' | H6: Proposed Entrance 2 | K6: 10 | L6: 4.2 | M6: 4.3 | S6: 201 - 300
B7: 35 | C7: 4,001 to 10,000 Vehicles | D7: 101 - 200 | E7: Other Principal Arterial | H7: Existing Leg | K7: 20 | L7: 4.3 | M7: 4.5 | S7: 301 - 400
B8: 40 | C8: Over 10,000 Vehicles | D8: 201 - 300 | E8: Minor Arterial | K8: 30 | L8: 4.4 | M8: 4.7 | S8: Over 400
B9: 45 | D9: 301 - 400 | E9: Major Collector | K9: 40 | L9: 4.5 | M9: 4.9
B10: 50 | D10: Over 400 | E10: Minor Collector | K10: 50 | L10: 4.6 | M10: 5.1 | S10: =IF(AND('Drop Lists - K&D factors - Msgs'!V4>=0,'Drop Lists - K&D factors - Msgs'!V4<=50),"0-50",IF(AND('Drop Lists - K&D factors - Msgs'!V4>50,'Drop Lists - K&D factors - Msgs'!V4<=100),"51 - 100",IF(AND('Drop Lists - K&D factors - Msgs'!V4>100,'Drop Lists - K&D factors - Msgs'!V4<=200),"101 - 200",IF(AND('Drop Lists - K&D factors - Msgs'!V4>200,'Drop Lists - K&D factors - Msgs'!V4<=300),"201 - 300",IF(AND('Drop Lists - K&D factors - Msgs'!V4>300,'Drop Lists - K&D factors - Msgs'!V4<=400),"301 - 400","Over 400"))))) -> 0-50
B11: 55 | E11: Local | K11: 70 | L11: 4.8 | M11: 5.5
C15: Traffic Pattern Group | G15: 10-Year
B16: AADT | D16: K-Factor | E16: D-Factor | F16: Growth | G16: Opposing | K16: Error Message Desplay To disable it: Cut K18 cell and paste it to L18 cell or any other cell
F19: Factor | G19: Volume | K19: =IF('Aux Lane Inputs-Tab 2'!E6="","Select if Signalized / Unsignalized",IF('Aux Lane Inputs-Tab 2'!K6="","Select the posted speed limit",IF('Aux Lane Inputs-Tab 2'!E7="","Input Roadway ADT",IF('Aux Lane Inputs-Tab 2'!K7="","Select Traffic Pattern Group",IF('Aux Lane Inputs-Tab 2'!E9="","Select the total number of through Lanes",IF('Aux Lane Inputs-Tab 2'!K9="","Select the number of intersection legs",IF('Aux Lane Inputs-Tab 2'!E10="","Select the Roadway Functional Classification",IF('Aux Lane Inputs-Tab 2'!E14="","Select Left Turn ADT",IF('Aux Lane Inputs-Tab 2'!F15="","Input Left Turn Lane VPH",IF('Aux Lane Inputs-Tab 2'!E16="","Select Approach grade",IF(ABS('Aux Lane Inputs-Tab 2'!E16*100)>9,"Approach Grade Excessive",IF('Aux Lane Inputs-Tab 2'!E17="","Select Heavy Vehicle %","")))))))))))) -> Select if Signalized / Unsignalized | L19: =IF('Aux Lane Inputs-Tab 2'!E6="","Select if Signalized / Unsignalized",IF('Aux Lane Inputs-Tab 2'!E9="","Select the total number of through Lanes",IF('Aux Lane Inputs-Tab 2'!E10="","Select the Roadway Functional Classification",IF('Aux Lane Inputs-Tab 2'!K9="","Select the number of intersection legs",IF('Aux Lane Inputs-Tab 2'!K6="","Select the posted speed limit",IF('Aux Lane Inputs-Tab 2'!E7="","Input Roadway ADT",IF('Aux Lane Inputs-Tab 2'!K7="","Select Traffic Pattern Group",IF('Aux Lane Inputs-Tab 2'!E14="","Select Left Turn ADT",IF('Aux Lane Inputs-Tab 2'!F15="","Input Left Turn Lane VPH",IF('Aux Lane Inputs-Tab 2'!E16="","Select Approach grade",IF(ABS('Aux Lane Inputs-Tab 2'!E16*100)>9,"Approach Grade Excessive",IF('Aux Lane Inputs-Tab 2'!E17="","Select Heavy Vehicle %","")))))))))))) -> Select if Signalized / Unsignalized
B21: ='Aux Lane Inputs-Tab 2'!E7 -> 0 | C21: 1 | D21: 10.5 | E21: 56.7 | F21: 1.16 | G21: =(D21/100)*(E21/100)*F21*B21 -> 0
C22: 2 | D22: 10.9 | E22: 56.3 | F22: 1.16 | G22: =(D22/100)*(E22/100)*F22*B21 -> 0
C23: 4 | D23: 12.4 | E23: 58.6 | F23: 1.16 | G23: =(D23/100)*(E23/100)*F23*B21 -> 0
C24: 5 | D24: 11.8 | E24: 55.1 | F24: 1.16 | G24: =(D24/100)*(E24/100)*F24*B21 -> 0
C25: 7 | D25: 14.2 | E25: 58.9 | F25: 1.16 | G25: =(D25/100)*(E25/100)*F25*B21 -> 0
C26: 8 | D26: 10.3 | E26: 53.8 | F26: 1.16 | G26: =(D26/100)*(E26/100)*F26*B21 -> 0
B28: Updated per 2022 numbers on 4/28/23
